{"text_format":"1","workbook":"xlsx","n_sheets":5,"sheets":["Primary Calculator","Personal + Additional Incomes","Investment Portfolio Summary","Tables","Postcodes"],"not_rendered":{"charts":0,"images":1,"macros":1,"external_links":2,"defined_names":93,"comments":2,"pivot_tables":0},"unopened":[],"bounds":{"document_bytes":16777216,"sheet_cells":100000,"rows_first":2000,"rows_last":500,"rows_between":2000,"halvings":0,"cell_chars":16384,"cell_head_chars":4096},"cells_cut":0,"cells_raw":0,"read":"whole","date_system":"1900"}

{"sheet":"Primary Calculator","index":0,"n_rows":115,"n_cols":49,"rows_kept":115,"cut":false,"hidden":false,"merged":[[75,1,76,2],[21,7,22,7],[21,19,22,19],[21,20,22,20],[21,41,22,41],[73,5,73,6],[21,39,22,39],[42,40,42,41],[21,48,22,48],[21,13,22,13],[21,14,22,14],[21,15,22,15],[19,1,20,20],[21,6,22,6],[21,38,22,38],[21,10,22,10],[21,11,22,11],[21,12,22,12],[21,2,22,2],[21,4,22,4],[21,5,22,5],[21,9,22,9],[21,3,22,3],[21,8,22,8],[81,1,87,5],[2,19,2,20],[21,45,22,45],[21,47,22,47],[80,10,84,10],[16,1,16,10],[66,6,66,7],[57,5,57,6],[44,11,44,12],[45,11,45,12],[5,4,5,5],[6,9,6,10],[63,5,63,6],[21,1,22,1],[21,40,22,40],[21,34,22,34],[21,44,22,44],[10,4,10,9],[11,13,11,17],[16,13,16,17],[12,37,15,37],[21,36,22,36],[21,42,22,42],[21,43,22,43],[21,17,22,17],[21,35,22,35],[21,37,22,37],[10,20,14,20]]}
[]
[]
[null,"Non Consumer Investment - Specialist Investment 10",null,null,null,null,null,null,null,null,null,null,null,null,null,null,null,"Created:",null,{"$f":"NOW()","v":"2023-06-01T10:36:55.230"}]
[null,"Version 4.00 1/5/23"]
[]
[]
[null,"Instructions ",null,null,null,null,null,null,null,"Cell Index"]
[null,"Insert the relevant details into blank fields in BLUE cells",null,null,null,"Blue shaded cells require input",null,null,null,"White shaded cells derived from formulas",null,null,null,null,"Light Grey shaded cells applies appropriate scales"]
[]
[]
[null,"Application Name/ Loan No. / Ref:",null,null,null,null,null,null,null,null,null,null,null,null,null,null,null,null,null,null,"Resimac Specialist Inv Rate (actual from rate board)"]
[null,null,null,null,null,null,null,null,null,null,null,null,null,"APL post code checker"]
[null,"Preliminary product questions to determine suitability of Non Consumer product",null,null,null,null,null,null,null,null,null,null,null,null,null,null,null,null,null,null,null,null,null,null,null,null,null,null,null,null,null,null,"Yes",null,null,null,null,"assessment rate"]
[null,null,null,null,null,null,null,null,null,null,null,null,null,null,null,null,null,null,null,null,null,null,null,null,null,null,null,null,null,null,null,null,"No"]
[null,"Lending proposed is wholly not for a consumer purposes",null,null,null,null,null,null,null,null,null,null,null,"Postcode",null,{"$f":"IFERROR(VLOOKUP(O15,Tables!U2:X2070,4,FALSE),0)","v":0}]
[null,"Security property offered is not owner occupied and does not involve any self occupation component  i.e home and income",null,null,null,null,null,null,null,null,null,null,null,null,null,null,null,null,null,null,9.5899999999999999E-2]
[null,"Security property offered is residential, fit for a couple / family to reside in  i.e not a boarding house, purpose built student accomodation or dilapidated",null,null,null,null,null,null,null,null,null,null,null,"Group 1-3 Metro densly populated areas",null,null,null,null,null,null,"check rate",null,null,null,null,null,null,null,null,null,null,null,null,null,null,null,9.5000000000000001E-2,{"$f":"IF(U16=9.59%,9.75%,U16+0.2%)","v":9.7500000000000003E-2}]
[null,"Applicants do not have or will not have any consumer lending with Resimac  (can not have this product and consumer product concurrently)"]
[]
[null,{"$f":"IF(AND(L15=\"yes\",L16=\"yes\",L17=\"yes\",L18=\"yes\"),\"Preliminary pass -within product parameters\",\"no inputs into cell L15- L18 or outside product parameters for a Non consumer product\")","v":"no inputs into cell L15- L18 or outside product parameters for a Non consumer product"}]
[]
[null,"Property address","Property Value","Valuation Type","Outstanding Debt/Limits","Additional Lending (excl of any fees)","Total lending","LVR",null,"Existing Lender or N/A","Rental Income      Per Week","  Insurance              Per Annum","Rates                        Per Annum","Body Corp             Per Annum","Maintenance         Per annum","APL Location (Group)",null,"Self Service Pass/Fail","Surplus ","Max Lend IO at 50% based on inputs","P&I on Remainder Self Service 50-70%",null,null,null,null,null,null,null,null,null,null,null,null,null,"Rent annual","Rent scaled ","Expenses","Net rent avail for servicing debt","IO Portion","P&I","Annual payment IO","Annual Payment P&I","Self service calc IO + P&I requested","Max IO net rent avail (not limited to LVR)","Max Lend IO at 50% based on inputs (lower of)","left over for P&I after IO","Left over small amount <$1000pa ","P&I max on remainder calc","Max P&I based on 50%+20% LVR"]
[]
[null,"1 Example Street",1000000,"Full RVR",500000,null,{"$f":"(E24+F24)","v":500000},{"$f":"SUM(G24/C24)","v":0.5},{"$f":"IF(H24=0%,\"\",IF(H24<=60%,\"Pass\",IF(H24<=70%,\"Must be exempt\",\"Fail LVR\")))","v":"Pass"},"ABC Bank",1200,1800,3500,0,1000,"Group 1",null,{"$f":"IF(K24=\"\",\"Fill J27 \",IF(L24=\"\",\"Fill K27\",IF(M24=\"\",\"Fill L27\",IF(N24=\"\",\"Fill M27\",IF(O24=\"\",\"Fill N27\",IF(P24=\"\",\"Fill O27\",IF(AQ24>1,\"Pass\",\"Fail\")))))))","v":"Pass"},{"$f":"AQ24","v":1110},{"$f":"MIN(AR24,(C24*0.5))","v":500000},{"$f":"IF(AU24=\"0\",\"nil\",MIN(AV24,AW24))","v":10766.399927848432},null,null,null,null,null,null,null,null,null,null,null,"Group 1",null,{"$f":"SUM(K24*52)","v":62400},{"$f":"IF(OR(P24=\"group 1\",P24=\"Group 2\",P24=\"group 3\"),AI24*0.9,AI24*0.9)","v":56160},{"$f":"SUM(L24+M24+N24+O24)","v":6300},{"$f":"SUM(AJ24-AK24)","v":49860},{"$f":"MIN(C24*0.5,G24)","v":500000},{"$f":"SUM(G24-AM24)","v":0},{"$f":"(AM24*$AL$17)","v":48750},{"$f":"-PMT($AL$17/12,(360),AN24,0)*12","v":0},{"$f":"SUM(AL24-AO24-AP24)","v":1110},{"$f":"AL24/AL17","v":511384.61538461538},{"$f":"MIN(AR24,(C24*0.5))","v":500000},{"$f":"(AL24-AO24)","v":1110},{"$f":"IF(AT24<1000,\"0\",AT24)","v":1110},{"$f":"-PV($AL$17/12,360,(AT24/12),0)","v":10766.399927848432},{"$f":"SUM(C24*0.2)","v":200000}]
[null,null,null,null,null,null,null,null,{"$f":"IF(H25=0%,\"\",IF(H25<=60%,\"Pass\",IF(H25<=70%,\"Must be exempt\",\"Fail LVR\")))","v":""},null,null,null,null,null,null,null,null,null,{"$f":"AQ25","v":0},null,{"$f":"IF(AU25=\"0\",\"nil\",MIN(AV25,AW25))","v":0},null,null,null,null,null,null,null,null,null,null,null,"Group 2"]
[null,null,null,null,null,null,{"$f":"(E26+F26)","v":0},{"$f":"IFERROR(G26/C26,0)","v":0},{"$f":"IF(H26=0%,\"\",IF(H26<=65%,\"Pass\",IF(H26<=70%,\"Must be exempt\",\"Fail LVR\")))","v":""},null,null,null,null,null,null,null,null,{"$f":"IF($U$16=\"\",\"Fill U16\",IF(K26=\"\",\"Fill K26 \",IF(L26=\"\",\"Fill L26\",IF(M26=\"\",\"Fill M26\",IF(N26=\"\",\"Fill N26\",IF(O26=\"\",\"Fill O26\",IF(P26=\"\",\"Fill P26\",IF(AQ26>1,\"Pass\",\"Fail\"))))))))","v":"Fill K26 "},0,{"$f":"MIN(AR26,(C26*0.5))","v":0},"nil",null,null,null,null,null,null,null,null,null,null,null,"Group 3",null,{"$f":"SUM(K26*52)","v":0},{"$f":"IF(OR(P26=\"group 1\",P26=\"Group 2\",P26=\"group 3\"),AI26*0.9,AI26*0.9)","v":0},{"$f":"SUM(L26+M26+N26+O26)","v":0},{"$f":"SUM(AJ26-AK26)","v":0},{"$f":"MIN(C26*0.5,G26)","v":0},{"$f":"SUM(G26-AM26)","v":0},{"$f":"(AM26*$AL$17)","v":0},{"$f":"-PMT($AL$17/12,(360),AN26,0)*12","v":0},{"$f":"SUM(AL26-AO26-AP26)","v":0},{"$f":"AL26/0.06","v":0},{"$f":"MIN(AR26,(C26*0.5))","v":0},{"$f":"SUM(AL26-AO26)","v":0},{"$f":"IF(AT26<1000,\"0\",AT26)","v":"0"},{"$f":"-PV($AL$17/12,360,(AT26/12),0)","v":0},{"$f":"SUM(C26*0.2)","v":0}]
[null,null,null,null,null,null,{"$f":"(E27+F27)","v":0},{"$f":"IFERROR(G27/C27,0)","v":0},{"$f":"IF(H27=0%,\"\",IF(H27<=65%,\"Pass\",IF(H27<=70%,\"Must be exempt\",\"Fail LVR\")))","v":""},null,null,null,null,null,null,null,null,"Fill K26 ",0,0,"nil",null,null,null,null,null,null,null,null,null,null,null,"Group 4",null,0,0,0,0,0,0,0,0,{"$f":"SUM(AL27-AO27-AP27)","v":0},0,0,{"$f":"SUM(AL27-AO27)","v":0},"0",{"$f":"-PV($AL$17/12,360,(AT27/12),0)","v":0},0]
[null,null,null,null,null,null,0,{"$f":"IFERROR(G28/C28,0)","v":0},"",null,null,null,null,null,null,null,null,"Fill K26 ",0,0,"nil",null,null,null,null,null,null,null,null,null,null,null,"Group 5",null,0,0,0,0,0,0,0,0,0,0,0,0,"0",0,0]
[null,null,null,null,null,null,0,0,"",null,null,null,null,null,null,null,null,"Fill K26 ",0,0,"nil",null,null,null,null,null,null,null,null,null,null,null,null,null,0,0,0,0,0,0,0,0,0,0,0,0,"0",0,0]
[null,null,null,null,null,null,0,0,"",null,null,null,null,null,null,null,null,"Fill K26 ",0,0,"nil",null,null,null,null,null,null,null,null,null,null,null,"AVM/Eval",null,0,0,0,0,0,0,0,0,0,0,0,0,"0",0,0]
[null,null,null,null,null,null,0,0,"",null,null,null,null,null,null,null,null,"Fill K26 ",0,0,"nil",null,null,null,null,null,null,null,null,null,null,null,"Full RVR",null,0,0,0,0,0,0,0,0,0,0,0,0,"0",0,0]
[null,null,null,null,null,null,0,0,"",null,null,null,null,null,null,null,null,"Fill K26 ",0,0,"nil",null,null,null,null,null,null,null,null,null,null,null,"TBC",null,0,0,0,0,0,0,0,0,0,0,0,0,"0",0,0]
[null,null,null,null,null,null,0,0,"",null,null,null,null,null,null,null,null,"Fill K26 ",0,0,"nil",null,null,null,null,null,null,null,null,null,null,null,null,null,0,0,0,0,0,0,0,0,0,0,0,0,"0",0,0]
[null,null,null,null,null,null,0,0,"",null,null,null,null,null,null,null,null,"Fill K26 ",0,0,"nil",null,null,null,null,null,null,null,null,null,null,null,null,null,0,0,0,0,0,0,0,0,0,0,0,0,"0",0,0]
[null,null,null,null,null,null,0,0,"",null,null,null,null,null,null,null,null,"Fill K26 ",0,0,"nil",null,null,null,null,null,null,null,null,null,null,null,null,null,0,0,0,0,0,0,0,0,0,0,0,0,"0",0,0]
[null,null,null,null,null,null,0,0,"",null,null,null,null,null,null,null,null,"Fill K26 ",0,0,"nil",null,null,null,null,null,null,null,null,null,null,null,null,null,0,0,0,0,0,0,0,0,0,0,0,0,"0",0,0]
[null,null,null,null,null,null,0,0,"",null,null,null,null,null,null,null,null,"Fill K26 ",0,0,"nil",null,null,null,null,null,null,null,null,null,null,null,null,null,0,0,0,0,0,0,0,0,0,0,0,0,"0",0,0]
[null,null,null,null,null,null,0,0,"",null,null,null,null,null,null,null,null,"Fill K26 ",0,0,"nil",null,null,null,null,null,null,null,null,null,null,null,null,null,0,0,0,0,0,0,0,0,0,0,0,0,"0",0,0]
[null,null,null,null,null,null,0,0,"",null,null,null,null,null,null,null,null,"Fill K26 ",0,0,"nil",null,null,null,null,null,null,null,null,null,null,null,null,null,0,0,0,0,0,0,0,0,0,0,0,0,"0",0,0]
[null,null,null,null,null,null,0,0,"",null,null,null,null,null,null,null,null,"Fill K26 ",0,0,"nil",null,null,null,null,null,null,null,null,null,null,null,null,null,0,0,0,0,0,0,0,0,0,0,0,0,"0",0,0]
[]
[null,null,{"$f":"SUM(C26:C40)","v":0},null,null,"Total",{"$f":"SUM(G26:G40)","v":0},{"$f":"IFERROR(G42/C42,\"\")","v":""},null,null,{"$f":"SUM(K26:K40)","v":0},{"$f":"SUM(L26:L40)","v":0},{"$f":"SUM(M26:M40)","v":0},{"$f":"SUM(N26:N40)","v":0},{"$f":"SUM(O26:O40)","v":0},null,null,{"$f":"IF(S42=0,\"\",IF(S42>0,\"Pass\",\"Fail\"))","v":""},{"$f":"SUM(S26:S40)","v":0},{"$f":"SUM(T26:T40)","v":0},{"$f":"SUM(U26:U40)","v":0},null,null,null,null,null,null,null,null,null,null,null,null,null,{"$f":"SUM(AI26:AI40)","v":0},0,0,0,0,0,0,0,0,0,null,{"$f":"SUM(AT26:AT40)","v":0},null,{"$f":"SUM(AV26:AV40)","v":0},{"$f":"SUM(AW26:AW40)","v":0}]
[null,null,null,null,null,null,null,null,null,null,null,null,null,null,null,null,null,null,null,null,null,null,null,null,null,null,null,null,null,null,null,null,null,null,null,null,null,null,null,"NSR Calc",{"$f":"SUM(AO42+AP42)","v":0}]
[null,null,null,null,null,null,null,null,null,null,null,null,null,null,null,null,"Frequency Converter"]
[null,null,null,null,null,null,null,null,null,null,null,"Fee calculation"]
[null,null,null,null,null,null,null,null,null,null,null,{"$f":"SUM(G42*0.015)","v":0},null,null,null,"Amount",null,null,null,"Monthly","Annually"]
[null,null,null,null,null,null,null,null,null,null,null,null,null,null,null,null,null,"Weekly",null,{"$f":"P47*52/12","v":0},{"$f":"P47*52","v":0}]
[null,null,null,null,null,null,null,null,null,null,null,null,null,null,null,null,null,"Fortnightly",null,{"$f":"P48*26/12","v":0},{"$f":"P48*26","v":0}]
[null,null,null,null,null,null,null,null,null,null,null,"NSR",{"$f":"IF(ISERROR(AL42/AO43),\"\",AL42/AO43)","v":""},null,null,null,null,"4 weekly",null,{"$f":"P49*13/12","v":0},{"$f":"P49*13","v":0}]
[null,null,null,null,null,null,null,null,null,null,null,null,null,null,null,null,null,"Monthly",null,null,{"$f":"P50*12","v":0}]
[null,null,null,null,null,null,null,null,null,null,null,null,null,null,null,null,null,"Quarterly",null,{"$f":"P51*4/12","v":0},{"$f":"P51*4","v":0}]
[null,null,null,null,null,null,null,null,null,null,null,null,null,null,null,null,null,"Annually",null,{"$f":"P52/12","v":0}]
[]
[]
[]
[]
[]
[]
[]
[]
[]
[]
[]
[]
[]
[]
[]
[]
[]
[]
[]
[]
[]
[]
[]
[]
[]
[]
[]
[]
[]
[]
[]
[]
[]
[]
[]
[]
[]
[]
[]
[]
[]
[]
[]
[]
[]
[]
[]
[]
[]
[]
[]
[]
[]
[]
[]
[]
[]
[]
[]
[]
[]
[]
[null,null,null,null,null,null,null,null,null,null,null,1]

{"sheet":"Personal + Additional Incomes","index":1,"n_rows":98,"n_cols":22,"rows_kept":98,"cut":false,"hidden":false,"merged":[[94,0,95,11],[97,0,97,11],[29,7,29,9],[0,1,0,7],[2,1,2,7],[81,1,82,7],[91,1,92,7],[40,4,40,8]]}
[null,"2.   PERSONAL + ADDITIONAL INCOME WORKSHEET"]
[]
[null,"Note: All figures are to be entered at 100% and calculator will reduce assessment percentage where appropriate"]
[]
[null,"Income: Other"]
[null,null,null,null,null,null,null,null,null,null,null,null,null,null,1,2]
[null,"Incomes Support:",null,null,null,null,null,null,null,null,null,null,null,null,0,1,2,3,4,5]
[null,"Number of Single Adults"]
[null,"Number of Dependent Children"]
[]
[null,"PAYE"]
[null,null,"Base income PAYE","Self Employed Income","Investment Income (non property)","Overtime / Shift Allowance","Bonus / Commission / Casual / 2nd Job","Non Taxable Income","Total allowable Supplementary Income","Taxable Income ","Tax Applied (Including ACC)  ","Total Net Borrower Income After Tax"]
[null,"Individual Applicant 1",null,{"$f":"MIN(L25,Tables!D62)","v":0},null,null,null,null,{"$f":"SUM(E13*Tables!D43)+(AUTO_OvertimeShiftAllowances*Tables!A43)+(AUTO_Bonus*Tables!B43)","v":0},{"$f":"C13+D13+I13","v":0},{"$f":"Tables!C$36+Tables!C$37+Tables!C$38","v":0},{"$f":"SUM(Tables!C$39)","v":0}]
[null,"Individual Applicant 2",null,{"$f":"MIN(L26,Tables!D63)","v":0},null,null,null,null,{"$f":"SUM(E14*Tables!D43)+(AUTO_OvertimeShiftAllowances2*Tables!A43)+(AUTO_Bonus3*Tables!B43)","v":0},{"$f":"C14+D14+I14","v":0},{"$f":"Tables!D$36+Tables!D$37+Tables!D$38","v":0},{"$f":"SUM(Tables!D$39)","v":0}]
[null,"Individual Applicant 3",null,{"$f":"MIN(L27,Tables!D64)","v":0},null,null,null,null,{"$f":"SUM(E15*Tables!D43)+(AUTO_OvertimeShiftAllowances3*Tables!A43)+(AUTO_Bonus3*Tables!B43)","v":0},{"$f":"C15+D15+I15","v":0},{"$f":"Tables!E$36+Tables!E$37+Tables!E$38","v":0},{"$f":"SUM(Tables!E$39)","v":0}]
[null,"Individual Applicant 4",null,{"$f":"MIN(L28,Tables!D65)","v":0},null,null,null,null,{"$f":"SUM(E16*Tables!D43)+(AUTO_OvertimeShiftAllowances3*Tables!A43)+(AUTO_Bonus3*Tables!B43)","v":0},{"$f":"C16+D16+I16","v":0},{"$f":"Tables!F$36+Tables!F$37+Tables!F$38","v":0},{"$f":"SUM(Tables!F$39)","v":0},null,null,null,null,null,"Max Depreciation that can be used company income less tax paid","Tax"]
[null,"Totals for Individuals",{"$f":"SUM(C13:C16)","v":0},{"$f":"SUM(D13:D16)","v":0},0,0,0,0,0,0,0,0,null,null,null,null,null,{"$f":"SUM(T17*20%)","v":0},null,{"$f":"SUM(I61-S17)","v":0}]
[null,null,null,null,null,null,null,null,null,null,null,null,null,null,null,null,null,null,null,{"$f":"SUM(V18*20%)","v":0},{"$f":"SUM(I62*0.28)","v":0},{"$f":"SUM(I62-U18)","v":0}]
[null,"Self Employed",null,null,null,null,null,null,null,null,null,null,null,null,null,null,null,null,null,{"$f":"SUM(V19*20%)","v":0},{"$f":"SUM(I64*0.28)","v":0},{"$f":"SUM(I64-U19)","v":0}]
[]
[null,"Most Recent Year"]
[null,"Financial Year End dd/mm/yyyy"]
[]
[null,null,"Net Profit Before Tax","Shareholder Salary*","Director Fees*","Wages / Salary*","Home Office","One off / Significant Item","Interest*","Depreciation ***","Allowable %  Depn Addback","Total Income",null,null,"Total"]
[null,"Individual Applicant 1",null,null,null,null,null,null,null,null,{"$f":"IF(J25<P25,J25,P25)","v":0},{"$f":"SUM(C25:I25)+K25","v":0},null,null,{"$f":"SUM(C$25:I$25)","v":0},{"$f":"SUM(O25*20%)","v":0}]
[null,"Individual Applicant 2",null,null,null,null,null,null,null,null,{"$f":"IF(J26<P26,J26,P26)","v":0},{"$f":"SUM(C26:I26)+K26","v":0},null,null,{"$f":"SUM(C$26:I$26)","v":0},{"$f":"SUM(O26*20%)","v":0},{"$f":"SUM(F70-P26)","v":0}]
[null,"Individual Applicant 3",null,null,null,null,null,null,null,null,{"$f":"IF(J27<P27,J27,P27)","v":0},{"$f":"SUM(C27:I27)+K27","v":0},null,null,{"$f":"SUM(C27:I27)","v":0},{"$f":"SUM(O27*20%)","v":0},{"$f":"SUM(S27*20%)","v":0},{"$f":"SUM(F71*0.28)","v":0}]
[null,"Individual Applicant 4",null,null,null,null,null,null,null,null,{"$f":"IF(J28<P28,J28,P28)","v":0},{"$f":"SUM(C28:I28)+K28","v":0},null,null,{"$f":"SUM(C28:I28)","v":0},{"$f":"SUM(O28*20%)","v":0},{"$f":"SUM(S28*20%)","v":0},{"$f":"SUM(F73*0.28)","v":0}]
[]
[null,null,null,null,null,"*paid to applicants",null,"*not all asset depreciation is suitable for addback i.e core business assets -taxi drivers vehicle",null,null,"*Where being refinanced or repaid"]
[null,"Year Prior"]
[null,"Financial Year End dd/mm/yyyy"]
[]
[null,null,"Net Profit Before Tax","Shareholder Salary*","Director Fees*","Wages / Salary*","Home Office","One off / Significant Item","Interest*","Depreciation","Allowable %  Depn Addback","Total Income"]
[null,"Individual Applicant 1",null,null,null,null,null,null,null,null,{"$f":"IF(J35<P35,J35,P35)","v":0},{"$f":"SUM(C35:I35)+K35","v":0},null,null,{"$f":"SUM(C$35:I$35)","v":0},{"$f":"SUM(O35*20%)","v":0}]
[null,"Individual Applicant 2",null,null,null,null,null,null,null,null,{"$f":"IF(J36<P36,J36,P36)","v":0},{"$f":"SUM(C36:I36)+K36","v":0},null,null,{"$f":"SUM(C$36:I$36)","v":0},{"$f":"SUM(O36*20%)","v":0},{"$f":"SUM(F82-P36)","v":0}]
[null,"Individual Applicant 3",null,null,null,null,null,null,null,null,{"$f":"IF(J37<P37,J37,P37)","v":0},{"$f":"SUM(C37:I37)+K37","v":0},null,null,{"$f":"SUM(C37:I37)","v":0},{"$f":"SUM(O37*20%)","v":0},{"$f":"SUM(S37*20%)","v":0}]
[null,"Individual Applicant 4",null,null,null,null,null,null,null,null,{"$f":"IF(J38<P38,J38,P38)","v":0},{"$f":"SUM(C38:I38)+K38","v":0},null,null,{"$f":"SUM(C38:I38)","v":0},{"$f":"SUM(O38*20%)","v":0},{"$f":"SUM(S38*20%)","v":0}]
[]
[]
[null,"MONTHLY LIVING EXPENSES",null,null,"MONTHLY FINANCIAL EXPENSES"]
[]
[null,null,null,"Customer Estimated",null,null,"Limit / Balance","Repayment"]
[null,"Utilities",null,null,null,"Other Mortgages - Owner Occupied",null,null,"per month"]
[null,"Rates",null,null,null,"Other Mortgages - Investment",{"$f":"'Investment Portfolio Summary'!D31","v":0},{"$f":"'Investment Portfolio Summary'!I31","v":0},"per month"]
[null,"Property Maintenance ",null,null,null,"Personal Loans",null,null,"per month",null,null,null,null,null,null,{"$f":"H44","v":0}]
[null,"Food & Takeaways",null,null,null,"Credit Cards Limit",null,{"$f":"SUM(G47*0.038)","v":0},"per month",null,null,null,null,null,null,{"$f":"H45","v":0}]
[null,"Transport",null,null,null,"Other debts",null,null," per month",null,null,null,null,null,null,1]
[null,"Clothing and Footwear",null,null,null,"Total",null,{"$f":"SUM(H44:H48)","v":0},null,null,null,null,null,null,null,1]
[null,"Personal Care",null,null,null,null,null,null,null,null,null,null,null,null,null,1]
[null,"Childcare",null,null,null,null,"Financial Expenses Buffered",{"$f":"SUM(H49*1.2)","v":0},"per month",null,null,null,null,null,null,1]
[null,"Insurances "]
[null,"Communications",null,null,null,null,"Annualised",{"$f":"SUM(H51*12)","v":0}]
[null,"Medical and Health"]
[null,"Education and Schooling"]
[null,"Recreation and Entertainment"]
[null,"Regular Savings "]
[null,"Body Corp Fees"]
[null,"Tithings"]
[null,"Child Maintenance"]
[null,"All Other Regular Expenses"]
[]
[null,"Rent or Board Paid"]
[]
[null,"Total Monthly Expenses",null,{"$f":"SUM(D44:D61)+D63","v":0}]
[]
[null,"Annualised",null,{"$f":"D65*12","v":0}]
[]
[]
[]
[null,"Taxable Income",null,{"$f":"J17","v":0}]
[null,"Tax Applicable",null,{"$f":"K17","v":0}]
[null,"Net Cash After Tax",null,{"$f":"D71-D72","v":0}]
[null,"Tax Free Income",null,{"$f":"H17","v":0}]
[null,"Other Rental Income",null,{"$f":"'Investment Portfolio Summary'!R31","v":0}]
[null,"Living Expenses (as per scales)",null,{"$f":"MAX(D67,Tables!B26)","v":10614.989844017004}]
[null,"Total Financial Expense",null,{"$f":"H51*12","v":0}]
[null,"Surplus Cash after Financial Expense",null,{"$f":"D73+D74+D75-D76-D77","v":-10614.989844017004}]
[]
[null,"Net Service Ratio (NSR)",null,{"$f":"IF(ISERROR(D73+D74+D75)/(D76+78),0,(D73+D74+D75)/(D76+D77))","v":0},null,"Minimum NSR = 1.00"]
[]
[null,{"$f":"IF(D80<=1,\"Fail - based on inputs existing commitments / lifestyle \",\"Preliminary pass based on existing commitments / lifestyle\")","v":"Fail - based on inputs existing commitments / lifestyle "}]
[]
[]
[]
[]
[null,"Primary Income Total",null,{"$f":"'Primary Calculator'!S42","v":0}]
[null,"Personal + Additional Total",null,{"$f":"D78","v":-10614.989844017004}]
[]
[null,"Overall Position Total",null,{"$f":"SUM(D87+D88)","v":-10614.989844017004},null,"Overall NSR",{"$f":"IF(ISERROR(D73+D74+D75+'Primary Calculator'!AL42)/(D76+78+'Primary Calculator'!AO43),0,(D73+D74+D75+'Primary Calculator'!AL42)/(D76+D77+'Primary Calculator'!AO43))","v":0}]
[]
[null,{"$f":"IF(D90>1,\"Preliminary Pass Overall affordability Pass Primary + Personal + Additional\", \"Fail based on overall Primary + Personal + Additional\")","v":"Fail based on overall Primary + Personal + Additional"}]
[]
[]
["Where there is a reliance on Personal income + Additional (D88) to support lending over an above primary income (D87) these other incomes need to be verified so supporting documents payslips, IRD confo, financials etc should accompany submission"]
[]
[]
["Where deal self services no additional verification is required (D87)"]

{"sheet":"Investment Portfolio Summary","index":2,"n_rows":43,"n_cols":21,"rows_kept":43,"cut":false,"hidden":false,"merged":[[39,4,39,5],[37,2,37,5],[2,13,3,13],[41,2,41,5],[2,7,3,7],[2,10,3,10],[2,11,3,11],[2,12,3,12],[2,8,3,8],[2,9,3,9],[32,7,32,8],[2,1,3,1],[2,2,3,2],[2,3,3,3],[2,5,3,5],[2,6,3,6]]}
[]
[null,"3. Investment Property Summary",null,"do not include Resimac offered security (first tab property/ies)"]
[null,"Property Address","Value","Outstanding Debt/Limits",null,"Lender","Term (yrs)","Rate (%)","Repayment Amount     Per Month","Rental Income     Per Week","Insurance   Per Annum","Rates        Per Annum","Body Corp  Per Annum","APL Location (Group)",null,"Scaled Rent","Expenses","Surplus"]
[null,null,null,null,"LVR",null,null,null,null,null,null,null,null,null,null,null,null,null,"GV",null,"Group1"]
[null,null,null,null,{"$f":"IF(ISERROR(D5/C5),0,(D5/C5))","v":0},null,null,null,null,null,null,null,null,null,null,{"$f":"IF(OR(N5=\"group1\",N5=\"group2\",N5=\"group3\"),J5*Tables!$H$43*52,J5*Tables!$H$43*52)","v":0},{"$f":"SUM(K5+L5+M5)","v":0},{"$f":"SUM(P5-Q5)","v":0},"MV",null,"Group2"]
[null,null,null,null,{"$f":"IF(ISERROR(D6/C6),0,(D6/C6))","v":0},null,null,null,null,null,null,null,null,null,null,{"$f":"IF(OR(N6=\"group1\",N6=\"group2\",N6=\"group3\"),J6*Tables!$H$43*52,J6*Tables!$H$43*52)","v":0},{"$f":"SUM(K6+L6+M6)","v":0},{"$f":"SUM(P6-Q6)","v":0},"Estimate",null,"Group3"]
[null,null,null,null,0,null,null,null,null,null,null,null,null,null,null,{"$f":"IF(OR(N7=\"group1\",N7=\"group2\",N7=\"group3\"),J7*Tables!$H$43*52,J7*Tables!$H$43*52)","v":0},0,0,"PP",null,"Group4"]
[null,null,null,null,0,null,null,null,null,null,null,null,null,null,null,{"$f":"IF(OR(N8=\"group1\",N8=\"group2\",N8=\"group3\"),J8*Tables!$H$43*52,J8*Tables!$H$43*52)","v":0},0,0,null,null,"Group5"]
[null,null,null,null,0,null,null,null,null,null,null,null,null,null,null,{"$f":"IF(OR(N9=\"group1\",N9=\"group2\",N9=\"group3\"),J9*Tables!$H$43*52,J9*Tables!$H$43*52)","v":0},0,0,{"$f":"SUM(I31*12)","v":0}]
[null,null,null,null,0,null,null,null,null,null,null,null,null,null,null,{"$f":"IF(OR(N10=\"group1\",N10=\"group2\",N10=\"group3\"),J10*Tables!$H$43*52,J10*Tables!$H$43*52)","v":0},0,0,{"$f":"SUM(J31*52)","v":0}]
[null,null,null,null,0,null,null,null,null,null,null,null,null,null,null,{"$f":"IF(OR(N11=\"group1\",N11=\"group2\",N11=\"group3\"),J11*Tables!$H$43*52,J11*Tables!$H$43*52)","v":0},0,0]
[null,null,null,null,0,null,null,null,null,null,null,null,null,null,null,{"$f":"IF(OR(N12=\"group1\",N12=\"group2\",N12=\"group3\"),J12*Tables!$H$43*52,J12*Tables!$H$43*52)","v":0},0,0,"Scaled Rent"]
[null,null,null,null,0,null,null,null,null,null,null,null,null,null,null,{"$f":"IF(OR(N13=\"group1\",N13=\"group2\",N13=\"group3\"),J13*Tables!$H$43*52,J13*Tables!$H$43*52)","v":0},0,0,{"$f":"SUM(J31*52)*0.8","v":0}]
[null,null,null,null,0,null,null,null,null,null,null,null,null,null,null,{"$f":"IF(OR(N14=\"group1\",N14=\"group2\",N14=\"group3\"),J14*Tables!$H$43*52,J14*Tables!$H$43*52)","v":0},0,0]
[null,null,null,null,0,null,null,null,null,null,null,null,null,null,null,{"$f":"IF(OR(N15=\"group1\",N15=\"group2\",N15=\"group3\"),J15*Tables!$H$43*52,J15*Tables!$H$43*52)","v":0},0,0]
[null,null,null,null,0,null,null,null,null,null,null,null,null,null,null,{"$f":"IF(OR(N16=\"group1\",N16=\"group2\",N16=\"group3\"),J16*Tables!$H$43*52,J16*Tables!$H$43*52)","v":0},0,0]
[null,null,null,null,0,null,null,null,null,null,null,null,null,null,null,{"$f":"IF(OR(N17=\"group1\",N17=\"group2\",N17=\"group3\"),J17*Tables!$H$43*52,J17*Tables!$H$43*52)","v":0},0,0]
[null,null,null,null,0,null,null,null,null,null,null,null,null,null,null,{"$f":"IF(OR(N18=\"group1\",N18=\"group2\",N18=\"group3\"),J18*Tables!$H$43*52,J18*Tables!$H$43*52)","v":0},0,0]
[null,null,null,null,0,null,null,null,null,null,null,null,null,null,null,{"$f":"IF(OR(N19=\"group1\",N19=\"group2\",N19=\"group3\"),J19*Tables!$H$43*52,J19*Tables!$H$43*52)","v":0},0,0]
[null,null,null,null,0,null,null,null,null,null,null,null,null,null,null,{"$f":"IF(OR(N20=\"group1\",N20=\"group2\",N20=\"group3\"),J20*Tables!$H$43*52,J20*Tables!$H$43*52)","v":0},0,0]
[null,null,null,null,0,null,null,null,null,null,null,null,null,null,null,{"$f":"IF(OR(N21=\"group1\",N21=\"group2\",N21=\"group3\"),J21*Tables!$H$43*52,J21*Tables!$H$43*52)","v":0},0,0]
[null,null,null,null,0,null,null,null,null,null,null,null,null,null,null,{"$f":"IF(OR(N22=\"group1\",N22=\"group2\",N22=\"group3\"),J22*Tables!$H$43*52,J22*Tables!$H$43*52)","v":0},0,0]
[null,null,null,null,0,null,null,null,null,null,null,null,null,null,null,{"$f":"IF(OR(N23=\"group1\",N23=\"group2\",N23=\"group3\"),J23*Tables!$H$43*52,J23*Tables!$H$43*52)","v":0},0,0]
[null,null,null,null,0,null,null,null,null,null,null,null,null,null,null,{"$f":"IF(OR(N24=\"group1\",N24=\"group2\",N24=\"group3\"),J24*Tables!$H$43*52,J24*Tables!$H$43*52)","v":0},0,0]
[null,null,null,null,0,null,null,null,null,null,null,null,null,null,null,{"$f":"IF(OR(N25=\"group1\",N25=\"group2\",N25=\"group3\"),J25*Tables!$H$43*52,J25*Tables!$H$43*52)","v":0},0,0]
[null,null,null,null,0,null,null,null,null,null,null,null,null,null,null,{"$f":"IF(OR(N26=\"group1\",N26=\"group2\",N26=\"group3\"),J26*Tables!$H$43*52,J26*Tables!$H$43*52)","v":0},0,0]
[null,null,null,null,0,null,null,null,null,null,null,null,null,null,null,{"$f":"IF(OR(N27=\"group1\",N27=\"group2\",N27=\"group3\"),J27*Tables!$H$43*52,J27*Tables!$H$43*52)","v":0},0,0]
[null,null,null,null,0,null,null,null,null,null,null,null,null,null,null,{"$f":"IF(OR(N28=\"group1\",N28=\"group2\",N28=\"group3\"),J28*Tables!$H$43*52,J28*Tables!$H$43*52)","v":0},0,0]
[null,null,null,null,0,null,null,null,null,null,null,null,null,null,null,{"$f":"IF(OR(N29=\"group1\",N29=\"group2\",N29=\"group3\"),J29*Tables!$H$43*52,J29*Tables!$H$43*52)","v":0},0,0]
[]
[null,null,{"$f":"SUM(C5:C29)","v":0},{"$f":"SUM(D5:D29)","v":0},{"$f":"IFERROR(SUM(D31/C31),0)","v":0},null,null,null,{"$f":"SUM(I5:I29)","v":0},{"$f":"SUM(J5:J29)","v":0},null,null,null,null,null,{"$f":"SUM(P5:P29)","v":0},{"$f":"SUM(Q5:Q29)","v":0},{"$f":"SUM(R5:R29)","v":0}]
[]
[null,null,null,null,null,null,null,null,null,null,null,null,null,null,null,null,null,null,{"$f":"SUM(S13-S16)/S9","v":{"$error":"#DIV/0!"}}]
[]
[null,null,null,null,null,null,null,null,null,null,"Frequency Converter"]
[]
[null,null,null,null,null,null,null,null,null,"Amount",null,"Monthly","Annually"]
[null,null,"APL post code checker",null,null,null,null,null,null,null,"Weekly",{"$f":"J38*52/12","v":0},{"$f":"J38*52","v":0}]
[null,null,null,null,null,null,null,null,null,null,"Fortnightly",{"$f":"J39*26/12","v":0},{"$f":"J39*26","v":0}]
[null,null,"Postcode",null,{"$f":"IFERROR(VLOOKUP(D40,Tables!U2:X2070,4,FALSE),0)","v":0},null,null,null,null,null,"4 weekly",{"$f":"J40*13/12","v":0},{"$f":"J40*13","v":0}]
[null,null,null,null,null,null,null,null,null,null,"Monthly",null,{"$f":"J41*12","v":0}]
[null,null,"Group 1-3 Metro densly populated areas",null,null,null,null,null,null,null,"Quarterly",{"$f":"J42*4/12","v":0},{"$f":"J42*4","v":0}]
[null,null,null,null,null,null,null,null,null,null,"Annually",{"$f":"J43/12","v":0}]

{"sheet":"Tables","index":3,"n_rows":2075,"n_cols":24,"rows_kept":2075,"cut":false,"hidden":true,"merged":[[29,11,29,13],[53,1,53,2],[20,5,20,7],[44,0,44,1],[45,0,45,1],[40,0,40,7]]}
[null,null,null,null,null,null,null,null,null,null,null,null,null,null,null,null,null,null,null,null,"Postcode","TownCity","Suburb","New Group"]
[null,null,null,null,null,null,null,null,null,null,null,null,null,null,null,null,null,null,null,null,110,"WHANGAREI","ABBEY CAVES","Group3"]
["Living Expenses (Annual)",null,null,null,10,11,12,13,14,15,20,21,22,23,24,25,null,null,null,null,110,"WHANGAREI","AVENUES","Group3"]
[null,null,null,"Adults",1,1,1,1,1,1,2,2,2,2,2,2,null,null,null,null,110,"WHANGAREI","HORAHORA","Group3"]
["Year","Pre-tax monthly income","annualised","Dependants",0,1,2,3,4,5,0,1,2,3,4,5,null,null,null,null,110,"WHANGAREI","MAUNU","Group3"]
[2021,1000,{"$f":"SUM(B6*12)","v":12000},null,500.25373527436199,723.39373086067201,932.31807391739198,1131.4931458640999,1323.32316561518,1509.3017081990699,884.58248700141701,1085.7681115529299,1279.1537182126599,1466.392872486,1648.5878712128299,1826.5229327731699,null,null,null,null,110,"WHANGAREI","MORNINGSIDE","Group3"]
[2021,2000,{"$f":"SUM(B7*12)","v":24000},null,614.54720816962003,888.66822246517495,1145.32571983252,1390.00652033609,1625.66413719824,1854.1333840329501,1086.6839354719,1333.83464155144,1571.40325182428,1801.4211235661501,2025.24239648203,2243.83046011224,null,null,null,null,110,"WHANGAREI","ONERAHI","Group3"]
[2021,3000,36000,null,693.15501745926099,1002.33933059919,1291.8263377871001,1567.8046878477001,1833.6056830503501,2091.2988312306002,1225.6835801242801,1504.44776570716,1772.4041928332499,2031.8440532437301,2284.29469702396,2530.8427425569598,null,null,null,null,110,"WHANGAREI","PORT WHANGAREI","Group3"]
[2021,4000,48000,null,754.95342550904604,1091.70314301703,1406.99943635984,1707.5827048879801,1997.08125395353,2277.74909887802,1334.9597046802101,1638.57718058978,1930.42332964819,2212.9936153664098,2487.9515591066802,2756.4806569843299,null,null,null,null,110,"WHANGAREI","RAUMANGA","Group3"]
[2021,5000,60000,null,806.65760988547299,1166.47016662888,1503.36002738044,1824.5292184454199,2133.8545354304501,2433.7443634762599,1426.3865402619499,1750.79774121984,2062.6314373117598,2364.5539978305401,2658.3428730409501,2945.2626126694299,null,null,null,null,110,"WHANGAREI","WHANGAREI","Group3"]
[2021,6000,72000,null,851.52083986884998,1231.3448032936799,1586.97119750969,1926.0025981487699,2252.5314134526898,2569.0999737888901,1505.7167376303801,1848.1704564290601,2177.3471573509,2496.0615030133699,2806.1897987085199,3109.0669236117101,null,null,null,null,110,"WHANGAREI","WOODHILL","Group3"]
[2021,7000,84000,null,891.39328864393303,1289.00250266527,1661.2810967130799,2016.1876368933299,2358.00615839375,2689.3980361578001,1576.2218981384899,1934.7110064676799,2279.3014007848301,2612.9395402363798,2937.5895880776202,3254.6489291784801,null,null,null,null,112,"WHANGAREI","KAMO","Group3"]
[2021,8000,96000,null,927.43839221955,1341.1256556098799,1728.4580094878199,2097.7158390074001,2453.3564120853998,2798.1487211857698,1639.95928802055,2012.9445533267699,2371.46908492379,2718.5984873750999,3056.3763484378801,3386.2565587725599,null,null,null,null,112,"WHANGAREI","KAMO","Group3"]
[2021,9000,108000,null,960.44036126075002,1388.8482728080801,1789.9634617062,2172.3609623459802,2540.6566500720101,2897.7180491799099,1698.3156016109001,2084.5731751175599,2455.8554441465699,2815.33709973846,3165.1344486800199,3506.7531168789701,null,null,null,null,112,"WHANGAREI","KENSINGTON","Group3"]
[2021,10000,120000,null,990.95548348482498,1432.9747761339099,1846.83420143531,2241.3812398713699,2621.3784224312899,2989.78438042567,1752.27450447311,2150.8042580556398,2533.8829116141201,2904.78602250938,3265.6971368518498,3618.1697173129101,null,null,null,null,112,"WHANGAREI","OTANGAREI","Group3"]
[2021,12500,150000,null,1058.8226436243799,1531.11432955343,1973.31757489548,2394.8857938854499,2800.9076870112599,3194.5445121477701,1872.2818069054299,2298.1055036140901,2707.4199071738399,3103.7249066936702,3489.3535919073302,3865.9658168444698,null,null,null,null,112,"WHANGAREI","PARAHAKI","Group3"]
[2021,15000,180000,null,1117.7103342509799,1616.26908846949,2083.06599740816,2528.0802382672,2956.6835257124399,3372.2129347651098,1976.4110040611199,2425.91739613358,2857.99631092756,3276.3422880804501,3683.41817490841,4080.9761402127801,null,null,null,null,112,"WHANGAREI","REGENT","Group3"]
[2021,20000,240000,null,1217.36007720558,1760.36796120594,2268.78226470768,2753.4718609372699,3220.2873811181298,3672.8634180253398,2152.6184188912798,2642.2006651934498,3112.80168314412,3568.44539998134,4011.81423878653,4444.8165834064703,null,null,null,null,112,"WHANGAREI","RIVERSIDE","Group3"]
[2021,25000,300000,null,1300.7329155258999,1880.92955687678,2424.16342142647,2942.0477544464602,3440.8338769316101,3924.40530251571,2300.0439101358502,2823.1559741392298,3325.9868502211498,3812.8360506674198,4286.5697085644397,4749.2269064576903,null,null,null,null,112,"WHANGAREI","TIKIPUNGA","Group3"]
[2021,1000000,{"$f":"SUM(B20*12)","v":12000000},null,{"$f":"E19*1.05","v":1365.7695613021949},{"$f":"F19*1.05","v":1974.9760347206191},2545.3715924977937,3089.1501421687835,3612.8755707781906,4120.6255676414958,2415.0461056426429,2964.3137728461916,3492.2861927322074,4003.4778532007908,4500.8981939926616,4986.6882517805752,null,null,null,null,112,"WHANGAREI","WHANGAREI HEADS","Group3"]
[null,null,null,null,null,null,null,null,null,null,null,null,null,null,null,null,null,null,null,null,112,"WHANGAREI","WHAU VALLEY","Group3"]
["Adults",{"$f":"'Personal + Additional Incomes'!D8","v":0},{"$f":"IF(B22=1,\"10\",\"20\")","v":"20"},"Gross income",{"$f":"SUM('Personal + Additional Incomes'!J17)","v":0},null,null,null,null,null,null,null,null,null,null,null,null,null,null,null,114,"HIKURANGI","HIKURANGI","Group5"]
["Dependants",{"$f":"'Personal + Additional Incomes'!D9","v":0},{"$f":"B23","v":0},"Roundup 000's",{"$f":"ROUNDUP(E22,-3)","v":0},null,null,null,null,null,null,null,"Adults ",null,1,2,null,null,null,null,116,"RUAKAKA","RUAKAKA","Group3"]
[null,null,{"$f":"SUM(C22+C23)","v":20},null,null,null,null,null,null,null,null,null,"Dependants",0,1,2,3,4,5,null,118,"ONE TREE POINT","ONE TREE POINT","Group3"]
["Income banded expense",{"$f":"_xlfn.XLOOKUP(C24,E3:P3,_xlfn.XLOOKUP(E23,C6:C20,E6:P20,,1))","v":884.58248700141701},null,null,null,null,null,null,null,null,null,null,null,null,null,null,null,null,null,null,170,"WHANGAREI","OTAIKA","Group5"]
["annualised",{"$f":"SUM(B25*12)","v":10614.989844017004},null,null,null,null,null,null,null,null,null,null,null,null,null,null,null,null,null,null,171,"WHANGAREI","OAKLEIGH","Group5"]
[null,null,null,null,null,null,null,null,null,null,null,null,null,null,null,null,null,null,null,null,171,"WHANGAREI","RUAKAKA","Group3"]
[null,null,null,null,null,null,null,null,null,null,null,null,null,null,null,null,null,null,null,null,172,"WHANGAREI","PARAKAO","Group5"]
[null,null,"Applicant 1","Applicant 2","Applicant 3","Applicant 4",null,null,null,null,null,null,null,null,null,null,null,null,null,null,173,"WHANGAREI","KIRIPAKA","Group5"]
[null,"ANNUAL INCOME:",{"$f":"'Personal + Additional Incomes'!J13","v":0},{"$f":"'Personal + Additional Incomes'!J14","v":0},{"$f":"'Personal + Additional Incomes'!J15","v":0},{"$f":"'Personal + Additional Incomes'!J16","v":0},null,null,null,null,null,"Tax Rates effective  01/04/2021",null,null,null,null,null,null,null,null,173,"WHANGAREI","KAIATEA","Group5"]
[null,null,null,null,null,null,null,null,null,null,null,"Tax Boundary","Tax Due","Excess %",null,null,null,null,null,null,174,"WHANGAREI","MCLEOD BAY","Group5"]
[null,"Tax Boundary",{"$f":"VLOOKUP(C30,$L$31:$N$36,1)","v":0},{"$f":"VLOOKUP(D30,$L$31:$N$36,1)","v":0},{"$f":"VLOOKUP(E30,$L$31:$N$36,1)","v":0},{"$f":"VLOOKUP(F30,$L$31:$N$36,1)","v":0},null,null,null,null,null,0,0,0.105,null,null,null,null,null,null,175,"WHANGAREI","TAHERE","Group5"]
[null,"Tax Due on Boundary",{"$f":"VLOOKUP(C30,$L$31:$N$36,2)","v":0},{"$f":"VLOOKUP(D30,$L$31:$N$36,2)","v":0},{"$f":"VLOOKUP(E30,$L$31:$N$36,2)","v":0},{"$f":"VLOOKUP(F30,$L$31:$N$36,2)","v":0},null,null,null,null,null,14000,{"$f":"M32+N32*(L33-L32)","v":1470},0.17499999999999999,null,null,null,null,null,null,176,"WHANGAREI","NGARARATUNUA","Group5"]
[null,"% Due on Excess",{"$f":"VLOOKUP(C30,$L$31:$N$36,3)","v":0.105},{"$f":"VLOOKUP(D30,$L$31:$N$36,3)","v":0.105},{"$f":"VLOOKUP(E30,$L$31:$N$36,3)","v":0.105},{"$f":"VLOOKUP(F30,$L$31:$N$36,3)","v":0.105},null,null,null,null,null,48000,{"$f":"M33+N33*(L34-L33)","v":7420},0.3,null,null,null,null,null,null,178,"WHANGAREI","MUNGAKARAMEA","Group5"]
[null,null,null,null,null,null,null,null,null,null,null,70000,{"$f":"M34+N34*(L35-L34)","v":14020},0.33,null,null,null,null,null,null,179,"WHANGAREI","MAUNGATAPERE","Group5"]
[null,"Tax due on Income:",{"$f":"IF(C30>0,C33+(C30-C32)*C34,0)","v":0},{"$f":"IF(D30>0,D33+(D30-D32)*D34,0)","v":0},{"$f":"IF(E30>0,E33+(E30-E32)*E34,0)","v":0},{"$f":"IF(F30>0,F33+(F30-F32)*F34,0)","v":0},null,null,null,null,null,180000,{"$f":"M35+N35*(L36-L35)","v":50320},0.39,null,null,null,null,null,null,181,"HIKURANGI","OPUAWHANGA","Group5"]
[null,"KS**",0,0,0,0,"** % as selected caluclator page",null,null,null,null,null,null,null,null,null,null,null,null,null,182,"HIKURANGI","HUKERENUI","Group5"]
[null,"ACC*",{"$f":"+IF(C30>139384,2132.57,C30*0.0153)","v":0},{"$f":"+IF(D30>139384,2132.57,D30*0.0153)","v":0},0,{"$f":"+IF(F30>139384,2132.57,F30*0.0153)","v":0},"*ACC tops out at 2132.57 for income over 139,384",null,null,null,null,null,null,null,null,null,null,null,null,null,184,"HIKURANGI","WHANGARURU","Group5"]
[null,"NET INCOME (per annum):",{"$f":"C30-C36-C37-C38","v":0},{"$f":"D30-D36-D37-D38","v":0},{"$f":"E30-E36-E37-E38","v":0},{"$f":"F30-F36-F37-F38","v":0},null,null,null,null,null,null,null,null,null,null,null,null,null,null,185,"KAMO","MATARAU","Group5"]
[null,null,null,null,null,null,null,null,null,null,null,null,null,null,null,null,null,null,null,null,192,"ONERAHI","RURUWAI","Group5"]
["% Scaling applied to income types",null,null,null,null,null,null,null,null,null,null,null,null,null,null,null,null,null,null,null,193,"WAIOTIRA","WAIOTIRA","Group5"]
["Overtime / Shift Allowance","Bonus","Commission","Investment Income","Casual / Second Job","Child Support/ Maintenance","Working For Families, Company Car Addback","Rental Income",null,null,null,null,null,null,null,null,null,null,null,null,200,"OPUA","OPUA","Group3"]
[0.8,0.8,0.8,0.8,0.8,0.8,1,0.9,null,null,null,null,null,null,null,null,null,null,null,null,200,"PAIHIA","PAIHIA","Group3"]
[null,null,null,null,null,null,null,null,null,null,null,null,null,null,null,null,null,null,null,null,202,"RUSSELL","RUSSELL","Group3"]
["Other mortgage lending default term calculation",null,null,null,null,null,null,null,null,null,null,null,null,null,null,null,null,null,null,null,204,"HARURU","HARURU","Group3"]
[null,null,null,null,null,null,null,null,null,null,null,null,null,null,null,null,null,null,null,null,204,"PAIHIA","PAIHIA","Group3"]
[null,null,null,null,null,null,null,null,null,null,null,null,null,null,null,null,null,null,null,null,210,"KAWAKAWA","KAWAKAWA","Group4"]
[null,null,null,null,null,null,null,null,null,null,null,null,null,null,null,null,null,null,null,null,211,"MOEREWA","MOEREWA","Group4"]
[null,null,null,null,null,null,null,null,null,null,null,null,null,null,null,null,null,null,null,null,230,"KERIKERI","KERIKERI","Group3"]
[null,null,null,null,null,null,null,null,null,null,null,null,null,null,null,null,null,null,null,null,272,"RUSSELL","FRENCHMANS SWAMP","Group3"]
[null,null,null,null,null,null,null,null,null,null,null,null,null,null,null,null,null,null,null,null,281,"KAWAKAWA","POKERE","Group4"]
[null,null,null,null,null,null,null,null,null,null,null,null,null,null,null,null,null,null,null,null,282,"KAWAKAWA","KAWAKAWA","Group4"]
[null,null,null,null,null,null,null,null,null,null,null,null,null,null,null,null,null,null,null,null,283,"KAWAKAWA","WAIKARE","Group4"]
[null,"Self Employed Assessment",null,null,null,null,null,null,null,null,null,null,null,null,null,null,null,null,null,null,293,"KERIKERI","KERIKERI","Group3"]
["Current Year","Total income less Depreciation","Max Depreciation that can be used ",null,null,null,null,null,null,null,null,null,null,null,null,null,null,null,null,null,294,"KERIKERI","PURERUA","Group3"]
["Applicant1",{"$f":"'Personal + Additional Incomes'!L25","v":0},{"$f":"SUM(B56*20%)","v":0},null,null,null,null,null,null,null,null,null,null,null,null,null,null,null,null,null,295,"KERIKERI","TE WHAU","Group3"]
["Applicant 2",{"$f":"'Personal + Additional Incomes'!L26","v":0},{"$f":"SUM(B57*20%)","v":0},null,null,null,null,null,null,null,null,null,null,null,null,null,null,null,null,null,310,"DARGAVILLE","DARGAVILLE","Group4"]
["Applicant 3",{"$f":"'Personal + Additional Incomes'!L27","v":0},0,null,null,null,null,null,null,null,null,null,null,null,null,null,null,null,null,null,370,"DARGAVILLE","DARGAVILLE","Group5"]
["Applicant 4",{"$f":"'Personal + Additional Incomes'!L28","v":0},0,null,null,null,null,null,null,null,null,null,null,null,null,null,null,null,null,null,371,"DARGAVILLE","DARGAVILLE","Group5"]
[null,null,null,null,null,null,null,null,null,null,null,null,null,null,null,null,null,null,null,null,372,"DARGAVILLE","DARGAVILLE","Group5"]
["Prior Year",null,null,"120% rule",null,null,null,null,null,null,null,null,null,null,null,null,null,null,null,null,373,"DARGAVILLE","DARGAVILLE","Group5"]
["Applicant1",{"$f":"'Personal + Additional Incomes'!L35","v":0},0,{"$f":"SUM(B62*120%)","v":0},null,null,null,null,null,null,null,null,null,null,null,null,null,null,null,null,374,"DARGAVILLE","DARGAVILLE","Group5"]
["Applicant 2",{"$f":"'Personal + Additional Incomes'!L36","v":0},0,{"$f":"SUM(B63*120%)","v":0},null,null,null,null,null,null,null,null,null,null,null,null,null,null,null,null,376,"DARGAVILLE","DARGAVILLE","Group5"]
["Applicant 3",{"$f":"'Personal + Additional Incomes'!L37","v":0},0,{"$f":"SUM(B64*120%)","v":0},null,null,null,null,null,null,null,null,null,null,null,null,null,null,null,null,377,"DARGAVILLE","DARGAVILLE","Group5"]
["Applicant 4",{"$f":"'Personal + Additional Incomes'!L38","v":0},0,{"$f":"SUM(B65*120%)","v":0},null,null,null,null,null,null,null,null,null,null,null,null,null,null,null,null,379,"DARGAVILLE","DARGAVILLE","Group5"]
[null,null,null,null,null,null,null,null,null,null,null,null,null,null,null,null,null,null,null,null,381,"TANGITERORIA","TANGITERORIA","Group5"]
[null,null,null,null,null,null,null,null,null,null,null,null,null,null,null,null,null,null,null,null,391,"TE KOPURU","TE KOPURU","Group5"]
[null,null,null,null,null,null,null,null,null,null,null,null,null,null,null,null,null,null,null,null,405,"KAIKOHE","KAIKOHE","Group3"]
[null,null,null,null,null,null,null,null,null,null,null,null,null,null,null,null,null,null,null,null,410,"KAITAIA","KAITAIA","Group3"]
[null,null,null,null,null,null,null,null,null,null,null,null,null,null,null,null,null,null,null,null,420,"CABLE BAY","CABLE BAY","Group3"]
[null,null,null,null,null,null,null,null,null,null,null,null,null,null,null,null,null,null,null,null,420,"COOPERS BEACH","COOPERS BEACH","Group3"]
[null,null,null,null,null,null,null,null,null,null,null,null,null,null,null,null,null,null,null,null,420,"MANGONUI","MANGONUI","Group3"]
[null,null,null,null,null,null,null,null,null,null,null,null,null,null,null,null,null,null,null,null,420,"TAIPA","TAIPA","Group3"]
[null,null,null,null,null,null,null,null,null,null,null,null,null,null,null,null,null,null,null,null,472,"KAIKOHE","KAIKOHE","Group3"]
[null,null,null,null,null,null,null,null,null,null,null,null,null,null,null,null,null,null,null,null,473,"KAIKOHE","OMAPERE","Group3"]
[null,null,null,null,null,null,null,null,null,null,null,null,null,null,null,null,null,null,null,null,474,"KAIKOHE","KAIKOHE","Group3"]
[null,null,null,null,null,null,null,null,null,null,null,null,null,null,null,null,null,null,null,null,475,"OKAIHAU","OKAIHAU","Group5"]
[null,null,null,null,null,null,null,null,null,null,null,null,null,null,null,null,null,null,null,null,476,"OKAIHAU","OKAIHAU","Group5"]
[null,null,null,null,null,null,null,null,null,null,null,null,null,null,null,null,null,null,null,null,478,"KAEO","KAEO","Group4"]
[null,null,null,null,null,null,null,null,null,null,null,null,null,null,null,null,null,null,null,null,479,"KAEO","KAEO","Group4"]
[null,null,null,null,null,null,null,null,null,null,null,null,null,null,null,null,null,null,null,null,481,"KAITAIA","AHIPARA","Group4"]
[null,null,null,null,null,null,null,null,null,null,null,null,null,null,null,null,null,null,null,null,482,"KAITAIA","KAITAIA","Group4"]
[null,null,null,null,null,null,null,null,null,null,null,null,null,null,null,null,null,null,null,null,483,"KAITAIA","KAITAIA","Group4"]
[null,null,null,null,null,null,null,null,null,null,null,null,null,null,null,null,null,null,null,null,484,"KAITAIA","KAITAIA","Group4"]
[null,null,null,null,null,null,null,null,null,null,null,null,null,null,null,null,null,null,null,null,486,"AWANUI","AWANUI","Group5"]
[null,null,null,null,null,null,null,null,null,null,null,null,null,null,null,null,null,null,null,null,491,"KOHUKOHU","KOHUKOHU","Group5"]
[null,null,null,null,null,null,null,null,null,null,null,null,null,null,null,null,null,null,null,null,492,"KOHUKOHU","KOHUKOHU","Group5"]
[null,null,null,null,null,null,null,null,null,null,null,null,null,null,null,null,null,null,null,null,494,"MANGONUI","MANGONUI","Group4"]
[null,null,null,null,null,null,null,null,null,null,null,null,null,null,null,null,null,null,null,null,496,"BROADWOOD","BROADWOOD","Group5"]
[null,null,null,null,null,null,null,null,null,null,null,null,null,null,null,null,null,null,null,null,505,"MANGAWHAI","MANGAWHAI","Group3"]
[null,null,null,null,null,null,null,null,null,null,null,null,null,null,null,null,null,null,null,null,505,"MANGAWHAI","MANGAWHAI HEADS","Group3"]
[null,null,null,null,null,null,null,null,null,null,null,null,null,null,null,null,null,null,null,null,510,"WAIPU","WAIPU","Group3"]
[null,null,null,null,null,null,null,null,null,null,null,null,null,null,null,null,null,null,null,null,520,"MAUNGATUROTO","MAUNGATUROTO","Group4"]
[null,null,null,null,null,null,null,null,null,null,null,null,null,null,null,null,null,null,null,null,530,"RUAWAI","RUAWAI","Group4"]
[null,null,null,null,null,null,null,null,null,null,null,null,null,null,null,null,null,null,null,null,571,"PAPAROA","PAPAROA","Group4"]
[null,null,null,null,null,null,null,null,null,null,null,null,null,null,null,null,null,null,null,null,573,"KAIWAKA","KAIWAKA","Group4"]
[null,null,null,null,null,null,null,null,null,null,null,null,null,null,null,null,null,null,null,null,582,"WAIPU","WAIPU","Group3"]
[null,null,null,null,null,null,null,null,null,null,null,null,null,null,null,null,null,null,null,null,583,"MAUNGATUROTO","MAUNGATUROTO","Group4"]
[null,null,null,null,null,null,null,null,null,null,null,null,null,null,null,null,null,null,null,null,587,"MAUNGATUROTO","MAUNGATUROTO","Group4"]
[null,null,null,null,null,null,null,null,null,null,null,null,null,null,null,null,null,null,null,null,588,"MAUNGATUROTO","MAUNGATUROTO","Group4"]
[null,null,null,null,null,null,null,null,null,null,null,null,null,null,null,null,null,null,null,null,589,"MAUNGATUROTO","MAUNGATUROTO","Group4"]
[null,null,null,null,null,null,null,null,null,null,null,null,null,null,null,null,null,null,null,null,591,"RUAWAI","RUAWAI","Group4"]
[null,null,null,null,null,null,null,null,null,null,null,null,null,null,null,null,null,null,null,null,592,"RUAWAI","RUAWAI","Group4"]
[null,null,null,null,null,null,null,null,null,null,null,null,null,null,null,null,null,null,null,null,593,"MATAKOHE","MATAKOHE","Group4"]
[null,null,null,null,null,null,null,null,null,null,null,null,null,null,null,null,null,null,null,null,594,"MATAKOHE","MATAKOHE","Group4"]
[null,null,null,null,null,null,null,null,null,null,null,null,null,null,null,null,null,null,null,null,600,"AUCKLAND","AVONDALE","Group1"]
[null,null,null,null,null,null,null,null,null,null,null,null,null,null,null,null,null,null,null,null,600,"AUCKLAND","BLOCKHOUSE BAY","Group1"]
[null,null,null,null,null,null,null,null,null,null,null,null,null,null,null,null,null,null,null,null,600,"AUCKLAND","MOUNT ALBERT","Group1"]
[null,null,null,null,null,null,null,null,null,null,null,null,null,null,null,null,null,null,null,null,600,"AUCKLAND","MOUNT ROSKILL","Group1"]
[null,null,null,null,null,null,null,null,null,null,null,null,null,null,null,null,null,null,null,null,600,"AUCKLAND","NEW LYNN","Group1"]
[null,null,null,null,null,null,null,null,null,null,null,null,null,null,null,null,null,null,null,null,600,"AUCKLAND","NEW WINDSOR","Group1"]
[null,null,null,null,null,null,null,null,null,null,null,null,null,null,null,null,null,null,null,null,600,"AUCKLAND","TITIRANGI","Group2"]
[null,null,null,null,null,null,null,null,null,null,null,null,null,null,null,null,null,null,null,null,602,"AUCKLAND","GLEN EDEN","Group2"]
[null,null,null,null,null,null,null,null,null,null,null,null,null,null,null,null,null,null,null,null,602,"AUCKLAND","GLENDENE","Group2"]
[null,null,null,null,null,null,null,null,null,null,null,null,null,null,null,null,null,null,null,null,602,"AUCKLAND","KELSTON","Group2"]
[null,null,null,null,null,null,null,null,null,null,null,null,null,null,null,null,null,null,null,null,602,"AUCKLAND","ORATIA","Group2"]
[null,null,null,null,null,null,null,null,null,null,null,null,null,null,null,null,null,null,null,null,602,"AUCKLAND","TE ATATU SOUTH","Group2"]
[null,null,null,null,null,null,null,null,null,null,null,null,null,null,null,null,null,null,null,null,604,"AUCKLAND","CORNWALLIS","Group2"]
[null,null,null,null,null,null,null,null,null,null,null,null,null,null,null,null,null,null,null,null,604,"AUCKLAND","GLEN EDEN","Group2"]
[null,null,null,null,null,null,null,null,null,null,null,null,null,null,null,null,null,null,null,null,604,"AUCKLAND","GREEN BAY","Group2"]
[null,null,null,null,null,null,null,null,null,null,null,null,null,null,null,null,null,null,null,null,604,"AUCKLAND","HUIA","Group2"]
[null,null,null,null,null,null,null,null,null,null,null,null,null,null,null,null,null,null,null,null,604,"AUCKLAND","LAINGHOLM","Group2"]
[null,null,null,null,null,null,null,null,null,null,null,null,null,null,null,null,null,null,null,null,604,"AUCKLAND","ORATIA","Group2"]
[null,null,null,null,null,null,null,null,null,null,null,null,null,null,null,null,null,null,null,null,604,"AUCKLAND","PARAU","Group2"]
[null,null,null,null,null,null,null,null,null,null,null,null,null,null,null,null,null,null,null,null,604,"AUCKLAND","TITIRANGI","Group2"]
[null,null,null,null,null,null,null,null,null,null,null,null,null,null,null,null,null,null,null,null,604,"AUCKLAND","WAIATARUA","Group2"]
[null,null,null,null,null,null,null,null,null,null,null,null,null,null,null,null,null,null,null,null,610,"AUCKLAND","HENDERSON","Group2"]
[null,null,null,null,null,null,null,null,null,null,null,null,null,null,null,null,null,null,null,null,610,"AUCKLAND","MASSEY","Group2"]
[null,null,null,null,null,null,null,null,null,null,null,null,null,null,null,null,null,null,null,null,610,"AUCKLAND","TE ATATU PENINSULA","Group2"]
[null,null,null,null,null,null,null,null,null,null,null,null,null,null,null,null,null,null,null,null,610,"AUCKLAND","TE ATATU SOUTH","Group2"]
[null,null,null,null,null,null,null,null,null,null,null,null,null,null,null,null,null,null,null,null,612,"AUCKLAND","HENDERSON","Group2"]
[null,null,null,null,null,null,null,null,null,null,null,null,null,null,null,null,null,null,null,null,612,"AUCKLAND","HENDERSON VALLEY","Group2"]
[null,null,null,null,null,null,null,null,null,null,null,null,null,null,null,null,null,null,null,null,612,"AUCKLAND","RANUI","Group2"]
[null,null,null,null,null,null,null,null,null,null,null,null,null,null,null,null,null,null,null,null,612,"AUCKLAND","SUNNYVALE","Group2"]
[null,null,null,null,null,null,null,null,null,null,null,null,null,null,null,null,null,null,null,null,612,"AUCKLAND","SWANSON","Group2"]
[null,null,null,null,null,null,null,null,null,null,null,null,null,null,null,null,null,null,null,null,612,"AUCKLAND","WAIATARUA","Group2"]
[null,null,null,null,null,null,null,null,null,null,null,null,null,null,null,null,null,null,null,null,614,"AUCKLAND","SUNNYSIDE","Group2"]
[null,null,null,null,null,null,null,null,null,null,null,null,null,null,null,null,null,null,null,null,614,"AUCKLAND","HENDERSON","Group2"]
[null,null,null,null,null,null,null,null,null,null,null,null,null,null,null,null,null,null,null,null,614,"AUCKLAND","HENDERSON VALLEY","Group2"]
[null,null,null,null,null,null,null,null,null,null,null,null,null,null,null,null,null,null,null,null,614,"AUCKLAND","MASSEY","Group2"]
[null,null,null,null,null,null,null,null,null,null,null,null,null,null,null,null,null,null,null,null,614,"AUCKLAND","SUNNYSIDE","Group2"]
[null,null,null,null,null,null,null,null,null,null,null,null,null,null,null,null,null,null,null,null,614,"AUCKLAND","SWANSON","Group2"]
[null,null,null,null,null,null,null,null,null,null,null,null,null,null,null,null,null,null,null,null,614,"AUCKLAND","WAITAKERE","Group2"]
[null,null,null,null,null,null,null,null,null,null,null,null,null,null,null,null,null,null,null,null,618,"AUCKLAND","HERALD ISLAND","Group2"]
[null,null,null,null,null,null,null,null,null,null,null,null,null,null,null,null,null,null,null,null,618,"AUCKLAND","HOBSONVILLE","Group2"]
[null,null,null,null,null,null,null,null,null,null,null,null,null,null,null,null,null,null,null,null,618,"AUCKLAND","WEST HARBOUR","Group2"]
[null,null,null,null,null,null,null,null,null,null,null,null,null,null,null,null,null,null,null,null,618,"AUCKLAND","WHENUAPAI","Group2"]
[null,null,null,null,null,null,null,null,null,null,null,null,null,null,null,null,null,null,null,null,620,"AUCKLAND","CAMPBELLS BAY","Group1"]
[null,null,null,null,null,null,null,null,null,null,null,null,null,null,null,null,null,null,null,null,620,"AUCKLAND","CASTOR BAY","Group1"]
[null,null,null,null,null,null,null,null,null,null,null,null,null,null,null,null,null,null,null,null,620,"AUCKLAND","FORREST HILL","Group1"]
[null,null,null,null,null,null,null,null,null,null,null,null,null,null,null,null,null,null,null,null,620,"AUCKLAND","MILFORD","Group1"]
[null,null,null,null,null,null,null,null,null,null,null,null,null,null,null,null,null,null,null,null,620,"AUCKLAND","SUNNYNOOK","Group1"]
[null,null,null,null,null,null,null,null,null,null,null,null,null,null,null,null,null,null,null,null,620,"AUCKLAND","TAKAPUNA","Group1"]
[null,null,null,null,null,null,null,null,null,null,null,null,null,null,null,null,null,null,null,null,622,"AUCKLAND","BAYSWATER","Group1"]
[null,null,null,null,null,null,null,null,null,null,null,null,null,null,null,null,null,null,null,null,622,"AUCKLAND","BELMONT","Group1"]
[null,null,null,null,null,null,null,null,null,null,null,null,null,null,null,null,null,null,null,null,622,"AUCKLAND","HAURAKI","Group1"]
[null,null,null,null,null,null,null,null,null,null,null,null,null,null,null,null,null,null,null,null,622,"AUCKLAND","NARROW NECK","Group1"]
[null,null,null,null,null,null,null,null,null,null,null,null,null,null,null,null,null,null,null,null,622,"AUCKLAND","TAKAPUNA","Group1"]
[null,null,null,null,null,null,null,null,null,null,null,null,null,null,null,null,null,null,null,null,624,"AUCKLAND","DEVONPORT","Group1"]
[null,null,null,null,null,null,null,null,null,null,null,null,null,null,null,null,null,null,null,null,624,"AUCKLAND","NARROW NECK","Group1"]
[null,null,null,null,null,null,null,null,null,null,null,null,null,null,null,null,null,null,null,null,624,"AUCKLAND","STANLEY POINT","Group1"]
[null,null,null,null,null,null,null,null,null,null,null,null,null,null,null,null,null,null,null,null,626,"AUCKLAND","BEACH HAVEN","Group1"]
[null,null,null,null,null,null,null,null,null,null,null,null,null,null,null,null,null,null,null,null,626,"AUCKLAND","BIRKDALE","Group1"]
[null,null,null,null,null,null,null,null,null,null,null,null,null,null,null,null,null,null,null,null,626,"AUCKLAND","BIRKENHEAD","Group1"]
[null,null,null,null,null,null,null,null,null,null,null,null,null,null,null,null,null,null,null,null,626,"AUCKLAND","CHATSWOOD","Group1"]
[null,null,null,null,null,null,null,null,null,null,null,null,null,null,null,null,null,null,null,null,626,"AUCKLAND","HILLCREST","Group1"]
[null,null,null,null,null,null,null,null,null,null,null,null,null,null,null,null,null,null,null,null,626,"AUCKLAND","NORTHCOTE","Group1"]
[null,null,null,null,null,null,null,null,null,null,null,null,null,null,null,null,null,null,null,null,627,"AUCKLAND","BIRKENHEAD","Group1"]
[null,null,null,null,null,null,null,null,null,null,null,null,null,null,null,null,null,null,null,null,627,"AUCKLAND","GLENFIELD","Group1"]
[null,null,null,null,null,null,null,null,null,null,null,null,null,null,null,null,null,null,null,null,627,"AUCKLAND","HILLCREST","Group1"]
[null,null,null,null,null,null,null,null,null,null,null,null,null,null,null,null,null,null,null,null,627,"AUCKLAND","NORTHCOTE","Group1"]
[null,null,null,null,null,null,null,null,null,null,null,null,null,null,null,null,null,null,null,null,627,"AUCKLAND","NORTHCOTE POINT","Group1"]
[null,null,null,null,null,null,null,null,null,null,null,null,null,null,null,null,null,null,null,null,627,"AUCKLAND","TOTARA VALE","Group1"]
[null,null,null,null,null,null,null,null,null,null,null,null,null,null,null,null,null,null,null,null,627,"AUCKLAND","WAIRAU VALLEY","Group1"]
[null,null,null,null,null,null,null,null,null,null,null,null,null,null,null,null,null,null,null,null,629,"AUCKLAND","HILLCREST","Group1"]
[null,null,null,null,null,null,null,null,null,null,null,null,null,null,null,null,null,null,null,null,629,"AUCKLAND","BAYVIEW","Group1"]
[null,null,null,null,null,null,null,null,null,null,null,null,null,null,null,null,null,null,null,null,629,"AUCKLAND","GLENFIELD","Group1"]
[null,null,null,null,null,null,null,null,null,null,null,null,null,null,null,null,null,null,null,null,629,"AUCKLAND","HILLCREST","Group1"]
[null,null,null,null,null,null,null,null,null,null,null,null,null,null,null,null,null,null,null,null,629,"AUCKLAND","TOTARA VALE","Group1"]
[null,null,null,null,null,null,null,null,null,null,null,null,null,null,null,null,null,null,null,null,629,"AUCKLAND","WAIRAU VALLEY","Group1"]
[null,null,null,null,null,null,null,null,null,null,null,null,null,null,null,null,null,null,null,null,630,"AUCKLAND","BROWNS BAY","Group1"]
[null,null,null,null,null,null,null,null,null,null,null,null,null,null,null,null,null,null,null,null,630,"AUCKLAND","CAMPBELLS BAY","Group1"]
[null,null,null,null,null,null,null,null,null,null,null,null,null,null,null,null,null,null,null,null,630,"AUCKLAND","LONG BAY","Group1"]
[null,null,null,null,null,null,null,null,null,null,null,null,null,null,null,null,null,null,null,null,630,"AUCKLAND","MAIRANGI BAY","Group1"]
[null,null,null,null,null,null,null,null,null,null,null,null,null,null,null,null,null,null,null,null,630,"AUCKLAND","MURRAYS BAY","Group1"]
[null,null,null,null,null,null,null,null,null,null,null,null,null,null,null,null,null,null,null,null,630,"AUCKLAND","NORTHCROSS","Group1"]
[null,null,null,null,null,null,null,null,null,null,null,null,null,null,null,null,null,null,null,null,630,"AUCKLAND","OTEHA","Group1"]
[null,null,null,null,null,null,null,null,null,null,null,null,null,null,null,null,null,null,null,null,630,"AUCKLAND","PINEHILL","Group1"]
[null,null,null,null,null,null,null,null,null,null,null,null,null,null,null,null,null,null,null,null,630,"AUCKLAND","ROTHESAY BAY","Group1"]
[null,null,null,null,null,null,null,null,null,null,null,null,null,null,null,null,null,null,null,null,630,"AUCKLAND","SUNNYNOOK","Group1"]
[null,null,null,null,null,null,null,null,null,null,null,null,null,null,null,null,null,null,null,null,630,"AUCKLAND","TORBAY","Group1"]
[null,null,null,null,null,null,null,null,null,null,null,null,null,null,null,null,null,null,null,null,630,"AUCKLAND","WAIAKE","Group1"]
[null,null,null,null,null,null,null,null,null,null,null,null,null,null,null,null,null,null,null,null,630,"AUCKLAND","WINDSOR PARK","Group1"]
[null,null,null,null,null,null,null,null,null,null,null,null,null,null,null,null,null,null,null,null,632,"AUCKLAND","ALBANY","Group1"]
[null,null,null,null,null,null,null,null,null,null,null,null,null,null,null,null,null,null,null,null,632,"AUCKLAND","ALBANY HEIGHTS","Group1"]
[null,null,null,null,null,null,null,null,null,null,null,null,null,null,null,null,null,null,null,null,632,"AUCKLAND","BROWNS BAY","Group1"]
[null,null,null,null,null,null,null,null,null,null,null,null,null,null,null,null,null,null,null,null,632,"AUCKLAND","FAIRVIEW HEIGHTS","Group1"]
[null,null,null,null,null,null,null,null,null,null,null,null,null,null,null,null,null,null,null,null,632,"AUCKLAND","GREENHITHE","Group1"]
[null,null,null,null,null,null,null,null,null,null,null,null,null,null,null,null,null,null,null,null,632,"AUCKLAND","LUCAS HEIGHTS","Group1"]
[null,null,null,null,null,null,null,null,null,null,null,null,null,null,null,null,null,null,null,null,632,"AUCKLAND","NORTHCROSS","Group1"]
[null,null,null,null,null,null,null,null,null,null,null,null,null,null,null,null,null,null,null,null,632,"AUCKLAND","OTEHA","Group1"]
[null,null,null,null,null,null,null,null,null,null,null,null,null,null,null,null,null,null,null,null,632,"AUCKLAND","PAREMOREMO","Group1"]
[null,null,null,null,null,null,null,null,null,null,null,null,null,null,null,null,null,null,null,null,632,"AUCKLAND","PINEHILL","Group1"]
[null,null,null,null,null,null,null,null,null,null,null,null,null,null,null,null,null,null,null,null,632,"AUCKLAND","REDVALE","Group1"]
[null,null,null,null,null,null,null,null,null,null,null,null,null,null,null,null,null,null,null,null,632,"AUCKLAND","ROSEDALE","Group1"]
[null,null,null,null,null,null,null,null,null,null,null,null,null,null,null,null,null,null,null,null,632,"AUCKLAND","SCHNAPPER ROCK","Group1"]
[null,null,null,null,null,null,null,null,null,null,null,null,null,null,null,null,null,null,null,null,632,"AUCKLAND","SUNNYNOOK","Group1"]
[null,null,null,null,null,null,null,null,null,null,null,null,null,null,null,null,null,null,null,null,632,"AUCKLAND","TORBAY","Group1"]
[null,null,null,null,null,null,null,null,null,null,null,null,null,null,null,null,null,null,null,null,632,"AUCKLAND","TOTARA VALE","Group1"]
[null,null,null,null,null,null,null,null,null,null,null,null,null,null,null,null,null,null,null,null,632,"AUCKLAND","UNSWORTH HEIGHTS","Group1"]
[null,null,null,null,null,null,null,null,null,null,null,null,null,null,null,null,null,null,null,null,632,"AUCKLAND","WAIAKE","Group1"]
[null,null,null,null,null,null,null,null,null,null,null,null,null,null,null,null,null,null,null,null,632,"AUCKLAND","WINDSOR PARK","Group1"]
[null,null,null,null,null,null,null,null,null,null,null,null,null,null,null,null,null,null,null,null,646,"PIHA","PIHA","Group2"]
[null,null,null,null,null,null,null,null,null,null,null,null,null,null,null,null,null,null,null,null,772,"PIHA","PIHA","Group2"]
[null,null,null,null,null,null,null,null,null,null,null,null,null,null,null,null,null,null,null,null,781,"HENDERSON","BETHELLS BEACH","Group2"]
[null,null,null,null,null,null,null,null,null,null,null,null,null,null,null,null,null,null,null,null,782,"HENDERSON","HENDERSON","Group2"]
[null,null,null,null,null,null,null,null,null,null,null,null,null,null,null,null,null,null,null,null,792,"ALBANY","LONG BAY","Group1"]
[null,null,null,null,null,null,null,null,null,null,null,null,null,null,null,null,null,null,null,null,792,"ALBANY","OKURA","Group1"]
[null,null,null,null,null,null,null,null,null,null,null,null,null,null,null,null,null,null,null,null,793,"ALBANY","ALBANY NORTH","Group1"]
[null,null,null,null,null,null,null,null,null,null,null,null,null,null,null,null,null,null,null,null,794,"ALBANY","DAIRY FLAT","Group1"]
[null,null,null,null,null,null,null,null,null,null,null,null,null,null,null,null,null,null,null,null,800,"HELENSVILLE","HELENSVILLE","Group2"]
[null,null,null,null,null,null,null,null,null,null,null,null,null,null,null,null,null,null,null,null,810,"KUMEU","HUAPAI","Group2"]
[null,null,null,null,null,null,null,null,null,null,null,null,null,null,null,null,null,null,null,null,810,"KUMEU","KUMEU","Group2"]
[null,null,null,null,null,null,null,null,null,null,null,null,null,null,null,null,null,null,null,null,812,"WAIMAUKU","WAIMAUKU","Group2"]
[null,null,null,null,null,null,null,null,null,null,null,null,null,null,null,null,null,null,null,null,814,"AUCKLAND","MASSEY","Group2"]
[null,null,null,null,null,null,null,null,null,null,null,null,null,null,null,null,null,null,null,null,814,"AUCKLAND","WHENUAPAI","Group2"]
[null,null,null,null,null,null,null,null,null,null,null,null,null,null,null,null,null,null,null,null,820,"RIVERHEAD","RIVERHEAD","Group2"]
[null,null,null,null,null,null,null,null,null,null,null,null,null,null,null,null,null,null,null,null,830,"PARAKAI","PARAKAI","Group2"]
[null,null,null,null,null,null,null,null,null,null,null,null,null,null,null,null,null,null,null,null,871,"KAUKAPAKAPA","WAITOKI","Group2"]
[null,null,null,null,null,null,null,null,null,null,null,null,null,null,null,null,null,null,null,null,873,"KAUKAPAKAPA","TAHEKEROA","Group2"]
[null,null,null,null,null,null,null,null,null,null,null,null,null,null,null,null,null,null,null,null,874,"HELENSVILLE","MAIRETAHI","Group2"]
[null,null,null,null,null,null,null,null,null,null,null,null,null,null,null,null,null,null,null,null,874,"HELENSVILLE","SHELLY BEACH","Group2"]
[null,null,null,null,null,null,null,null,null,null,null,null,null,null,null,null,null,null,null,null,874,"HELENSVILLE","SOUTH HEAD","Group2"]
[null,null,null,null,null,null,null,null,null,null,null,null,null,null,null,null,null,null,null,null,874,"HELENSVILLE","WAIONEKE","Group2"]
[null,null,null,null,null,null,null,null,null,null,null,null,null,null,null,null,null,null,null,null,875,"HELENSVILLE","WHAREPAPA","Group2"]
[null,null,null,null,null,null,null,null,null,null,null,null,null,null,null,null,null,null,null,null,881,"WAIMAUKU","MURIWAI","Group2"]
[null,null,null,null,null,null,null,null,null,null,null,null,null,null,null,null,null,null,null,null,881,"WAIMAUKU","MURIWAI BEACH","Group2"]
[null,null,null,null,null,null,null,null,null,null,null,null,null,null,null,null,null,null,null,null,882,"WAIMAUKU","WAIKOUKOU VALLEY","Group2"]
[null,null,null,null,null,null,null,null,null,null,null,null,null,null,null,null,null,null,null,null,883,"WAIMAUKU","WAIMAUKU","Group2"]
[null,null,null,null,null,null,null,null,null,null,null,null,null,null,null,null,null,null,null,null,891,"KUMEU","KUMEU","Group2"]
[null,null,null,null,null,null,null,null,null,null,null,null,null,null,null,null,null,null,null,null,892,"KUMEU","KUMEU","Group2"]
[null,null,null,null,null,null,null,null,null,null,null,null,null,null,null,null,null,null,null,null,900,"WELLSFORD","WELLSFORD","Group2"]
[null,null,null,null,null,null,null,null,null,null,null,null,null,null,null,null,null,null,null,null,910,"WARKWORTH","WARKWORTH","Group2"]
[null,null,null,null,null,null,null,null,null,null,null,null,null,null,null,null,null,null,null,null,920,"SNELLS BEACH","SNELLS BEACH","Group2"]
[null,null,null,null,null,null,null,null,null,null,null,null,null,null,null,null,null,null,null,null,920,"WARKWORTH","ALGIES BAY","Group2"]
[null,null,null,null,null,null,null,null,null,null,null,null,null,null,null,null,null,null,null,null,930,"WHANGAPARAOA","ARKLES BAY","Group1"]
[null,null,null,null,null,null,null,null,null,null,null,null,null,null,null,null,null,null,null,null,930,"WHANGAPARAOA","ARMY BAY","Group1"]
[null,null,null,null,null,null,null,null,null,null,null,null,null,null,null,null,null,null,null,null,930,"WHANGAPARAOA","GULF HARBOUR","Group1"]
[null,null,null,null,null,null,null,null,null,null,null,null,null,null,null,null,null,null,null,null,930,"WHANGAPARAOA","MANLY","Group1"]
[null,null,null,null,null,null,null,null,null,null,null,null,null,null,null,null,null,null,null,null,930,"WHANGAPARAOA","MATAKATIA","Group1"]
[null,null,null,null,null,null,null,null,null,null,null,null,null,null,null,null,null,null,null,null,930,"WHANGAPARAOA","TINDALLS BEACH","Group1"]
[null,null,null,null,null,null,null,null,null,null,null,null,null,null,null,null,null,null,null,null,931,"OREWA","HATFIELDS BEACH","Group1"]
[null,null,null,null,null,null,null,null,null,null,null,null,null,null,null,null,null,null,null,null,931,"OREWA","OREWA","Group1"]
[null,null,null,null,null,null,null,null,null,null,null,null,null,null,null,null,null,null,null,null,932,"RED BEACH","SILVERDALE","Group1"]
[null,null,null,null,null,null,null,null,null,null,null,null,null,null,null,null,null,null,null,null,932,"SILVERDALE","STANMORE","Group1"]
[null,null,null,null,null,null,null,null,null,null,null,null,null,null,null,null,null,null,null,null,932,"WHANGAPARAOA","ARKLES BAY","Group1"]
[null,null,null,null,null,null,null,null,null,null,null,null,null,null,null,null,null,null,null,null,932,"WHANGAPARAOA","STANMORE BAY","Group1"]
[null,null,null,null,null,null,null,null,null,null,null,null,null,null,null,null,null,null,null,null,972,"WELLSFORD","WHANGARIPO","Group3"]
[null,null,null,null,null,null,null,null,null,null,null,null,null,null,null,null,null,null,null,null,973,"WELLSFORD","PORT ALBERT","Group3"]
[null,null,null,null,null,null,null,null,null,null,null,null,null,null,null,null,null,null,null,null,974,"WELLSFORD","TOMARATA","Group3"]
[null,null,null,null,null,null,null,null,null,null,null,null,null,null,null,null,null,null,null,null,975,"WELLSFORD","TE ARAI","Group3"]
[null,null,null,null,null,null,null,null,null,null,null,null,null,null,null,null,null,null,null,null,975,"WELLSFORD","WELLSFORD","Group3"]
[null,null,null,null,null,null,null,null,null,null,null,null,null,null,null,null,null,null,null,null,977,"WELLSFORD","TAPORA","Group3"]
[null,null,null,null,null,null,null,null,null,null,null,null,null,null,null,null,null,null,null,null,981,"WARKWORTH","KOURAWHERO","Group4"]
[null,null,null,null,null,null,null,null,null,null,null,null,null,null,null,null,null,null,null,null,982,"WARKWORTH","MAHURANGI","Group1"]
[null,null,null,null,null,null,null,null,null,null,null,null,null,null,null,null,null,null,null,null,982,"WARKWORTH","SNELLS BEACH","Group1"]
[null,null,null,null,null,null,null,null,null,null,null,null,null,null,null,null,null,null,null,null,983,"WARKWORTH","POHUEHUE","Group4"]
[null,null,null,null,null,null,null,null,null,null,null,null,null,null,null,null,null,null,null,null,984,"WARKWORTH","GLORIT","Group4"]
[null,null,null,null,null,null,null,null,null,null,null,null,null,null,null,null,null,null,null,null,985,"WARKWORTH","BIG OMAHA","Group1"]
[null,null,null,null,null,null,null,null,null,null,null,null,null,null,null,null,null,null,null,null,985,"WARKWORTH","MATAKANA","Group1"]
[null,null,null,null,null,null,null,null,null,null,null,null,null,null,null,null,null,null,null,null,986,"WARKWORTH","OMAHA","Group1"]
[null,null,null,null,null,null,null,null,null,null,null,null,null,null,null,null,null,null,null,null,986,"WARKWORTH","TAWHARANUI","Group1"]
[null,null,null,null,null,null,null,null,null,null,null,null,null,null,null,null,null,null,null,null,991,"GREAT BARRIER ISLAND","GREAT BARRIER ISLAND","Group6"]
[null,null,null,null,null,null,null,null,null,null,null,null,null,null,null,null,null,null,null,null,992,"SILVERDALE","SILVERDALE","Group1"]
[null,null,null,null,null,null,null,null,null,null,null,null,null,null,null,null,null,null,null,null,993,"SILVERDALE","STILLWATER","Group1"]
[null,null,null,null,null,null,null,null,null,null,null,null,null,null,null,null,null,null,null,null,994,"SILVERDALE","SILVERDALE","Group1"]
[null,null,null,null,null,null,null,null,null,null,null,null,null,null,null,null,null,null,null,null,1010,"AUCKLAND","AUCKLAND CENTRAL","Group1"]
[null,null,null,null,null,null,null,null,null,null,null,null,null,null,null,null,null,null,null,null,1010,"AUCKLAND","EDEN TERRACE","Group1"]
[null,null,null,null,null,null,null,null,null,null,null,null,null,null,null,null,null,null,null,null,1010,"AUCKLAND","GRAFTON","Group1"]
[null,null,null,null,null,null,null,null,null,null,null,null,null,null,null,null,null,null,null,null,1010,"AUCKLAND","GREY LYNN","Group1"]
[null,null,null,null,null,null,null,null,null,null,null,null,null,null,null,null,null,null,null,null,1010,"AUCKLAND","MECHANICS BAY","Group1"]
[null,null,null,null,null,null,null,null,null,null,null,null,null,null,null,null,null,null,null,null,1010,"AUCKLAND","PARNELL","Group1"]
[null,null,null,null,null,null,null,null,null,null,null,null,null,null,null,null,null,null,null,null,1011,"AUCKLAND","AUCKLAND CENTRAL","Group1"]
[null,null,null,null,null,null,null,null,null,null,null,null,null,null,null,null,null,null,null,null,1011,"AUCKLAND","FREEMANS BAY","Group1"]
[null,null,null,null,null,null,null,null,null,null,null,null,null,null,null,null,null,null,null,null,1011,"AUCKLAND","HERNE BAY","Group1"]
[null,null,null,null,null,null,null,null,null,null,null,null,null,null,null,null,null,null,null,null,1011,"AUCKLAND","PONSONBY","Group1"]
[null,null,null,null,null,null,null,null,null,null,null,null,null,null,null,null,null,null,null,null,1011,"AUCKLAND","SAINT MARYS BAY","Group1"]
[null,null,null,null,null,null,null,null,null,null,null,null,null,null,null,null,null,null,null,null,1021,"AUCKLAND","EDEN TERRACE","Group1"]
[null,null,null,null,null,null,null,null,null,null,null,null,null,null,null,null,null,null,null,null,1021,"AUCKLAND","GREY LYNN","Group1"]
[null,null,null,null,null,null,null,null,null,null,null,null,null,null,null,null,null,null,null,null,1021,"AUCKLAND","KINGSLAND","Group1"]
[null,null,null,null,null,null,null,null,null,null,null,null,null,null,null,null,null,null,null,null,1021,"AUCKLAND","PONSONBY","Group1"]
[null,null,null,null,null,null,null,null,null,null,null,null,null,null,null,null,null,null,null,null,1022,"AUCKLAND","GREY LYNN","Group1"]
[null,null,null,null,null,null,null,null,null,null,null,null,null,null,null,null,null,null,null,null,1022,"AUCKLAND","HERNE BAY","Group1"]
[null,null,null,null,null,null,null,null,null,null,null,null,null,null,null,null,null,null,null,null,1022,"AUCKLAND","MOUNT ALBERT","Group1"]
[null,null,null,null,null,null,null,null,null,null,null,null,null,null,null,null,null,null,null,null,1022,"AUCKLAND","POINT CHEVALIER","Group1"]
[null,null,null,null,null,null,null,null,null,null,null,null,null,null,null,null,null,null,null,null,1022,"AUCKLAND","WESTERN SPRINGS","Group1"]
[null,null,null,null,null,null,null,null,null,null,null,null,null,null,null,null,null,null,null,null,1022,"AUCKLAND","WESTMERE","Group1"]
[null,null,null,null,null,null,null,null,null,null,null,null,null,null,null,null,null,null,null,null,1023,"AUCKLAND","EPSOM","Group1"]
[null,null,null,null,null,null,null,null,null,null,null,null,null,null,null,null,null,null,null,null,1023,"AUCKLAND","GRAFTON","Group1"]
[null,null,null,null,null,null,null,null,null,null,null,null,null,null,null,null,null,null,null,null,1023,"AUCKLAND","MOUNT EDEN","Group1"]
[null,null,null,null,null,null,null,null,null,null,null,null,null,null,null,null,null,null,null,null,1023,"AUCKLAND","NEWMARKET","Group1"]
[null,null,null,null,null,null,null,null,null,null,null,null,null,null,null,null,null,null,null,null,1023,"AUCKLAND","ONEHUNGA","Group1"]
[null,null,null,null,null,null,null,null,null,null,null,null,null,null,null,null,null,null,null,null,1023,"AUCKLAND","ROYAL OAK","Group1"]
[null,null,null,null,null,null,null,null,null,null,null,null,null,null,null,null,null,null,null,null,1024,"AUCKLAND","EDEN TERRACE","Group1"]
[null,null,null,null,null,null,null,null,null,null,null,null,null,null,null,null,null,null,null,null,1024,"AUCKLAND","MOUNT EDEN","Group1"]
[null,null,null,null,null,null,null,null,null,null,null,null,null,null,null,null,null,null,null,null,1024,"AUCKLAND","THREE KINGS","Group1"]
[null,null,null,null,null,null,null,null,null,null,null,null,null,null,null,null,null,null,null,null,1025,"AUCKLAND","MOUNT ALBERT","Group1"]
[null,null,null,null,null,null,null,null,null,null,null,null,null,null,null,null,null,null,null,null,1025,"AUCKLAND","MOUNT ROSKILL","Group1"]
[null,null,null,null,null,null,null,null,null,null,null,null,null,null,null,null,null,null,null,null,1025,"AUCKLAND","POINT CHEVALIER","Group1"]
[null,null,null,null,null,null,null,null,null,null,null,null,null,null,null,null,null,null,null,null,1025,"AUCKLAND","SANDRINGHAM","Group1"]
[null,null,null,null,null,null,null,null,null,null,null,null,null,null,null,null,null,null,null,null,1026,"AUCKLAND","AVONDALE","Group1"]
[null,null,null,null,null,null,null,null,null,null,null,null,null,null,null,null,null,null,null,null,1026,"AUCKLAND","WATERVIEW","Group1"]
[null,null,null,null,null,null,null,null,null,null,null,null,null,null,null,null,null,null,null,null,1041,"AUCKLAND","MOUNT EDEN","Group1"]
[null,null,null,null,null,null,null,null,null,null,null,null,null,null,null,null,null,null,null,null,1041,"AUCKLAND","MOUNT ROSKILL","Group1"]
[null,null,null,null,null,null,null,null,null,null,null,null,null,null,null,null,null,null,null,null,1041,"AUCKLAND","SANDRINGHAM","Group1"]
[null,null,null,null,null,null,null,null,null,null,null,null,null,null,null,null,null,null,null,null,1042,"AUCKLAND","HILLSBOROUGH","Group1"]
[null,null,null,null,null,null,null,null,null,null,null,null,null,null,null,null,null,null,null,null,1042,"AUCKLAND","LYNFIELD","Group1"]
[null,null,null,null,null,null,null,null,null,null,null,null,null,null,null,null,null,null,null,null,1042,"AUCKLAND","MOUNT ROSKILL","Group1"]
[null,null,null,null,null,null,null,null,null,null,null,null,null,null,null,null,null,null,null,null,1042,"AUCKLAND","THREE KINGS","Group1"]
[null,null,null,null,null,null,null,null,null,null,null,null,null,null,null,null,null,null,null,null,1050,"AUCKLAND","ELLERSLIE","Group1"]
[null,null,null,null,null,null,null,null,null,null,null,null,null,null,null,null,null,null,null,null,1050,"AUCKLAND","REMUERA","Group1"]
[null,null,null,null,null,null,null,null,null,null,null,null,null,null,null,null,null,null,null,null,1050,"AUCKLAND","SAINT JOHNS","Group1"]
[null,null,null,null,null,null,null,null,null,null,null,null,null,null,null,null,null,null,null,null,1051,"AUCKLAND","ELLERSLIE","Group1"]
[null,null,null,null,null,null,null,null,null,null,null,null,null,null,null,null,null,null,null,null,1051,"AUCKLAND","EPSOM","Group1"]
[null,null,null,null,null,null,null,null,null,null,null,null,null,null,null,null,null,null,null,null,1051,"AUCKLAND","GREENLANE","Group1"]
[null,null,null,null,null,null,null,null,null,null,null,null,null,null,null,null,null,null,null,null,1051,"AUCKLAND","MOUNT WELLINGTON","Group1"]
[null,null,null,null,null,null,null,null,null,null,null,null,null,null,null,null,null,null,null,null,1051,"AUCKLAND","REMUERA","Group1"]
[null,null,null,null,null,null,null,null,null,null,null,null,null,null,null,null,null,null,null,null,1052,"AUCKLAND","NEWMARKET","Group1"]
[null,null,null,null,null,null,null,null,null,null,null,null,null,null,null,null,null,null,null,null,1052,"AUCKLAND","PARNELL","Group1"]
[null,null,null,null,null,null,null,null,null,null,null,null,null,null,null,null,null,null,null,null,1060,"AUCKLAND","ELLERSLIE","Group1"]
[null,null,null,null,null,null,null,null,null,null,null,null,null,null,null,null,null,null,null,null,1060,"AUCKLAND","MOUNT WELLINGTON","Group1"]
[null,null,null,null,null,null,null,null,null,null,null,null,null,null,null,null,null,null,null,null,1060,"AUCKLAND","PANMURE","Group1"]
[null,null,null,null,null,null,null,null,null,null,null,null,null,null,null,null,null,null,null,null,1060,"AUCKLAND","PENROSE","Group1"]
[null,null,null,null,null,null,null,null,null,null,null,null,null,null,null,null,null,null,null,null,1061,"AUCKLAND","ELLERSLIE","Group1"]
[null,null,null,null,null,null,null,null,null,null,null,null,null,null,null,null,null,null,null,null,1061,"AUCKLAND","GREENLANE","Group1"]
[null,null,null,null,null,null,null,null,null,null,null,null,null,null,null,null,null,null,null,null,1061,"AUCKLAND","HILLSBOROUGH","Group1"]
[null,null,null,null,null,null,null,null,null,null,null,null,null,null,null,null,null,null,null,null,1061,"AUCKLAND","ONE TREE HILL","Group1"]
[null,null,null,null,null,null,null,null,null,null,null,null,null,null,null,null,null,null,null,null,1061,"AUCKLAND","ONEHUNGA","Group1"]
[null,null,null,null,null,null,null,null,null,null,null,null,null,null,null,null,null,null,null,null,1061,"AUCKLAND","PENROSE","Group1"]
[null,null,null,null,null,null,null,null,null,null,null,null,null,null,null,null,null,null,null,null,1061,"AUCKLAND","ROYAL OAK","Group1"]
[null,null,null,null,null,null,null,null,null,null,null,null,null,null,null,null,null,null,null,null,1062,"AUCKLAND","MOUNT WELLINGTON","Group1"]
[null,null,null,null,null,null,null,null,null,null,null,null,null,null,null,null,null,null,null,null,1062,"AUCKLAND","OTAHUHU","Group1"]
[null,null,null,null,null,null,null,null,null,null,null,null,null,null,null,null,null,null,null,null,1071,"AUCKLAND","GLEN INNES","Group1"]
[null,null,null,null,null,null,null,null,null,null,null,null,null,null,null,null,null,null,null,null,1071,"AUCKLAND","GLENDOWIE","Group1"]
[null,null,null,null,null,null,null,null,null,null,null,null,null,null,null,null,null,null,null,null,1071,"AUCKLAND","KOHIMARAMA","Group1"]
[null,null,null,null,null,null,null,null,null,null,null,null,null,null,null,null,null,null,null,null,1071,"AUCKLAND","MISSION BAY","Group1"]
[null,null,null,null,null,null,null,null,null,null,null,null,null,null,null,null,null,null,null,null,1071,"AUCKLAND","ORAKEI","Group1"]
[null,null,null,null,null,null,null,null,null,null,null,null,null,null,null,null,null,null,null,null,1071,"AUCKLAND","ST HELIERS","Group1"]
[null,null,null,null,null,null,null,null,null,null,null,null,null,null,null,null,null,null,null,null,1072,"AUCKLAND","GLEN INNES","Group1"]
[null,null,null,null,null,null,null,null,null,null,null,null,null,null,null,null,null,null,null,null,1072,"AUCKLAND","MEADOWBANK","Group1"]
[null,null,null,null,null,null,null,null,null,null,null,null,null,null,null,null,null,null,null,null,1072,"AUCKLAND","MOUNT WELLINGTON","Group1"]
[null,null,null,null,null,null,null,null,null,null,null,null,null,null,null,null,null,null,null,null,1072,"AUCKLAND","PANMURE","Group1"]
[null,null,null,null,null,null,null,null,null,null,null,null,null,null,null,null,null,null,null,null,1072,"AUCKLAND","POINT ENGLAND","Group1"]
[null,null,null,null,null,null,null,null,null,null,null,null,null,null,null,null,null,null,null,null,1072,"AUCKLAND","REMUERA","Group1"]
[null,null,null,null,null,null,null,null,null,null,null,null,null,null,null,null,null,null,null,null,1072,"AUCKLAND","SAINT JOHNS","Group1"]
[null,null,null,null,null,null,null,null,null,null,null,null,null,null,null,null,null,null,null,null,1072,"AUCKLAND","ST HELIERS","Group1"]
[null,null,null,null,null,null,null,null,null,null,null,null,null,null,null,null,null,null,null,null,1072,"AUCKLAND","STONEFIELDS","Group1"]
[null,null,null,null,null,null,null,null,null,null,null,null,null,null,null,null,null,null,null,null,1081,"WAIHEKE ISLAND","OMIHA","Group1"]
[null,null,null,null,null,null,null,null,null,null,null,null,null,null,null,null,null,null,null,null,1081,"WAIHEKE ISLAND","ONEROA","Group1"]
[null,null,null,null,null,null,null,null,null,null,null,null,null,null,null,null,null,null,null,null,1081,"WAIHEKE ISLAND","ONETANGI","Group1"]
[null,null,null,null,null,null,null,null,null,null,null,null,null,null,null,null,null,null,null,null,1081,"WAIHEKE ISLAND","OSTEND","Group1"]
[null,null,null,null,null,null,null,null,null,null,null,null,null,null,null,null,null,null,null,null,1081,"WAIHEKE ISLAND","PALM BEACH","Group1"]
[null,null,null,null,null,null,null,null,null,null,null,null,null,null,null,null,null,null,null,null,1081,"WAIHEKE ISLAND","SURFDALE","Group1"]
[null,null,null,null,null,null,null,null,null,null,null,null,null,null,null,null,null,null,null,null,1971,"WAIHEKE ISLAND","WAIHEKE ISLAND","Group2"]
[null,null,null,null,null,null,null,null,null,null,null,null,null,null,null,null,null,null,null,null,2010,"AUCKLAND","BOTANY DOWNS","Group1"]
[null,null,null,null,null,null,null,null,null,null,null,null,null,null,null,null,null,null,null,null,2010,"AUCKLAND","BUCKLANDS BEACH","Group1"]
[null,null,null,null,null,null,null,null,null,null,null,null,null,null,null,null,null,null,null,null,2010,"AUCKLAND","FARM COVE","Group1"]
[null,null,null,null,null,null,null,null,null,null,null,null,null,null,null,null,null,null,null,null,2010,"AUCKLAND","HALF MOON BAY","Group1"]
[null,null,null,null,null,null,null,null,null,null,null,null,null,null,null,null,null,null,null,null,2010,"AUCKLAND","HIGHLAND PARK","Group1"]
[null,null,null,null,null,null,null,null,null,null,null,null,null,null,null,null,null,null,null,null,2010,"AUCKLAND","HOWICK","Group1"]
[null,null,null,null,null,null,null,null,null,null,null,null,null,null,null,null,null,null,null,null,2010,"AUCKLAND","PAKURANGA","Group1"]
[null,null,null,null,null,null,null,null,null,null,null,null,null,null,null,null,null,null,null,null,2010,"AUCKLAND","PAKURANGA HEIGHTS","Group1"]
[null,null,null,null,null,null,null,null,null,null,null,null,null,null,null,null,null,null,null,null,2010,"AUCKLAND","SUNNYHILLS","Group1"]
[null,null,null,null,null,null,null,null,null,null,null,null,null,null,null,null,null,null,null,null,2012,"AUCKLAND","BUCKLANDS BEACH","Group1"]
[null,null,null,null,null,null,null,null,null,null,null,null,null,null,null,null,null,null,null,null,2012,"AUCKLAND","EASTERN BEACH","Group1"]
[null,null,null,null,null,null,null,null,null,null,null,null,null,null,null,null,null,null,null,null,2012,"AUCKLAND","FARM COVE","Group1"]
[null,null,null,null,null,null,null,null,null,null,null,null,null,null,null,null,null,null,null,null,2012,"AUCKLAND","HALF MOON BAY","Group1"]
[null,null,null,null,null,null,null,null,null,null,null,null,null,null,null,null,null,null,null,null,2013,"AUCKLAND","BURSWOOD","Group1"]
[null,null,null,null,null,null,null,null,null,null,null,null,null,null,null,null,null,null,null,null,2013,"AUCKLAND","DANNEMORA","Group1"]
[null,null,null,null,null,null,null,null,null,null,null,null,null,null,null,null,null,null,null,null,2013,"AUCKLAND","EAST TAMAKI","Group1"]
[null,null,null,null,null,null,null,null,null,null,null,null,null,null,null,null,null,null,null,null,2013,"AUCKLAND","FLAT BUSH","Group1"]
[null,null,null,null,null,null,null,null,null,null,null,null,null,null,null,null,null,null,null,null,2013,"AUCKLAND","GOLFLANDS","Group1"]
[null,null,null,null,null,null,null,null,null,null,null,null,null,null,null,null,null,null,null,null,2013,"AUCKLAND","HUNTINGTON PARK","Group1"]
[null,null,null,null,null,null,null,null,null,null,null,null,null,null,null,null,null,null,null,null,2013,"AUCKLAND","NORTHPARK","Group1"]
[null,null,null,null,null,null,null,null,null,null,null,null,null,null,null,null,null,null,null,null,2013,"AUCKLAND","OTARA","Group1"]
[null,null,null,null,null,null,null,null,null,null,null,null,null,null,null,null,null,null,null,null,2013,"AUCKLAND","SHAMROCK PARK","Group1"]
[null,null,null,null,null,null,null,null,null,null,null,null,null,null,null,null,null,null,null,null,2014,"AUCKLAND","BOTANY DOWNS","Group1"]
[null,null,null,null,null,null,null,null,null,null,null,null,null,null,null,null,null,null,null,null,2014,"AUCKLAND","BUCKLANDS BEACH","Group1"]
[null,null,null,null,null,null,null,null,null,null,null,null,null,null,null,null,null,null,null,null,2014,"AUCKLAND","COCKLE BAY","Group1"]
[null,null,null,null,null,null,null,null,null,null,null,null,null,null,null,null,null,null,null,null,2014,"AUCKLAND","HOWICK","Group1"]
[null,null,null,null,null,null,null,null,null,null,null,null,null,null,null,null,null,null,null,null,2014,"AUCKLAND","MELLONS BAY","Group1"]
[null,null,null,null,null,null,null,null,null,null,null,null,null,null,null,null,null,null,null,null,2014,"AUCKLAND","NORTHPARK","Group1"]
[null,null,null,null,null,null,null,null,null,null,null,null,null,null,null,null,null,null,null,null,2014,"AUCKLAND","SHELLY PARK","Group1"]
[null,null,null,null,null,null,null,null,null,null,null,null,null,null,null,null,null,null,null,null,2014,"AUCKLAND","SOMERVILLE","Group1"]
[null,null,null,null,null,null,null,null,null,null,null,null,null,null,null,null,null,null,null,null,2016,"AUCKLAND","DANNEMORA","Group1"]
[null,null,null,null,null,null,null,null,null,null,null,null,null,null,null,null,null,null,null,null,2016,"AUCKLAND","EAST TAMAKI","Group1"]
[null,null,null,null,null,null,null,null,null,null,null,null,null,null,null,null,null,null,null,null,2016,"AUCKLAND","EAST TAMAKI HEIGHTS","Group1"]
[null,null,null,null,null,null,null,null,null,null,null,null,null,null,null,null,null,null,null,null,2016,"AUCKLAND","FLAT BUSH","Group1"]
[null,null,null,null,null,null,null,null,null,null,null,null,null,null,null,null,null,null,null,null,2016,"AUCKLAND","OTARA","Group1"]
[null,null,null,null,null,null,null,null,null,null,null,null,null,null,null,null,null,null,null,null,2016,"AUCKLAND","SHAMROCK PARK","Group1"]
[null,null,null,null,null,null,null,null,null,null,null,null,null,null,null,null,null,null,null,null,2016,"AUCKLAND","TOTARA PARK","Group1"]
[null,null,null,null,null,null,null,null,null,null,null,null,null,null,null,null,null,null,null,null,2018,"AUCKLAND","BEACHLANDS","Group1"]
[null,null,null,null,null,null,null,null,null,null,null,null,null,null,null,null,null,null,null,null,2018,"AUCKLAND","MARAETAI","Group1"]
[null,null,null,null,null,null,null,null,null,null,null,null,null,null,null,null,null,null,null,null,2022,"AUCKLAND","AUCKLAND AIRPORT","Group1"]
[null,null,null,null,null,null,null,null,null,null,null,null,null,null,null,null,null,null,null,null,2022,"AUCKLAND","MANGERE","Group1"]
[null,null,null,null,null,null,null,null,null,null,null,null,null,null,null,null,null,null,null,null,2022,"AUCKLAND","MANGERE BRIDGE","Group1"]
[null,null,null,null,null,null,null,null,null,null,null,null,null,null,null,null,null,null,null,null,2023,"AUCKLAND","CLOVER PARK","Group1"]
[null,null,null,null,null,null,null,null,null,null,null,null,null,null,null,null,null,null,null,null,2023,"AUCKLAND","FLAT BUSH","Group1"]
[null,null,null,null,null,null,null,null,null,null,null,null,null,null,null,null,null,null,null,null,2023,"AUCKLAND","GOODWOOD HEIGHTS","Group1"]
[null,null,null,null,null,null,null,null,null,null,null,null,null,null,null,null,null,null,null,null,2023,"AUCKLAND","OTARA","Group1"]
[null,null,null,null,null,null,null,null,null,null,null,null,null,null,null,null,null,null,null,null,2024,"AUCKLAND","FAVONA","Group1"]
[null,null,null,null,null,null,null,null,null,null,null,null,null,null,null,null,null,null,null,null,2024,"AUCKLAND","MANGERE EAST","Group1"]
[null,null,null,null,null,null,null,null,null,null,null,null,null,null,null,null,null,null,null,null,2024,"AUCKLAND","OTAHUHU","Group1"]
[null,null,null,null,null,null,null,null,null,null,null,null,null,null,null,null,null,null,null,null,2024,"AUCKLAND","PAPATOETOE","Group1"]
[null,null,null,null,null,null,null,null,null,null,null,null,null,null,null,null,null,null,null,null,2025,"AUCKLAND","MANGERE EAST","Group1"]
[null,null,null,null,null,null,null,null,null,null,null,null,null,null,null,null,null,null,null,null,2025,"AUCKLAND","MANUKAU","Group1"]
[null,null,null,null,null,null,null,null,null,null,null,null,null,null,null,null,null,null,null,null,2025,"AUCKLAND","OTARA","Group1"]
[null,null,null,null,null,null,null,null,null,null,null,null,null,null,null,null,null,null,null,null,2025,"AUCKLAND","PAPATOETOE","Group1"]
[null,null,null,null,null,null,null,null,null,null,null,null,null,null,null,null,null,null,null,null,2025,"AUCKLAND","WIRI","Group1"]
[null,null,null,null,null,null,null,null,null,null,null,null,null,null,null,null,null,null,null,null,2102,"AUCKLAND","MANUREWA","Group1"]
[null,null,null,null,null,null,null,null,null,null,null,null,null,null,null,null,null,null,null,null,2102,"AUCKLAND","MANUREWA EAST","Group1"]
[null,null,null,null,null,null,null,null,null,null,null,null,null,null,null,null,null,null,null,null,2102,"AUCKLAND","WATTLE DOWNS","Group1"]
[null,null,null,null,null,null,null,null,null,null,null,null,null,null,null,null,null,null,null,null,2103,"AUCKLAND","CLENDON PARK","Group1"]
[null,null,null,null,null,null,null,null,null,null,null,null,null,null,null,null,null,null,null,null,2103,"AUCKLAND","WATTLE DOWNS","Group1"]
[null,null,null,null,null,null,null,null,null,null,null,null,null,null,null,null,null,null,null,null,2103,"AUCKLAND","WEYMOUTH","Group1"]
[null,null,null,null,null,null,null,null,null,null,null,null,null,null,null,null,null,null,null,null,2104,"AUCKLAND","MANUKAU","Group1"]
[null,null,null,null,null,null,null,null,null,null,null,null,null,null,null,null,null,null,null,null,2104,"AUCKLAND","PAPATOETOE","Group1"]
[null,null,null,null,null,null,null,null,null,null,null,null,null,null,null,null,null,null,null,null,2104,"AUCKLAND","WIRI","Group1"]
[null,null,null,null,null,null,null,null,null,null,null,null,null,null,null,null,null,null,null,null,2105,"AUCKLAND","ALFRISTON","Group1"]
[null,null,null,null,null,null,null,null,null,null,null,null,null,null,null,null,null,null,null,null,2105,"AUCKLAND","CLOVER PARK","Group1"]
[null,null,null,null,null,null,null,null,null,null,null,null,null,null,null,null,null,null,null,null,2105,"AUCKLAND","FLAT BUSH","Group1"]
[null,null,null,null,null,null,null,null,null,null,null,null,null,null,null,null,null,null,null,null,2105,"AUCKLAND","GOODWOOD HEIGHTS","Group1"]
[null,null,null,null,null,null,null,null,null,null,null,null,null,null,null,null,null,null,null,null,2105,"AUCKLAND","MANUREWA","Group1"]
[null,null,null,null,null,null,null,null,null,null,null,null,null,null,null,null,null,null,null,null,2105,"AUCKLAND","RANDWICK PARK","Group1"]
[null,null,null,null,null,null,null,null,null,null,null,null,null,null,null,null,null,null,null,null,2105,"AUCKLAND","THE GARDENS","Group1"]
[null,null,null,null,null,null,null,null,null,null,null,null,null,null,null,null,null,null,null,null,2105,"AUCKLAND","TOTARA HEIGHTS","Group1"]
[null,null,null,null,null,null,null,null,null,null,null,null,null,null,null,null,null,null,null,null,2105,"AUCKLAND","TOTARA PARK","Group1"]
[null,null,null,null,null,null,null,null,null,null,null,null,null,null,null,null,null,null,null,null,2105,"TAKANINI","Takanini","Group1"]
[null,null,null,null,null,null,null,null,null,null,null,null,null,null,null,null,null,null,null,null,2110,"PAPAKURA","PAHUREHURE","Group2"]
[null,null,null,null,null,null,null,null,null,null,null,null,null,null,null,null,null,null,null,null,2110,"PAPAKURA","RED HILL","Group2"]
[null,null,null,null,null,null,null,null,null,null,null,null,null,null,null,null,null,null,null,null,2110,"TAKANINI","PAPAKURA","Group2"]
[null,null,null,null,null,null,null,null,null,null,null,null,null,null,null,null,null,null,null,null,2112,"PAPAKURA","TAKANINI","Group2"]
[null,null,null,null,null,null,null,null,null,null,null,null,null,null,null,null,null,null,null,null,2112,"TAKANINI","CONIFER GROVE","Group2"]
[null,null,null,null,null,null,null,null,null,null,null,null,null,null,null,null,null,null,null,null,2113,"DRURY","DRURY","Group2"]
[null,null,null,null,null,null,null,null,null,null,null,null,null,null,null,null,null,null,null,null,2113,"PAPAKURA","KARAKA","Group2"]
[null,null,null,null,null,null,null,null,null,null,null,null,null,null,null,null,null,null,null,null,2113,"PAPAKURA","OPAHEKE","Group2"]
[null,null,null,null,null,null,null,null,null,null,null,null,null,null,null,null,null,null,null,null,2113,"PAPAKURA","PAHUREHURE","Group2"]
[null,null,null,null,null,null,null,null,null,null,null,null,null,null,null,null,null,null,null,null,2113,"PAPAKURA","ROSEHILL","Group2"]
[null,null,null,null,null,null,null,null,null,null,null,null,null,null,null,null,null,null,null,null,2120,"PUKEKOHE","PUKEKOHE","Group2"]
[null,null,null,null,null,null,null,null,null,null,null,null,null,null,null,null,null,null,null,null,2121,"TUAKAU","TUAKAU","Group2"]
[null,null,null,null,null,null,null,null,null,null,null,null,null,null,null,null,null,null,null,null,2122,"CLARKS BEACH","CLARKS BEACH","Group2"]
[null,null,null,null,null,null,null,null,null,null,null,null,null,null,null,null,null,null,null,null,2123,"WAIUKU","WAIUKU","Group2"]
[null,null,null,null,null,null,null,null,null,null,null,null,null,null,null,null,null,null,null,null,2402,"POKENO","POKENO","Group2"]
[null,null,null,null,null,null,null,null,null,null,null,null,null,null,null,null,null,null,null,null,2471,"POKENO","POKENO","Group4"]
[null,null,null,null,null,null,null,null,null,null,null,null,null,null,null,null,null,null,null,null,2472,"POKENO","POKENO","Group4"]
[null,null,null,null,null,null,null,null,null,null,null,null,null,null,null,null,null,null,null,null,2473,"POKENO","POKENO","Group4"]
[null,null,null,null,null,null,null,null,null,null,null,null,null,null,null,null,null,null,null,null,2474,"MERCER","MERCER","Group4"]
[null,null,null,null,null,null,null,null,null,null,null,null,null,null,null,null,null,null,null,null,2571,"HOWICK","HOWICK","Group1"]
[null,null,null,null,null,null,null,null,null,null,null,null,null,null,null,null,null,null,null,null,2576,"MANUREWA","MANUREWA","Group2"]
[null,null,null,null,null,null,null,null,null,null,null,null,null,null,null,null,null,null,null,null,2577,"DRURY","DRURY","Group2"]
[null,null,null,null,null,null,null,null,null,null,null,null,null,null,null,null,null,null,null,null,2578,"DRURY","DRURY","Group2"]
[null,null,null,null,null,null,null,null,null,null,null,null,null,null,null,null,null,null,null,null,2579,"DRURY","DRURY","Group2"]
[null,null,null,null,null,null,null,null,null,null,null,null,null,null,null,null,null,null,null,null,2580,"PAPAKURA","PAPAKURA","Group2"]
[null,null,null,null,null,null,null,null,null,null,null,null,null,null,null,null,null,null,null,null,2582,"PAPAKURA","PAPAKURA","Group2"]
[null,null,null,null,null,null,null,null,null,null,null,null,null,null,null,null,null,null,null,null,2583,"PAPAKURA","PAPAKURA","Group2"]
[null,null,null,null,null,null,null,null,null,null,null,null,null,null,null,null,null,null,null,null,2584,"PAPAKURA","PAPAKURA","Group2"]
[null,null,null,null,null,null,null,null,null,null,null,null,null,null,null,null,null,null,null,null,2585,"PAPAKURA","PAPAKURA","Group2"]
[null,null,null,null,null,null,null,null,null,null,null,null,null,null,null,null,null,null,null,null,2675,"BOMBAY","BOMBAY","Group2"]
[null,null,null,null,null,null,null,null,null,null,null,null,null,null,null,null,null,null,null,null,2676,"PUKEKOHE","PUKEKOHE","Group2"]
[null,null,null,null,null,null,null,null,null,null,null,null,null,null,null,null,null,null,null,null,2677,"PUKEKOHE","PUKEKOHE","Group2"]
[null,null,null,null,null,null,null,null,null,null,null,null,null,null,null,null,null,null,null,null,2678,"PUKEKOHE","PUKEKOHE","Group2"]
[null,null,null,null,null,null,null,null,null,null,null,null,null,null,null,null,null,null,null,null,2679,"PUKEKOHE","PUKEKOHE","Group2"]
[null,null,null,null,null,null,null,null,null,null,null,null,null,null,null,null,null,null,null,null,2681,"WAIUKU","WAIUKU","Group2"]
[null,null,null,null,null,null,null,null,null,null,null,null,null,null,null,null,null,null,null,null,2682,"WAIUKU","WAIUKU","Group2"]
[null,null,null,null,null,null,null,null,null,null,null,null,null,null,null,null,null,null,null,null,2683,"WAIUKU","WAIUKU","Group2"]
[null,null,null,null,null,null,null,null,null,null,null,null,null,null,null,null,null,null,null,null,2684,"WAIUKU","WAIUKU","Group2"]
[null,null,null,null,null,null,null,null,null,null,null,null,null,null,null,null,null,null,null,null,2693,"TUAKAU","TUAKAU","Group2"]
[null,null,null,null,null,null,null,null,null,null,null,null,null,null,null,null,null,null,null,null,2694,"TUAKAU","TUAKAU","Group2"]
[null,null,null,null,null,null,null,null,null,null,null,null,null,null,null,null,null,null,null,null,2695,"TUAKAU","TUAKAU","Group2"]
[null,null,null,null,null,null,null,null,null,null,null,null,null,null,null,null,null,null,null,null,2696,"TUAKAU","TUAKAU","Group2"]
[null,null,null,null,null,null,null,null,null,null,null,null,null,null,null,null,null,null,null,null,2697,"TUAKAU","TUAKAU","Group2"]
[null,null,null,null,null,null,null,null,null,null,null,null,null,null,null,null,null,null,null,null,3010,"ROTORUA","FENTON PARK","Group3"]
[null,null,null,null,null,null,null,null,null,null,null,null,null,null,null,null,null,null,null,null,3010,"ROTORUA","GLENHOLME","Group3"]
[null,null,null,null,null,null,null,null,null,null,null,null,null,null,null,null,null,null,null,null,3010,"ROTORUA","HANNAHS BAY","Group3"]
[null,null,null,null,null,null,null,null,null,null,null,null,null,null,null,null,null,null,null,null,3010,"ROTORUA","HOLDENS BAY","Group3"]
[null,null,null,null,null,null,null,null,null,null,null,null,null,null,null,null,null,null,null,null,3010,"ROTORUA","KAWAHA POINT","Group3"]
[null,null,null,null,null,null,null,null,null,null,null,null,null,null,null,null,null,null,null,null,3010,"ROTORUA","KOUTU","Group3"]
[null,null,null,null,null,null,null,null,null,null,null,null,null,null,null,null,null,null,null,null,3010,"ROTORUA","LYNMORE","Group3"]
[null,null,null,null,null,null,null,null,null,null,null,null,null,null,null,null,null,null,null,null,3010,"ROTORUA","NGAPUNA","Group3"]
[null,null,null,null,null,null,null,null,null,null,null,null,null,null,null,null,null,null,null,null,3010,"ROTORUA","NGONGOTAHA","Group3"]
[null,null,null,null,null,null,null,null,null,null,null,null,null,null,null,null,null,null,null,null,3010,"ROTORUA","OHINEMUTU","Group3"]
[null,null,null,null,null,null,null,null,null,null,null,null,null,null,null,null,null,null,null,null,3010,"ROTORUA","OWHATA","Group3"]
[null,null,null,null,null,null,null,null,null,null,null,null,null,null,null,null,null,null,null,null,3010,"ROTORUA","ROTORUA","Group3"]
[null,null,null,null,null,null,null,null,null,null,null,null,null,null,null,null,null,null,null,null,3010,"ROTORUA","UTUHINA","Group3"]
[null,null,null,null,null,null,null,null,null,null,null,null,null,null,null,null,null,null,null,null,3010,"ROTORUA","VICTORIA","Group3"]
[null,null,null,null,null,null,null,null,null,null,null,null,null,null,null,null,null,null,null,null,3010,"ROTORUA","WHAKAREWAREWA","Group3"]
[null,null,null,null,null,null,null,null,null,null,null,null,null,null,null,null,null,null,null,null,3015,"ROTORUA","FAIRY SPRINGS","Group3"]
[null,null,null,null,null,null,null,null,null,null,null,null,null,null,null,null,null,null,null,null,3015,"ROTORUA","FORDLANDS","Group3"]
[null,null,null,null,null,null,null,null,null,null,null,null,null,null,null,null,null,null,null,null,3015,"ROTORUA","HILLCREST","Group3"]
[null,null,null,null,null,null,null,null,null,null,null,null,null,null,null,null,null,null,null,null,3015,"ROTORUA","MANGAKAKAHI","Group3"]
[null,null,null,null,null,null,null,null,null,null,null,null,null,null,null,null,null,null,null,null,3015,"ROTORUA","MATIPO HEIGHTS","Group3"]
[null,null,null,null,null,null,null,null,null,null,null,null,null,null,null,null,null,null,null,null,3015,"ROTORUA","NGONGOTAHA VALLEY","Group3"]
[null,null,null,null,null,null,null,null,null,null,null,null,null,null,null,null,null,null,null,null,3015,"ROTORUA","POMARE","Group3"]
[null,null,null,null,null,null,null,null,null,null,null,null,null,null,null,null,null,null,null,null,3015,"ROTORUA","PUKEHANGI","Group3"]
[null,null,null,null,null,null,null,null,null,null,null,null,null,null,null,null,null,null,null,null,3015,"ROTORUA","SELWYN HEIGHTS","Group3"]
[null,null,null,null,null,null,null,null,null,null,null,null,null,null,null,null,null,null,null,null,3015,"ROTORUA","SPRINGFIELD","Group3"]
[null,null,null,null,null,null,null,null,null,null,null,null,null,null,null,null,null,null,null,null,3015,"ROTORUA","SUNNYBROOK","Group3"]
[null,null,null,null,null,null,null,null,null,null,null,null,null,null,null,null,null,null,null,null,3015,"ROTORUA","TIHIOTONGA","Group3"]
[null,null,null,null,null,null,null,null,null,null,null,null,null,null,null,null,null,null,null,null,3015,"ROTORUA","UTUHINA","Group3"]
[null,null,null,null,null,null,null,null,null,null,null,null,null,null,null,null,null,null,null,null,3015,"ROTORUA","WESTBROOK","Group3"]
[null,null,null,null,null,null,null,null,null,null,null,null,null,null,null,null,null,null,null,null,3015,"ROTORUA","WESTERN HEIGHTS","Group3"]
[null,null,null,null,null,null,null,null,null,null,null,null,null,null,null,null,null,null,null,null,3020,"MAMAKU","MAMAKU","Group5"]
[null,null,null,null,null,null,null,null,null,null,null,null,null,null,null,null,null,null,null,null,3025,"MURUPARA","MARUPARA","Group5"]
[null,null,null,null,null,null,null,null,null,null,null,null,null,null,null,null,null,null,null,null,3072,"ROTORUA","ROTORUA","Group5"]
[null,null,null,null,null,null,null,null,null,null,null,null,null,null,null,null,null,null,null,null,3073,"ROTORUA","ROTORUA","Group5"]
[null,null,null,null,null,null,null,null,null,null,null,null,null,null,null,null,null,null,null,null,3074,"ROTORUA","ROTORUA","Group5"]
[null,null,null,null,null,null,null,null,null,null,null,null,null,null,null,null,null,null,null,null,3076,"ROTORUA","ROTORUA","Group5"]
[null,null,null,null,null,null,null,null,null,null,null,null,null,null,null,null,null,null,null,null,3077,"ROTORUA","ROTORUA","Group5"]
[null,null,null,null,null,null,null,null,null,null,null,null,null,null,null,null,null,null,null,null,3078,"ATIAMURI","ATIAMURI","Group5"]
[null,null,null,null,null,null,null,null,null,null,null,null,null,null,null,null,null,null,null,null,3079,"MURUPARA","MURUPARA","Group5"]
[null,null,null,null,null,null,null,null,null,null,null,null,null,null,null,null,null,null,null,null,3081,"REPOROA","REPOROA","Group5"]
[null,null,null,null,null,null,null,null,null,null,null,null,null,null,null,null,null,null,null,null,3083,"REPOROA","REPOROA","Group5"]
[null,null,null,null,null,null,null,null,null,null,null,null,null,null,null,null,null,null,null,null,3096,"ROTORUA","ROTORUA","Group5"]
[null,null,null,null,null,null,null,null,null,null,null,null,null,null,null,null,null,null,null,null,3097,"ROTORUA","ROTORUA","Group5"]
[null,null,null,null,null,null,null,null,null,null,null,null,null,null,null,null,null,null,null,null,3110,"TAURANGA","BELLEVUE","Group2"]
[null,null,null,null,null,null,null,null,null,null,null,null,null,null,null,null,null,null,null,null,3110,"TAURANGA","BETHLEHEM","Group2"]
[null,null,null,null,null,null,null,null,null,null,null,null,null,null,null,null,null,null,null,null,3110,"TAURANGA","BROOKFIELD","Group2"]
[null,null,null,null,null,null,null,null,null,null,null,null,null,null,null,null,null,null,null,null,3110,"TAURANGA","JUDEA","Group2"]
[null,null,null,null,null,null,null,null,null,null,null,null,null,null,null,null,null,null,null,null,3110,"TAURANGA","MATUA","Group2"]
[null,null,null,null,null,null,null,null,null,null,null,null,null,null,null,null,null,null,null,null,3110,"TAURANGA","OTUMOETAI","Group2"]
[null,null,null,null,null,null,null,null,null,null,null,null,null,null,null,null,null,null,null,null,3110,"TAURANGA","TAURANGA","Group2"]
[null,null,null,null,null,null,null,null,null,null,null,null,null,null,null,null,null,null,null,null,3110,"TAURANGA","TAURIKO","Group2"]
[null,null,null,null,null,null,null,null,null,null,null,null,null,null,null,null,null,null,null,null,3112,"TAURANGA","GATE PA","Group2"]
[null,null,null,null,null,null,null,null,null,null,null,null,null,null,null,null,null,null,null,null,3112,"TAURANGA","GREERTON","Group2"]
[null,null,null,null,null,null,null,null,null,null,null,null,null,null,null,null,null,null,null,null,3112,"TAURANGA","HAIRINI","Group2"]
[null,null,null,null,null,null,null,null,null,null,null,null,null,null,null,null,null,null,null,null,3112,"TAURANGA","MAUNGATAPU","Group2"]
[null,null,null,null,null,null,null,null,null,null,null,null,null,null,null,null,null,null,null,null,3112,"TAURANGA","OHAUITI","Group2"]
[null,null,null,null,null,null,null,null,null,null,null,null,null,null,null,null,null,null,null,null,3112,"TAURANGA","PARKVALE","Group2"]
[null,null,null,null,null,null,null,null,null,null,null,null,null,null,null,null,null,null,null,null,3112,"TAURANGA","POIKE","Group2"]
[null,null,null,null,null,null,null,null,null,null,null,null,null,null,null,null,null,null,null,null,3112,"TAURANGA","PYES PA","Group2"]
[null,null,null,null,null,null,null,null,null,null,null,null,null,null,null,null,null,null,null,null,3112,"TAURANGA","TAURANGA SOUTH","Group2"]
[null,null,null,null,null,null,null,null,null,null,null,null,null,null,null,null,null,null,null,null,3112,"TAURANGA","WELCOME BAY","Group2"]
[null,null,null,null,null,null,null,null,null,null,null,null,null,null,null,null,null,null,null,null,3114,"OMOKOROA","OMOKOROA","Group2"]
[null,null,null,null,null,null,null,null,null,null,null,null,null,null,null,null,null,null,null,null,3116,"MOUNT MAUNGANUI","MOUNT MAUNGANUI","Group2"]
[null,null,null,null,null,null,null,null,null,null,null,null,null,null,null,null,null,null,null,null,3116,"MOUNT MAUNGANUI","MOUNT MAUNGANUI","Group2"]
[null,null,null,null,null,null,null,null,null,null,null,null,null,null,null,null,null,null,null,null,3118,"PAPAMOA","PAPAMOA BEACH","Group2"]
[null,null,null,null,null,null,null,null,null,null,null,null,null,null,null,null,null,null,null,null,3118,"PAPAMOA","PAPAMOA DOMAIN","Group2"]
[null,null,null,null,null,null,null,null,null,null,null,null,null,null,null,null,null,null,null,null,3119,"TE PUKE","TE PUKE","Group3"]
[null,null,null,null,null,null,null,null,null,null,null,null,null,null,null,null,null,null,null,null,3120,"EDGECUMBE","EDGECUMBE","Group4"]
[null,null,null,null,null,null,null,null,null,null,null,null,null,null,null,null,null,null,null,null,3120,"WHAKATANE","COASTLANDS","Group3"]
[null,null,null,null,null,null,null,null,null,null,null,null,null,null,null,null,null,null,null,null,3120,"WHAKATANE","MARAETOTARA","Group3"]
[null,null,null,null,null,null,null,null,null,null,null,null,null,null,null,null,null,null,null,null,3120,"WHAKATANE","WHAKATANE","Group3"]
[null,null,null,null,null,null,null,null,null,null,null,null,null,null,null,null,null,null,null,null,3121,"OHOPE","OHOPE","Group3"]
[null,null,null,null,null,null,null,null,null,null,null,null,null,null,null,null,null,null,null,null,3122,"OPOTIKI","OPOTIKI","Group4"]
[null,null,null,null,null,null,null,null,null,null,null,null,null,null,null,null,null,null,null,null,3123,"TANEATUA","TANEATUA","Group4"]
[null,null,null,null,null,null,null,null,null,null,null,null,null,null,null,null,null,null,null,null,3127,"KAWERAU","KAWERAU","Group4"]
[null,null,null,null,null,null,null,null,null,null,null,null,null,null,null,null,null,null,null,null,3129,"KATIKATI","KATIKATI","Group3"]
[null,null,null,null,null,null,null,null,null,null,null,null,null,null,null,null,null,null,null,null,3171,"TAURANGA","KAIMAI","Group4"]
[null,null,null,null,null,null,null,null,null,null,null,null,null,null,null,null,null,null,null,null,3172,"TAURANGA","TAURANGA","Group4"]
[null,null,null,null,null,null,null,null,null,null,null,null,null,null,null,null,null,null,null,null,3173,"TAURANGA","OROPI","Group4"]
[null,null,null,null,null,null,null,null,null,null,null,null,null,null,null,null,null,null,null,null,3174,"TAURANGA","TE PUNA","Group2"]
[null,null,null,null,null,null,null,null,null,null,null,null,null,null,null,null,null,null,null,null,3175,"TAURANGA","WELCOME BAY","Group2"]
[null,null,null,null,null,null,null,null,null,null,null,null,null,null,null,null,null,null,null,null,3176,"TAURANGA","WHAKAMARAMA","Group3"]
[null,null,null,null,null,null,null,null,null,null,null,null,null,null,null,null,null,null,null,null,3177,"KATIKATI","TANNERS POINT","Group3"]
[null,null,null,null,null,null,null,null,null,null,null,null,null,null,null,null,null,null,null,null,3178,"KATIKATI","KATIKATI","Group3"]
[null,null,null,null,null,null,null,null,null,null,null,null,null,null,null,null,null,null,null,null,3179,"TAURANGA","WHAKAMARAMA","Group3"]
[null,null,null,null,null,null,null,null,null,null,null,null,null,null,null,null,null,null,null,null,3180,"TAURANGA","MAMAKU","Group3"]
[null,null,null,null,null,null,null,null,null,null,null,null,null,null,null,null,null,null,null,null,3182,"TE PUKE","TE PUKE","Group4"]
[null,null,null,null,null,null,null,null,null,null,null,null,null,null,null,null,null,null,null,null,3183,"TE PUKE","TE PUKE","Group4"]
[null,null,null,null,null,null,null,null,null,null,null,null,null,null,null,null,null,null,null,null,3186,"TE PUKE","PONGAKAWA","Group4"]
[null,null,null,null,null,null,null,null,null,null,null,null,null,null,null,null,null,null,null,null,3187,"TE PUKE","PAPAMOA BEACH","Group2"]
[null,null,null,null,null,null,null,null,null,null,null,null,null,null,null,null,null,null,null,null,3187,"TE PUKE","PAPAMOA DOMAIN","Group2"]
[null,null,null,null,null,null,null,null,null,null,null,null,null,null,null,null,null,null,null,null,3188,"TE PUKE","PAENGAROA","Group4"]
[null,null,null,null,null,null,null,null,null,null,null,null,null,null,null,null,null,null,null,null,3189,"TE PUKE","TE PUKE","Group4"]
[null,null,null,null,null,null,null,null,null,null,null,null,null,null,null,null,null,null,null,null,3191,"WHAKATANE","PIRIPAI","Group4"]
[null,null,null,null,null,null,null,null,null,null,null,null,null,null,null,null,null,null,null,null,3192,"WHAKATANE","THORNTON","Group4"]
[null,null,null,null,null,null,null,null,null,null,null,null,null,null,null,null,null,null,null,null,3193,"WHAKATANE","WHAKATANE","Group4"]
[null,null,null,null,null,null,null,null,null,null,null,null,null,null,null,null,null,null,null,null,3194,"WHAKATANE","WHAKATANE","Group4"]
[null,null,null,null,null,null,null,null,null,null,null,null,null,null,null,null,null,null,null,null,3196,"WAIMANA","RUATOKI","Group4"]
[null,null,null,null,null,null,null,null,null,null,null,null,null,null,null,null,null,null,null,null,3197,"OPOTIKI","OPOTIKI","Group4"]
[null,null,null,null,null,null,null,null,null,null,null,null,null,null,null,null,null,null,null,null,3198,"OPOTIKI","WAIOTAHI","Group4"]
[null,null,null,null,null,null,null,null,null,null,null,null,null,null,null,null,null,null,null,null,3199,"OPOTIKI","WAIHAU BAY","Group4"]
[null,null,null,null,null,null,null,null,null,null,null,null,null,null,null,null,null,null,null,null,3200,"HAMILTON","AVALON","Group2"]
[null,null,null,null,null,null,null,null,null,null,null,null,null,null,null,null,null,null,null,null,3200,"HAMILTON","BEERESCOURT","Group2"]
[null,null,null,null,null,null,null,null,null,null,null,null,null,null,null,null,null,null,null,null,3200,"HAMILTON","FOREST LAKE","Group2"]
[null,null,null,null,null,null,null,null,null,null,null,null,null,null,null,null,null,null,null,null,3200,"HAMILTON","GRANDVIEW HEIGHTS","Group2"]
[null,null,null,null,null,null,null,null,null,null,null,null,null,null,null,null,null,null,null,null,3200,"HAMILTON","MAEROA","Group2"]
[null,null,null,null,null,null,null,null,null,null,null,null,null,null,null,null,null,null,null,null,3200,"HAMILTON","NAWTON","Group2"]
[null,null,null,null,null,null,null,null,null,null,null,null,null,null,null,null,null,null,null,null,3200,"HAMILTON","NORTHGATE","Group2"]
[null,null,null,null,null,null,null,null,null,null,null,null,null,null,null,null,null,null,null,null,3200,"HAMILTON","PUKETE","Group2"]
[null,null,null,null,null,null,null,null,null,null,null,null,null,null,null,null,null,null,null,null,3200,"HAMILTON","ROTOKAURI","Group2"]
[null,null,null,null,null,null,null,null,null,null,null,null,null,null,null,null,null,null,null,null,3200,"HAMILTON","SAINT ANDREWS","Group2"]
[null,null,null,null,null,null,null,null,null,null,null,null,null,null,null,null,null,null,null,null,3200,"HAMILTON","TE RAPA","Group2"]
[null,null,null,null,null,null,null,null,null,null,null,null,null,null,null,null,null,null,null,null,3200,"HAMILTON","TE RAPA PARK","Group2"]
[null,null,null,null,null,null,null,null,null,null,null,null,null,null,null,null,null,null,null,null,3200,"HAMILTON","WESTERN HEIGHTS","Group2"]
[null,null,null,null,null,null,null,null,null,null,null,null,null,null,null,null,null,null,null,null,3200,"HAMILTON","WHITIORA","Group2"]
[null,null,null,null,null,null,null,null,null,null,null,null,null,null,null,null,null,null,null,null,3204,"HAMILTON","DINSDALE","Group2"]
[null,null,null,null,null,null,null,null,null,null,null,null,null,null,null,null,null,null,null,null,3204,"HAMILTON","FRANKTON","Group2"]
[null,null,null,null,null,null,null,null,null,null,null,null,null,null,null,null,null,null,null,null,3204,"HAMILTON","HAMILTON CENTRAL","Group2"]
[null,null,null,null,null,null,null,null,null,null,null,null,null,null,null,null,null,null,null,null,3204,"HAMILTON","HAMILTON LAKE","Group2"]
[null,null,null,null,null,null,null,null,null,null,null,null,null,null,null,null,null,null,null,null,3204,"HAMILTON","LIVINGSTONE","Group2"]
[null,null,null,null,null,null,null,null,null,null,null,null,null,null,null,null,null,null,null,null,3204,"HAMILTON","MELVILLE","Group2"]
[null,null,null,null,null,null,null,null,null,null,null,null,null,null,null,null,null,null,null,null,3206,"HAMILTON","BADER","Group2"]
[null,null,null,null,null,null,null,null,null,null,null,null,null,null,null,null,null,null,null,null,3206,"HAMILTON","DEANWELL","Group2"]
[null,null,null,null,null,null,null,null,null,null,null,null,null,null,null,null,null,null,null,null,3206,"HAMILTON","FITZROY","Group2"]
[null,null,null,null,null,null,null,null,null,null,null,null,null,null,null,null,null,null,null,null,3206,"HAMILTON","GLENVIEW","Group2"]
[null,null,null,null,null,null,null,null,null,null,null,null,null,null,null,null,null,null,null,null,3206,"HAMILTON","MELVILLE","Group2"]
[null,null,null,null,null,null,null,null,null,null,null,null,null,null,null,null,null,null,null,null,3210,"HAMILTON","CHARTWELL","Group2"]
[null,null,null,null,null,null,null,null,null,null,null,null,null,null,null,null,null,null,null,null,3210,"HAMILTON","CHEDWORTH","Group2"]
[null,null,null,null,null,null,null,null,null,null,null,null,null,null,null,null,null,null,null,null,3210,"HAMILTON","FAIRFIELD","Group2"]
[null,null,null,null,null,null,null,null,null,null,null,null,null,null,null,null,null,null,null,null,3210,"HAMILTON","FLAGSTAFF","Group2"]
[null,null,null,null,null,null,null,null,null,null,null,null,null,null,null,null,null,null,null,null,3210,"HAMILTON","HARROWFIELD","Group2"]
[null,null,null,null,null,null,null,null,null,null,null,null,null,null,null,null,null,null,null,null,3210,"HAMILTON","HUNTINGTON","Group2"]
[null,null,null,null,null,null,null,null,null,null,null,null,null,null,null,null,null,null,null,null,3210,"HAMILTON","QUEENWOOD","Group2"]
[null,null,null,null,null,null,null,null,null,null,null,null,null,null,null,null,null,null,null,null,3210,"HAMILTON","ROTOTUNA","Group2"]
[null,null,null,null,null,null,null,null,null,null,null,null,null,null,null,null,null,null,null,null,3210,"HAMILTON","ROTOTUNA NORTH","Group2"]
[null,null,null,null,null,null,null,null,null,null,null,null,null,null,null,null,null,null,null,null,3214,"HAMILTON","CLAUDELANDS","Group2"]
[null,null,null,null,null,null,null,null,null,null,null,null,null,null,null,null,null,null,null,null,3214,"HAMILTON","ENDERLEY","Group2"]
[null,null,null,null,null,null,null,null,null,null,null,null,null,null,null,null,null,null,null,null,3214,"HAMILTON","FAIRFIELD","Group2"]
[null,null,null,null,null,null,null,null,null,null,null,null,null,null,null,null,null,null,null,null,3214,"HAMILTON","FAIRVIEW DOWNS","Group2"]
[null,null,null,null,null,null,null,null,null,null,null,null,null,null,null,null,null,null,null,null,3214,"HAMILTON","HAMILTON EAST","Group2"]
[null,null,null,null,null,null,null,null,null,null,null,null,null,null,null,null,null,null,null,null,3214,"HAMILTON","HILLCREST","Group2"]
[null,null,null,null,null,null,null,null,null,null,null,null,null,null,null,null,null,null,null,null,3216,"HAMILTON","HAMILTON EAST","Group2"]
[null,null,null,null,null,null,null,null,null,null,null,null,null,null,null,null,null,null,null,null,3216,"HAMILTON","HILLCREST","Group2"]
[null,null,null,null,null,null,null,null,null,null,null,null,null,null,null,null,null,null,null,null,3216,"HAMILTON","RIVERLEA","Group2"]
[null,null,null,null,null,null,null,null,null,null,null,null,null,null,null,null,null,null,null,null,3216,"HAMILTON","SILVERDALE","Group2"]
[null,null,null,null,null,null,null,null,null,null,null,null,null,null,null,null,null,null,null,null,3218,"HAMILTON","TEMPLE VIEW","Group2"]
[null,null,null,null,null,null,null,null,null,null,null,null,null,null,null,null,null,null,null,null,3225,"RAGLAN","HAMILTON","Group3"]
[null,null,null,null,null,null,null,null,null,null,null,null,null,null,null,null,null,null,null,null,3225,"RAGLAN","RAGLAN","Group3"]
[null,null,null,null,null,null,null,null,null,null,null,null,null,null,null,null,null,null,null,null,3281,"HAMILTON","MORRINSVILLE","Group3"]
[null,null,null,null,null,null,null,null,null,null,null,null,null,null,null,null,null,null,null,null,3281,"HAMILTON","GORDONTON","Group3"]
[null,null,null,null,null,null,null,null,null,null,null,null,null,null,null,null,null,null,null,null,3281,"HAMILTON","HORSHAM DOWNS","Group3"]
[null,null,null,null,null,null,null,null,null,null,null,null,null,null,null,null,null,null,null,null,3282,"HAMILTON","HAMILTON","Group4"]
[null,null,null,null,null,null,null,null,null,null,null,null,null,null,null,null,null,null,null,null,3283,"HAMILTON","TAMAHERE","Group2"]
[null,null,null,null,null,null,null,null,null,null,null,null,null,null,null,null,null,null,null,null,3283,"HAMILTON","TAMAHERE","Group2"]
[null,null,null,null,null,null,null,null,null,null,null,null,null,null,null,null,null,null,null,null,3283,"HAMILTON","HAMILTON","Group2"]
[null,null,null,null,null,null,null,null,null,null,null,null,null,null,null,null,null,null,null,null,3284,"HAMILTON","TAMAHERE","Group2"]
[null,null,null,null,null,null,null,null,null,null,null,null,null,null,null,null,null,null,null,null,3284,"HAMILTON","TAMAHERE","Group2"]
[null,null,null,null,null,null,null,null,null,null,null,null,null,null,null,null,null,null,null,null,3284,"HAMILTON","EUREKA","Group2"]
[null,null,null,null,null,null,null,null,null,null,null,null,null,null,null,null,null,null,null,null,3285,"HAMILTON","HAMILTON","Group4"]
[null,null,null,null,null,null,null,null,null,null,null,null,null,null,null,null,null,null,null,null,3286,"HAMILTON","HAMILTON","Group4"]
[null,null,null,null,null,null,null,null,null,null,null,null,null,null,null,null,null,null,null,null,3287,"HAMILTON","HAMILTON","Group4"]
[null,null,null,null,null,null,null,null,null,null,null,null,null,null,null,null,null,null,null,null,3288,"HAMILTON","HAMILTON","Group4"]
[null,null,null,null,null,null,null,null,null,null,null,null,null,null,null,null,null,null,null,null,3289,"HAMILTON","HAMILTON","Group4"]
[null,null,null,null,null,null,null,null,null,null,null,null,null,null,null,null,null,null,null,null,3290,"HAMILTON","HAMILTON","Group4"]
[null,null,null,null,null,null,null,null,null,null,null,null,null,null,null,null,null,null,null,null,3293,"HAMILTON","HAMILTON","Group4"]
[null,null,null,null,null,null,null,null,null,null,null,null,null,null,null,null,null,null,null,null,3295,"RAGLAN","RAGLAN","Group3"]
[null,null,null,null,null,null,null,null,null,null,null,null,null,null,null,null,null,null,null,null,3296,"RAGLAN","RAGLAN","Group3"]
[null,null,null,null,null,null,null,null,null,null,null,null,null,null,null,null,null,null,null,null,3297,"RAGLAN","RAGLAN","Group3"]
[null,null,null,null,null,null,null,null,null,null,null,null,null,null,null,null,null,null,null,null,3300,"MORRINSVILLE","MORRINSVILLE","Group3"]
[null,null,null,null,null,null,null,null,null,null,null,null,null,null,null,null,null,null,null,null,3310,"WAITOA","WAITOA","Group4"]
[null,null,null,null,null,null,null,null,null,null,null,null,null,null,null,null,null,null,null,null,3320,"TE AROHA","TE AROHA","Group3"]
[null,null,null,null,null,null,null,null,null,null,null,null,null,null,null,null,null,null,null,null,3330,"TAUPO","ACACIA BAY","Group3"]
[null,null,null,null,null,null,null,null,null,null,null,null,null,null,null,null,null,null,null,null,3330,"TAUPO","HILLTOP","Group3"]
[null,null,null,null,null,null,null,null,null,null,null,null,null,null,null,null,null,null,null,null,3330,"TAUPO","NUKUHAU","Group3"]
[null,null,null,null,null,null,null,null,null,null,null,null,null,null,null,null,null,null,null,null,3330,"TAUPO","RAINBOW POINT","Group3"]
[null,null,null,null,null,null,null,null,null,null,null,null,null,null,null,null,null,null,null,null,3330,"TAUPO","RANGATIRA PARK","Group3"]
[null,null,null,null,null,null,null,null,null,null,null,null,null,null,null,null,null,null,null,null,3330,"TAUPO","RICHMOND HEIGHTS","Group3"]
[null,null,null,null,null,null,null,null,null,null,null,null,null,null,null,null,null,null,null,null,3330,"TAUPO","TAUHARA","Group3"]
[null,null,null,null,null,null,null,null,null,null,null,null,null,null,null,null,null,null,null,null,3330,"TAUPO","TAUPO","Group3"]
[null,null,null,null,null,null,null,null,null,null,null,null,null,null,null,null,null,null,null,null,3330,"TAUPO","TWO MILE BAY","Group3"]
[null,null,null,null,null,null,null,null,null,null,null,null,null,null,null,null,null,null,null,null,3330,"TAUPO","WAIPAHIHI","Group3"]
[null,null,null,null,null,null,null,null,null,null,null,null,null,null,null,null,null,null,null,null,3330,"TAUPO","WHAREWAKA","Group3"]
[null,null,null,null,null,null,null,null,null,null,null,null,null,null,null,null,null,null,null,null,3332,"TAUPO","WAIRAKEI","Group4"]
[null,null,null,null,null,null,null,null,null,null,null,null,null,null,null,null,null,null,null,null,3334,"TURANGI","TURANGI","Group4"]
[null,null,null,null,null,null,null,null,null,null,null,null,null,null,null,null,null,null,null,null,3371,"MORRINSVILLE","MORRINSVILLE","Group4"]
[null,null,null,null,null,null,null,null,null,null,null,null,null,null,null,null,null,null,null,null,3372,"MORRINSVILLE","MORRINSVILLE","Group4"]
[null,null,null,null,null,null,null,null,null,null,null,null,null,null,null,null,null,null,null,null,3373,"MORRINSVILLE","MORRINSVILLE","Group4"]
[null,null,null,null,null,null,null,null,null,null,null,null,null,null,null,null,null,null,null,null,3374,"WAITOA","NGARUA","Group4"]
[null,null,null,null,null,null,null,null,null,null,null,null,null,null,null,null,null,null,null,null,3374,"WAITOA","NGARUA","Group4"]
[null,null,null,null,null,null,null,null,null,null,null,null,null,null,null,null,null,null,null,null,3374,"MORRINSVILLE","MORRINSVILLE","Group4"]
[null,null,null,null,null,null,null,null,null,null,null,null,null,null,null,null,null,null,null,null,3375,"MORRINSVILLE","MORRINSVILLE","Group4"]
[null,null,null,null,null,null,null,null,null,null,null,null,null,null,null,null,null,null,null,null,3377,"TAUPO","ORUANUI","Group4"]
[null,null,null,null,null,null,null,null,null,null,null,null,null,null,null,null,null,null,null,null,3377,"TAUPO","ORUANUI","Group4"]
[null,null,null,null,null,null,null,null,null,null,null,null,null,null,null,null,null,null,null,null,3377,"TAUPO","KINLOCH","Group4"]
[null,null,null,null,null,null,null,null,null,null,null,null,null,null,null,null,null,null,null,null,3378,"TAUPO","WAITAHANUI","Group4"]
[null,null,null,null,null,null,null,null,null,null,null,null,null,null,null,null,null,null,null,null,3379,"TAUPO","TAUPO","Group4"]
[null,null,null,null,null,null,null,null,null,null,null,null,null,null,null,null,null,null,null,null,3380,"WAITOA","WAITOA","Group4"]
[null,null,null,null,null,null,null,null,null,null,null,null,null,null,null,null,null,null,null,null,3381,"TURANGI","TOKAANU","Group4"]
[null,null,null,null,null,null,null,null,null,null,null,null,null,null,null,null,null,null,null,null,3382,"TURANGI","TURANGI","Group4"]
[null,null,null,null,null,null,null,null,null,null,null,null,null,null,null,null,null,null,null,null,3384,"TAUPO","TAUPO","Group4"]
[null,null,null,null,null,null,null,null,null,null,null,null,null,null,null,null,null,null,null,null,3385,"TAUPO","TAUPO","Group4"]
[null,null,null,null,null,null,null,null,null,null,null,null,null,null,null,null,null,null,null,null,3391,"TE AROHA","MANAWARU","Group4"]
[null,null,null,null,null,null,null,null,null,null,null,null,null,null,null,null,null,null,null,null,3392,"TE AROHA","ELSTOW","Group4"]
[null,null,null,null,null,null,null,null,null,null,null,null,null,null,null,null,null,null,null,null,3393,"TE AROHA","WAIHOU","Group4"]
[null,null,null,null,null,null,null,null,null,null,null,null,null,null,null,null,null,null,null,null,3400,"MATAMATA","MATAMATA","Group3"]
[null,null,null,null,null,null,null,null,null,null,null,null,null,null,null,null,null,null,null,null,3401,"WAHAROA","WAHAROA","Group4"]
[null,null,null,null,null,null,null,null,null,null,null,null,null,null,null,null,null,null,null,null,3410,"TIRAU","TIRAU","Group4"]
[null,null,null,null,null,null,null,null,null,null,null,null,null,null,null,null,null,null,null,null,3411,"PUTARURU","PUTARURU","Group4"]
[null,null,null,null,null,null,null,null,null,null,null,null,null,null,null,null,null,null,null,null,3415,"PUTARURU","ARAPUNI","Group4"]
[null,null,null,null,null,null,null,null,null,null,null,null,null,null,null,null,null,null,null,null,3420,"TOKOROA","TOKOROA","Group4"]
[null,null,null,null,null,null,null,null,null,null,null,null,null,null,null,null,null,null,null,null,3421,"MANGAKINO","MANGAKINO","Group4"]
[null,null,null,null,null,null,null,null,null,null,null,null,null,null,null,null,null,null,null,null,3432,"CAMBRIDGE","LEAMINGTON","Group3"]
[null,null,null,null,null,null,null,null,null,null,null,null,null,null,null,null,null,null,null,null,3434,"CAMBRIDGE","CAMBRIDGE","Group3"]
[null,null,null,null,null,null,null,null,null,null,null,null,null,null,null,null,null,null,null,null,3471,"MATAMATA","TURANGAOMOANA","Group4"]
[null,null,null,null,null,null,null,null,null,null,null,null,null,null,null,null,null,null,null,null,3472,"MATAMATA","MATAI","Group4"]
[null,null,null,null,null,null,null,null,null,null,null,null,null,null,null,null,null,null,null,null,3473,"MATAMATA","TE POI","Group4"]
[null,null,null,null,null,null,null,null,null,null,null,null,null,null,null,null,null,null,null,null,3474,"WAHAROA","WAHAROA","Group4"]
[null,null,null,null,null,null,null,null,null,null,null,null,null,null,null,null,null,null,null,null,3475,"WALTON","WALTON","Group4"]
[null,null,null,null,null,null,null,null,null,null,null,null,null,null,null,null,null,null,null,null,3481,"PUTARURU","WAOTU","Group4"]
[null,null,null,null,null,null,null,null,null,null,null,null,null,null,null,null,null,null,null,null,3482,"PUTARURU","LINCHFIELD","Group4"]
[null,null,null,null,null,null,null,null,null,null,null,null,null,null,null,null,null,null,null,null,3483,"PUTARURU","PINEDALE","Group4"]
[null,null,null,null,null,null,null,null,null,null,null,null,null,null,null,null,null,null,null,null,3484,"TIRAU","PIARERE","Group4"]
[null,null,null,null,null,null,null,null,null,null,null,null,null,null,null,null,null,null,null,null,3485,"TIRAU","OKOROIRE","Group4"]
[null,null,null,null,null,null,null,null,null,null,null,null,null,null,null,null,null,null,null,null,3491,"TOKOROA","KINLEITH","Group4"]
[null,null,null,null,null,null,null,null,null,null,null,null,null,null,null,null,null,null,null,null,3492,"MANGAKINO","WHAKAMARU","Group4"]
[null,null,null,null,null,null,null,null,null,null,null,null,null,null,null,null,null,null,null,null,3492,"MANGAKINO","WHAKAMARU","Group4"]
[null,null,null,null,null,null,null,null,null,null,null,null,null,null,null,null,null,null,null,null,3492,"MANGAKINO","MANGAKINO","Group4"]
[null,null,null,null,null,null,null,null,null,null,null,null,null,null,null,null,null,null,null,null,3493,"CAMBRIDGE","BRUNTWOOD","Group4"]
[null,null,null,null,null,null,null,null,null,null,null,null,null,null,null,null,null,null,null,null,3494,"CAMBRIDGE","KARAPIRO","Group4"]
[null,null,null,null,null,null,null,null,null,null,null,null,null,null,null,null,null,null,null,null,3495,"CAMBRIDGE","PUEKURA","Group4"]
[null,null,null,null,null,null,null,null,null,null,null,null,null,null,null,null,null,null,null,null,3496,"CAMBRIDGE","WHITEHALL","Group4"]
[null,null,null,null,null,null,null,null,null,null,null,null,null,null,null,null,null,null,null,null,3500,"THAMES","THAMES","Group4"]
[null,null,null,null,null,null,null,null,null,null,null,null,null,null,null,null,null,null,null,null,3503,"NGATEA","NGATEA","Group4"]
[null,null,null,null,null,null,null,null,null,null,null,null,null,null,null,null,null,null,null,null,3506,"COROMANDEL","PREECE POINT","Group3"]
[null,null,null,null,null,null,null,null,null,null,null,null,null,null,null,null,null,null,null,null,3508,"TAIRUA","TAIRUA","Group3"]
[null,null,null,null,null,null,null,null,null,null,null,null,null,null,null,null,null,null,null,null,3510,"WHITIANGA","WHITIANGA","Group3"]
[null,null,null,null,null,null,null,null,null,null,null,null,null,null,null,null,null,null,null,null,3574,"THAMES","KOPUARAHI","Group4"]
[null,null,null,null,null,null,null,null,null,null,null,null,null,null,null,null,null,null,null,null,3575,"THAMES","THAMES","Group4"]
[null,null,null,null,null,null,null,null,null,null,null,null,null,null,null,null,null,null,null,null,3576,"THAMES","MIRANDA","Group4"]
[null,null,null,null,null,null,null,null,null,null,null,null,null,null,null,null,null,null,null,null,3577,"THAMES","KAUAERANGA","Group4"]
[null,null,null,null,null,null,null,null,null,null,null,null,null,null,null,null,null,null,null,null,3578,"THAMES","MATATOKI","Group4"]
[null,null,null,null,null,null,null,null,null,null,null,null,null,null,null,null,null,null,null,null,3579,"HIKUAI","HIKUAI","Group4"]
[null,null,null,null,null,null,null,null,null,null,null,null,null,null,null,null,null,null,null,null,3579,"PAUANUI","HIKUAI","Group4"]
[null,null,null,null,null,null,null,null,null,null,null,null,null,null,null,null,null,null,null,null,3581,"COROMANDEL","MANAIA","Group4"]
[null,null,null,null,null,null,null,null,null,null,null,null,null,null,null,null,null,null,null,null,3582,"COROMANDEL","WHANGAPOUA","Group4"]
[null,null,null,null,null,null,null,null,null,null,null,null,null,null,null,null,null,null,null,null,3583,"COROMANDEL","KENNEDY BAY","Group4"]
[null,null,null,null,null,null,null,null,null,null,null,null,null,null,null,null,null,null,null,null,3584,"COROMANDEL","PORT CHARLES","Group4"]
[null,null,null,null,null,null,null,null,null,null,null,null,null,null,null,null,null,null,null,null,3591,"WHITIANGA","HOT WATER BEACH","Group3"]
[null,null,null,null,null,null,null,null,null,null,null,null,null,null,null,null,null,null,null,null,3592,"WHITIANGA","WHITIANGA","Group4"]
[null,null,null,null,null,null,null,null,null,null,null,null,null,null,null,null,null,null,null,null,3597,"NGATEA","NGATEA","Group4"]
[null,null,null,null,null,null,null,null,null,null,null,null,null,null,null,null,null,null,null,null,3600,"PAEROA","PAEROA","Group4"]
[null,null,null,null,null,null,null,null,null,null,null,null,null,null,null,null,null,null,null,null,3610,"WAIHI","WAIHI","Group4"]
[null,null,null,null,null,null,null,null,null,null,null,null,null,null,null,null,null,null,null,null,3611,"WAIHI BEACH","WAIHI BEACH","Group3"]
[null,null,null,null,null,null,null,null,null,null,null,null,null,null,null,null,null,null,null,null,3620,"WHANGAMATA","WHANGAMATA","Group3"]
[null,null,null,null,null,null,null,null,null,null,null,null,null,null,null,null,null,null,null,null,3671,"PAEROA","NETHERTON","Group5"]
[null,null,null,null,null,null,null,null,null,null,null,null,null,null,null,null,null,null,null,null,3672,"PAEROA","AWAITI","Group5"]
[null,null,null,null,null,null,null,null,null,null,null,null,null,null,null,null,null,null,null,null,3673,"PAEROA","PAEROA","Group4"]
[null,null,null,null,null,null,null,null,null,null,null,null,null,null,null,null,null,null,null,null,3674,"PAEROA","PAEROA","Group4"]
[null,null,null,null,null,null,null,null,null,null,null,null,null,null,null,null,null,null,null,null,3681,"WAIHI","GOLDEN VALLEY","Group5"]
[null,null,null,null,null,null,null,null,null,null,null,null,null,null,null,null,null,null,null,null,3682,"WAIHI","WAITAWHETA","Group5"]
[null,null,null,null,null,null,null,null,null,null,null,null,null,null,null,null,null,null,null,null,3691,"WHANGAMATA","WHANGAMATA","Group3"]
[null,null,null,null,null,null,null,null,null,null,null,null,null,null,null,null,null,null,null,null,3700,"HUNTLY","HUNTLY","Group4"]
[null,null,null,null,null,null,null,null,null,null,null,null,null,null,null,null,null,null,null,null,3710,"TE KAUWHATA","TE KAUWHATA","Group3"]
[null,null,null,null,null,null,null,null,null,null,null,null,null,null,null,null,null,null,null,null,3720,"NGARUAWAHIA","NGARUAWAHIA","Group3"]
[null,null,null,null,null,null,null,null,null,null,null,null,null,null,null,null,null,null,null,null,3720,"NGARUAWAHIA","TAUPIRI","Group3"]
[null,null,null,null,null,null,null,null,null,null,null,null,null,null,null,null,null,null,null,null,3721,"TAUPIRI","TAUPIRI","Group3"]
[null,null,null,null,null,null,null,null,null,null,null,null,null,null,null,null,null,null,null,null,3771,"HUNTLY","HUNTLY","Group4"]
[null,null,null,null,null,null,null,null,null,null,null,null,null,null,null,null,null,null,null,null,3772,"HUNTLY","HUNTLY","Group4"]
[null,null,null,null,null,null,null,null,null,null,null,null,null,null,null,null,null,null,null,null,3781,"TE KAUWHATA","TE KAUWHATA","Group4"]
[null,null,null,null,null,null,null,null,null,null,null,null,null,null,null,null,null,null,null,null,3782,"TE KAUWHATA","TE KAUWHATA","Group4"]
[null,null,null,null,null,null,null,null,null,null,null,null,null,null,null,null,null,null,null,null,3784,"OHINEWAI","OHINEWAI","Group4"]
[null,null,null,null,null,null,null,null,null,null,null,null,null,null,null,null,null,null,null,null,3791,"TAUPIRI","TAUPIRI","Group4"]
[null,null,null,null,null,null,null,null,null,null,null,null,null,null,null,null,null,null,null,null,3792,"TAUPIRI","TAUPIRI","Group4"]
[null,null,null,null,null,null,null,null,null,null,null,null,null,null,null,null,null,null,null,null,3793,"NGARUAWAHIA","NGARUAWAHIA","Group4"]
[null,null,null,null,null,null,null,null,null,null,null,null,null,null,null,null,null,null,null,null,3794,"NGARUAWAHIA","NGARUAWAHIA","Group4"]
[null,null,null,null,null,null,null,null,null,null,null,null,null,null,null,null,null,null,null,null,3800,"TE AWAMUTU","KIHIKIHI","Group3"]
[null,null,null,null,null,null,null,null,null,null,null,null,null,null,null,null,null,null,null,null,3800,"TE AWAMUTU","TE AWAMUTU","Group3"]
[null,null,null,null,null,null,null,null,null,null,null,null,null,null,null,null,null,null,null,null,3802,"PIRONGIA","PIRONGIA","Group4"]
[null,null,null,null,null,null,null,null,null,null,null,null,null,null,null,null,null,null,null,null,3803,"OHAUPO","OHAUPO","Group4"]
[null,null,null,null,null,null,null,null,null,null,null,null,null,null,null,null,null,null,null,null,3872,"TE AWAMUTU","ORAKAU","Group4"]
[null,null,null,null,null,null,null,null,null,null,null,null,null,null,null,null,null,null,null,null,3873,"TE AWAMUTU","TE KAWA","Group4"]
[null,null,null,null,null,null,null,null,null,null,null,null,null,null,null,null,null,null,null,null,3873,"TE AWAMUTU","TE KAWA","Group4"]
[null,null,null,null,null,null,null,null,null,null,null,null,null,null,null,null,null,null,null,null,3873,"TE AWAMUTU","NGAHAPE","Group4"]
[null,null,null,null,null,null,null,null,null,null,null,null,null,null,null,null,null,null,null,null,3874,"TE AWAMUTU","WAIKERIA","Group4"]
[null,null,null,null,null,null,null,null,null,null,null,null,null,null,null,null,null,null,null,null,3875,"TE AWAMUTU","TOKANUI","Group4"]
[null,null,null,null,null,null,null,null,null,null,null,null,null,null,null,null,null,null,null,null,3876,"TE AWAMUTU","TE TAHI","Group4"]
[null,null,null,null,null,null,null,null,null,null,null,null,null,null,null,null,null,null,null,null,3877,"TE AWAMUTU","AROHENA","Group4"]
[null,null,null,null,null,null,null,null,null,null,null,null,null,null,null,null,null,null,null,null,3878,"TE AWAMUTU","TE RAUAMOA","Group4"]
[null,null,null,null,null,null,null,null,null,null,null,null,null,null,null,null,null,null,null,null,3879,"TE AWAMUTU","PUAHUE","Group4"]
[null,null,null,null,null,null,null,null,null,null,null,null,null,null,null,null,null,null,null,null,3880,"PUKEATUA","PUKEATUA","Group4"]
[null,null,null,null,null,null,null,null,null,null,null,null,null,null,null,null,null,null,null,null,3881,"OHAUPO","KAIPAKI","Group4"]
[null,null,null,null,null,null,null,null,null,null,null,null,null,null,null,null,null,null,null,null,3882,"OHAUPO","NGAHINAPOURI","Group4"]
[null,null,null,null,null,null,null,null,null,null,null,null,null,null,null,null,null,null,null,null,3883,"OHAUPO","NGAROTO","Group4"]
[null,null,null,null,null,null,null,null,null,null,null,null,null,null,null,null,null,null,null,null,3885,"OPARAU","OPARAU","Group4"]
[null,null,null,null,null,null,null,null,null,null,null,null,null,null,null,null,null,null,null,null,3886,"OPARAU","OPARAU","Group4"]
[null,null,null,null,null,null,null,null,null,null,null,null,null,null,null,null,null,null,null,null,3889,"KAWHIA","KAWHIA","Group4"]
[null,null,null,null,null,null,null,null,null,null,null,null,null,null,null,null,null,null,null,null,3894,"TE MATA","TE MATA","Group4"]
[null,null,null,null,null,null,null,null,null,null,null,null,null,null,null,null,null,null,null,null,3895,"TE MATA","TE MATA","Group4"]
[null,null,null,null,null,null,null,null,null,null,null,null,null,null,null,null,null,null,null,null,3900,"OTOROHANGA","OTOROHANGA","Group4"]
[null,null,null,null,null,null,null,null,null,null,null,null,null,null,null,null,null,null,null,null,3910,"TE KUITI","TE KUITI","Group4"]
[null,null,null,null,null,null,null,null,null,null,null,null,null,null,null,null,null,null,null,null,3912,"PIOPIO","PIOPIO","Group5"]
[null,null,null,null,null,null,null,null,null,null,null,null,null,null,null,null,null,null,null,null,3920,"TAUMARUNUI","TAUMARUNUI","Group4"]
[null,null,null,null,null,null,null,null,null,null,null,null,null,null,null,null,null,null,null,null,3924,"TAUMARUNUI","MANUNUI","Group4"]
[null,null,null,null,null,null,null,null,null,null,null,null,null,null,null,null,null,null,null,null,3926,"OHURA","OHURA","Group5"]
[null,null,null,null,null,null,null,null,null,null,null,null,null,null,null,null,null,null,null,null,3970,"PIOPIO","TONGARIRO","Group5"]
[null,null,null,null,null,null,null,null,null,null,null,null,null,null,null,null,null,null,null,null,3971,"PIOPIO","PIOPIO","Group5"]
[null,null,null,null,null,null,null,null,null,null,null,null,null,null,null,null,null,null,null,null,3972,"OTOROHANGA","MAIHIHI","Group5"]
[null,null,null,null,null,null,null,null,null,null,null,null,null,null,null,null,null,null,null,null,3973,"OTOROHANGA","OTOROHANGA","Group4"]
[null,null,null,null,null,null,null,null,null,null,null,null,null,null,null,null,null,null,null,null,3974,"OTOROHANGA","KIOKIO","Group5"]
[null,null,null,null,null,null,null,null,null,null,null,null,null,null,null,null,null,null,null,null,3975,"OTOROHANGA","REWAREWA","Group5"]
[null,null,null,null,null,null,null,null,null,null,null,null,null,null,null,null,null,null,null,null,3976,"OTOROHANGA","OTOROHANGA","Group5"]
[null,null,null,null,null,null,null,null,null,null,null,null,null,null,null,null,null,null,null,null,3977,"OTOROHANGA","WAITOMO CAVES","Group5"]
[null,null,null,null,null,null,null,null,null,null,null,null,null,null,null,null,null,null,null,null,3978,"MAHOENUI","MAHOENUI","Group5"]
[null,null,null,null,null,null,null,null,null,null,null,null,null,null,null,null,null,null,null,null,3979,"ARIA","ARIA","Group5"]
[null,null,null,null,null,null,null,null,null,null,null,null,null,null,null,null,null,null,null,null,3980,"OHURA","TATU","Group5"]
[null,null,null,null,null,null,null,null,null,null,null,null,null,null,null,null,null,null,null,null,3981,"TE KUITI","TE KUITI","Group4"]
[null,null,null,null,null,null,null,null,null,null,null,null,null,null,null,null,null,null,null,null,3982,"TE KUITI","TE KUITI","Group4"]
[null,null,null,null,null,null,null,null,null,null,null,null,null,null,null,null,null,null,null,null,3983,"TE KUITI","TE KUITI","Group4"]
[null,null,null,null,null,null,null,null,null,null,null,null,null,null,null,null,null,null,null,null,3985,"TE KUITI","TE KUITI","Group4"]
[null,null,null,null,null,null,null,null,null,null,null,null,null,null,null,null,null,null,null,null,3986,"TE KUITI","TE KUITI","Group4"]
[null,null,null,null,null,null,null,null,null,null,null,null,null,null,null,null,null,null,null,null,3987,"TE KUITI","TE KUITI","Group4"]
[null,null,null,null,null,null,null,null,null,null,null,null,null,null,null,null,null,null,null,null,3988,"TE KUITI","TE KUITI","Group4"]
[null,null,null,null,null,null,null,null,null,null,null,null,null,null,null,null,null,null,null,null,3989,"OWHANGO","OWHANGO","Group5"]
[null,null,null,null,null,null,null,null,null,null,null,null,null,null,null,null,null,null,null,null,3990,"OWHANGO","OWHANGO","Group6"]
[null,null,null,null,null,null,null,null,null,null,null,null,null,null,null,null,null,null,null,null,3991,"TAUMARUNUI","TAUMARUNUI","Group5"]
[null,null,null,null,null,null,null,null,null,null,null,null,null,null,null,null,null,null,null,null,3992,"TAUMARUNUI","TAUMARUNUI","Group5"]
[null,null,null,null,null,null,null,null,null,null,null,null,null,null,null,null,null,null,null,null,3993,"TAUMARUNUI","TAUMARUNUI","Group5"]
[null,null,null,null,null,null,null,null,null,null,null,null,null,null,null,null,null,null,null,null,3994,"TAUMARUNUI","TAUMARUNUI","Group5"]
[null,null,null,null,null,null,null,null,null,null,null,null,null,null,null,null,null,null,null,null,3995,"MATIERE","MATIERE","Group5"]
[null,null,null,null,null,null,null,null,null,null,null,null,null,null,null,null,null,null,null,null,3996,"TAUMARUNUI","TAUMARANUI","Group5"]
[null,null,null,null,null,null,null,null,null,null,null,null,null,null,null,null,null,null,null,null,3997,"ONGARUE","ONGARUE","Group5"]
[null,null,null,null,null,null,null,null,null,null,null,null,null,null,null,null,null,null,null,null,3998,"WAIMIHA","WAIMIHA","Group5"]
[null,null,null,null,null,null,null,null,null,null,null,null,null,null,null,null,null,null,null,null,4010,"GISBORNE","AWAPUNI","Group4"]
[null,null,null,null,null,null,null,null,null,null,null,null,null,null,null,null,null,null,null,null,4010,"GISBORNE","ELGIN","Group4"]
[null,null,null,null,null,null,null,null,null,null,null,null,null,null,null,null,null,null,null,null,4010,"GISBORNE","GISBORNE","Group4"]
[null,null,null,null,null,null,null,null,null,null,null,null,null,null,null,null,null,null,null,null,4010,"GISBORNE","INNER KAITI","Group4"]
[null,null,null,null,null,null,null,null,null,null,null,null,null,null,null,null,null,null,null,null,4010,"GISBORNE","KAITI","Group4"]
[null,null,null,null,null,null,null,null,null,null,null,null,null,null,null,null,null,null,null,null,4010,"GISBORNE","LYTTON WEST","Group4"]
[null,null,null,null,null,null,null,null,null,null,null,null,null,null,null,null,null,null,null,null,4010,"GISBORNE","MAKARAKA","Group4"]
[null,null,null,null,null,null,null,null,null,null,null,null,null,null,null,null,null,null,null,null,4010,"GISBORNE","MANGAPAPA","Group4"]
[null,null,null,null,null,null,null,null,null,null,null,null,null,null,null,null,null,null,null,null,4010,"GISBORNE","OKITU","Group4"]
[null,null,null,null,null,null,null,null,null,null,null,null,null,null,null,null,null,null,null,null,4010,"GISBORNE","OUTER KAITI","Group4"]
[null,null,null,null,null,null,null,null,null,null,null,null,null,null,null,null,null,null,null,null,4010,"GISBORNE","RIVERDALE","Group4"]
[null,null,null,null,null,null,null,null,null,null,null,null,null,null,null,null,null,null,null,null,4010,"GISBORNE","TAMARAU","Group4"]
[null,null,null,null,null,null,null,null,null,null,null,null,null,null,null,null,null,null,null,null,4010,"GISBORNE","TE HAPARA","Group4"]
[null,null,null,null,null,null,null,null,null,null,null,null,null,null,null,null,null,null,null,null,4010,"GISBORNE","WAINUI","Group4"]
[null,null,null,null,null,null,null,null,null,null,null,null,null,null,null,null,null,null,null,null,4010,"GISBORNE","WHATAUPOKO","Group4"]
[null,null,null,null,null,null,null,null,null,null,null,null,null,null,null,null,null,null,null,null,4022,"TE KARAKA","TE KARAKA","Group5"]
[null,null,null,null,null,null,null,null,null,null,null,null,null,null,null,null,null,null,null,null,4032,"RUATORIA","RUATORIA","Group5"]
[null,null,null,null,null,null,null,null,null,null,null,null,null,null,null,null,null,null,null,null,4071,"GISBORNE","GISBORNE","Group5"]
[null,null,null,null,null,null,null,null,null,null,null,null,null,null,null,null,null,null,null,null,4072,"GISBORNE","GISBORNE","Group5"]
[null,null,null,null,null,null,null,null,null,null,null,null,null,null,null,null,null,null,null,null,4073,"GISBORNE","GISBORNE","Group5"]
[null,null,null,null,null,null,null,null,null,null,null,null,null,null,null,null,null,null,null,null,4075,"MATAWAI","MATAWAI","Group5"]
[null,null,null,null,null,null,null,null,null,null,null,null,null,null,null,null,null,null,null,null,4077,"TOLAGA BAY","TOLAGA BAY","Group5"]
[null,null,null,null,null,null,null,null,null,null,null,null,null,null,null,null,null,null,null,null,4078,"MANUTUKE","MANUTUKE","Group5"]
[null,null,null,null,null,null,null,null,null,null,null,null,null,null,null,null,null,null,null,null,4079,"TOKOMARU BAY","TOKOMARU BAY","Group5"]
[null,null,null,null,null,null,null,null,null,null,null,null,null,null,null,null,null,null,null,null,4081,"RUATORIA","RUATORIA","Group5"]
[null,null,null,null,null,null,null,null,null,null,null,null,null,null,null,null,null,null,null,null,4082,"RUATORIA","RUATORIA","Group5"]
[null,null,null,null,null,null,null,null,null,null,null,null,null,null,null,null,null,null,null,null,4083,"RUATORIA","RUATORIA","Group5"]
[null,null,null,null,null,null,null,null,null,null,null,null,null,null,null,null,null,null,null,null,4086,"TIKITIKI","TIKITIKI","Group5"]
[null,null,null,null,null,null,null,null,null,null,null,null,null,null,null,null,null,null,null,null,4087,"TIKITIKI","TIKITIKI","Group5"]
[null,null,null,null,null,null,null,null,null,null,null,null,null,null,null,null,null,null,null,null,4091,"TE KARAKA","TE KARAKA","Group5"]
[null,null,null,null,null,null,null,null,null,null,null,null,null,null,null,null,null,null,null,null,4092,"TE KARAKA","TE KARAKA","Group5"]
[null,null,null,null,null,null,null,null,null,null,null,null,null,null,null,null,null,null,null,null,4093,"TE KARAKA","TE KARAKA","Group5"]
[null,null,null,null,null,null,null,null,null,null,null,null,null,null,null,null,null,null,null,null,4094,"TE KARAKA","TE KARAKA","Group5"]
[null,null,null,null,null,null,null,null,null,null,null,null,null,null,null,null,null,null,null,null,4102,"CLIVE","CLIVE","Group5"]
[null,null,null,null,null,null,null,null,null,null,null,null,null,null,null,null,null,null,null,null,4102,"HAUMOANA","HAUMOANA","Group5"]
[null,null,null,null,null,null,null,null,null,null,null,null,null,null,null,null,null,null,null,null,4102,"TE AWANGA","TE AWANGA","Group5"]
[null,null,null,null,null,null,null,null,null,null,null,null,null,null,null,null,null,null,null,null,4104,"NAPIER","BAY VIEW","Group5"]
[null,null,null,null,null,null,null,null,null,null,null,null,null,null,null,null,null,null,null,null,4108,"WAIROA","WAIROA","Group5"]
[null,null,null,null,null,null,null,null,null,null,null,null,null,null,null,null,null,null,null,null,4110,"NAPIER","AHURIRI","Group3"]
[null,null,null,null,null,null,null,null,null,null,null,null,null,null,null,null,null,null,null,null,4110,"NAPIER","AWATOTO","Group3"]
[null,null,null,null,null,null,null,null,null,null,null,null,null,null,null,null,null,null,null,null,4110,"NAPIER","BAY VIEW","Group3"]
[null,null,null,null,null,null,null,null,null,null,null,null,null,null,null,null,null,null,null,null,4110,"NAPIER","BLUFF HILL","Group3"]
[null,null,null,null,null,null,null,null,null,null,null,null,null,null,null,null,null,null,null,null,4110,"NAPIER","HOSPITAL HILL","Group3"]
[null,null,null,null,null,null,null,null,null,null,null,null,null,null,null,null,null,null,null,null,4110,"NAPIER","MARAENUI","Group3"]
[null,null,null,null,null,null,null,null,null,null,null,null,null,null,null,null,null,null,null,null,4110,"NAPIER","MAREWA","Group3"]
[null,null,null,null,null,null,null,null,null,null,null,null,null,null,null,null,null,null,null,null,4110,"NAPIER","MEEANEE","Group3"]
[null,null,null,null,null,null,null,null,null,null,null,null,null,null,null,null,null,null,null,null,4110,"NAPIER","NAPIER","Group3"]
[null,null,null,null,null,null,null,null,null,null,null,null,null,null,null,null,null,null,null,null,4110,"NAPIER","NAPIER SOUTH","Group3"]
[null,null,null,null,null,null,null,null,null,null,null,null,null,null,null,null,null,null,null,null,4110,"NAPIER","ONEKAWA","Group3"]
[null,null,null,null,null,null,null,null,null,null,null,null,null,null,null,null,null,null,null,null,4110,"NAPIER","PANDORA","Group3"]
[null,null,null,null,null,null,null,null,null,null,null,null,null,null,null,null,null,null,null,null,4110,"NAPIER","TE AWA","Group3"]
[null,null,null,null,null,null,null,null,null,null,null,null,null,null,null,null,null,null,null,null,4110,"NAPIER","WESTSHORE","Group3"]
[null,null,null,null,null,null,null,null,null,null,null,null,null,null,null,null,null,null,null,null,4112,"NAPIER","GREENMEADOWS","Group3"]
[null,null,null,null,null,null,null,null,null,null,null,null,null,null,null,null,null,null,null,null,4112,"NAPIER","JERVOISTOWN","Group3"]
[null,null,null,null,null,null,null,null,null,null,null,null,null,null,null,null,null,null,null,null,4112,"NAPIER","MEEANEE","Group3"]
[null,null,null,null,null,null,null,null,null,null,null,null,null,null,null,null,null,null,null,null,4112,"NAPIER","PIRIMAI","Group3"]
[null,null,null,null,null,null,null,null,null,null,null,null,null,null,null,null,null,null,null,null,4112,"NAPIER","PORAITI","Group3"]
[null,null,null,null,null,null,null,null,null,null,null,null,null,null,null,null,null,null,null,null,4112,"NAPIER","TAMATEA","Group3"]
[null,null,null,null,null,null,null,null,null,null,null,null,null,null,null,null,null,null,null,null,4112,"NAPIER","TARADALE","Group3"]
[null,null,null,null,null,null,null,null,null,null,null,null,null,null,null,null,null,null,null,null,4120,"HASTINGS","CAMBERLEY","Group3"]
[null,null,null,null,null,null,null,null,null,null,null,null,null,null,null,null,null,null,null,null,4120,"HASTINGS","FLAXMERE","Group3"]
[null,null,null,null,null,null,null,null,null,null,null,null,null,null,null,null,null,null,null,null,4120,"HASTINGS","FRIMLEY","Group3"]
[null,null,null,null,null,null,null,null,null,null,null,null,null,null,null,null,null,null,null,null,4120,"HASTINGS","LONGLANDS","Group3"]
[null,null,null,null,null,null,null,null,null,null,null,null,null,null,null,null,null,null,null,null,4120,"HASTINGS","MAHORA","Group3"]
[null,null,null,null,null,null,null,null,null,null,null,null,null,null,null,null,null,null,null,null,4120,"HASTINGS","RAUREKA","Group3"]
[null,null,null,null,null,null,null,null,null,null,null,null,null,null,null,null,null,null,null,null,4120,"HASTINGS","SAINT LEONARDS","Group3"]
[null,null,null,null,null,null,null,null,null,null,null,null,null,null,null,null,null,null,null,null,4120,"HASTINGS","TOMOANA","Group3"]
[null,null,null,null,null,null,null,null,null,null,null,null,null,null,null,null,null,null,null,null,4120,"HASTINGS","WOOLWICH","Group3"]
[null,null,null,null,null,null,null,null,null,null,null,null,null,null,null,null,null,null,null,null,4122,"HASTINGS","AKINA","Group3"]
[null,null,null,null,null,null,null,null,null,null,null,null,null,null,null,null,null,null,null,null,4122,"HASTINGS","HASTINGS","Group3"]
[null,null,null,null,null,null,null,null,null,null,null,null,null,null,null,null,null,null,null,null,4122,"HASTINGS","LONGLANDS","Group3"]
[null,null,null,null,null,null,null,null,null,null,null,null,null,null,null,null,null,null,null,null,4122,"HASTINGS","MAYFAIR","Group3"]
[null,null,null,null,null,null,null,null,null,null,null,null,null,null,null,null,null,null,null,null,4122,"HASTINGS","PARKVALE","Group3"]
[null,null,null,null,null,null,null,null,null,null,null,null,null,null,null,null,null,null,null,null,4122,"HASTINGS","SAINT LEONARDS","Group3"]
[null,null,null,null,null,null,null,null,null,null,null,null,null,null,null,null,null,null,null,null,4130,"HAVELOCK NORTH","HAVELOCK NORTH","Group3"]
[null,null,null,null,null,null,null,null,null,null,null,null,null,null,null,null,null,null,null,null,4171,"HASTINGS","HASTINGS","Group5"]
[null,null,null,null,null,null,null,null,null,null,null,null,null,null,null,null,null,null,null,null,4172,"HASTINGS","HASTINGS","Group5"]
[null,null,null,null,null,null,null,null,null,null,null,null,null,null,null,null,null,null,null,null,4174,"HASTINGS","HASTINGS","Group5"]
[null,null,null,null,null,null,null,null,null,null,null,null,null,null,null,null,null,null,null,null,4175,"HASTINGS","HASTINGS","Group5"]
[null,null,null,null,null,null,null,null,null,null,null,null,null,null,null,null,null,null,null,null,4178,"HASTINGS","HASTINGS","Group5"]
[null,null,null,null,null,null,null,null,null,null,null,null,null,null,null,null,null,null,null,null,4179,"HASTINGS","HASTINGS","Group5"]
[null,null,null,null,null,null,null,null,null,null,null,null,null,null,null,null,null,null,null,null,4180,"HASTINGS","HASTINGS","Group5"]
[null,null,null,null,null,null,null,null,null,null,null,null,null,null,null,null,null,null,null,null,4181,"NAPIER","NAPIER","Group5"]
[null,null,null,null,null,null,null,null,null,null,null,null,null,null,null,null,null,null,null,null,4182,"NAPIER","NAPIER","Group5"]
[null,null,null,null,null,null,null,null,null,null,null,null,null,null,null,null,null,null,null,null,4183,"NAPIER","NAPIER","Group5"]
[null,null,null,null,null,null,null,null,null,null,null,null,null,null,null,null,null,null,null,null,4184,"NAPIER","NAPIER","Group5"]
[null,null,null,null,null,null,null,null,null,null,null,null,null,null,null,null,null,null,null,null,4186,"NAPIER","NAPIER","Group5"]
[null,null,null,null,null,null,null,null,null,null,null,null,null,null,null,null,null,null,null,null,4188,"KOTEMAORI","KOTEMAORI","Group5"]
[null,null,null,null,null,null,null,null,null,null,null,null,null,null,null,null,null,null,null,null,4189,"RAUPUNGA","RAUPUNGA","Group5"]
[null,null,null,null,null,null,null,null,null,null,null,null,null,null,null,null,null,null,null,null,4191,"WAIROA","WAIROA","Group5"]
[null,null,null,null,null,null,null,null,null,null,null,null,null,null,null,null,null,null,null,null,4193,"WAIROA","WAIROA","Group5"]
[null,null,null,null,null,null,null,null,null,null,null,null,null,null,null,null,null,null,null,null,4195,"WAIROA","WAIROA","Group5"]
[null,null,null,null,null,null,null,null,null,null,null,null,null,null,null,null,null,null,null,null,4196,"WAIROA","WAIROA","Group5"]
[null,null,null,null,null,null,null,null,null,null,null,null,null,null,null,null,null,null,null,null,4197,"WAIROA","WAIROA","Group5"]
[null,null,null,null,null,null,null,null,null,null,null,null,null,null,null,null,null,null,null,null,4198,"NUHAKA","NUHAKA","Group5"]
[null,null,null,null,null,null,null,null,null,null,null,null,null,null,null,null,null,null,null,null,4200,"WAIPUKURAU","WAIPUKURAU","Group4"]
[null,null,null,null,null,null,null,null,null,null,null,null,null,null,null,null,null,null,null,null,4202,"OTANE","OTANE","Group5"]
[null,null,null,null,null,null,null,null,null,null,null,null,null,null,null,null,null,null,null,null,4203,"TAKAPAU","TAKAPAU","Group5"]
[null,null,null,null,null,null,null,null,null,null,null,null,null,null,null,null,null,null,null,null,4210,"WAIPAWA","WAIPAWA","Group5"]
[null,null,null,null,null,null,null,null,null,null,null,null,null,null,null,null,null,null,null,null,4271,"WAIPAWA","WAIPAWA","Group5"]
[null,null,null,null,null,null,null,null,null,null,null,null,null,null,null,null,null,null,null,null,4272,"WAIPAWA","WAIPAWA","Group5"]
[null,null,null,null,null,null,null,null,null,null,null,null,null,null,null,null,null,null,null,null,4273,"WAIPAWA","WAIPAWA","Group5"]
[null,null,null,null,null,null,null,null,null,null,null,null,null,null,null,null,null,null,null,null,4274,"WAIPAWA","WAIPAWA","Group5"]
[null,null,null,null,null,null,null,null,null,null,null,null,null,null,null,null,null,null,null,null,4275,"WAIPAWA","WAIPAWA","Group5"]
[null,null,null,null,null,null,null,null,null,null,null,null,null,null,null,null,null,null,null,null,4276,"OTANE","Waipawa","Group5"]
[null,null,null,null,null,null,null,null,null,null,null,null,null,null,null,null,null,null,null,null,4277,"OTANE","Waipawa","Group5"]
[null,null,null,null,null,null,null,null,null,null,null,null,null,null,null,null,null,null,null,null,4278,"ONGAONGA","ONGAONGA","Group5"]
[null,null,null,null,null,null,null,null,null,null,null,null,null,null,null,null,null,null,null,null,4279,"ONGAONGA","ONGAONGA","Group5"]
[null,null,null,null,null,null,null,null,null,null,null,null,null,null,null,null,null,null,null,null,4281,"WAIPUKURAU","WAIPUKURAU","Group5"]
[null,null,null,null,null,null,null,null,null,null,null,null,null,null,null,null,null,null,null,null,4282,"WAIPUKURAU","WAIPUKURAU","Group5"]
[null,null,null,null,null,null,null,null,null,null,null,null,null,null,null,null,null,null,null,null,4283,"WAIPUKURAU","WAIPUKURAU","Group5"]
[null,null,null,null,null,null,null,null,null,null,null,null,null,null,null,null,null,null,null,null,4284,"WAIPUKURAU","WAIPUKURAU","Group5"]
[null,null,null,null,null,null,null,null,null,null,null,null,null,null,null,null,null,null,null,null,4285,"WAIPUKURAU","WAIPUKURAU","Group5"]
[null,null,null,null,null,null,null,null,null,null,null,null,null,null,null,null,null,null,null,null,4286,"TAKAPAU","TAKAPAU","Group5"]
[null,null,null,null,null,null,null,null,null,null,null,null,null,null,null,null,null,null,null,null,4287,"TAKAPAU","TAKAPAU","Group5"]
[null,null,null,null,null,null,null,null,null,null,null,null,null,null,null,null,null,null,null,null,4288,"TAKAPAU","TAKAPAU","Group5"]
[null,null,null,null,null,null,null,null,null,null,null,null,null,null,null,null,null,null,null,null,4291,"PORANGAHAU","PORANGAHAU","Group5"]
[null,null,null,null,null,null,null,null,null,null,null,null,null,null,null,null,null,null,null,null,4292,"PORANGAHAU","PORANGAHAU","Group5"]
[null,null,null,null,null,null,null,null,null,null,null,null,null,null,null,null,null,null,null,null,4293,"PORANGAHAU","PORANGAHAU","Group5"]
[null,null,null,null,null,null,null,null,null,null,null,null,null,null,null,null,null,null,null,null,4294,"HAVELOCK NORTH","HAVELOCK NORTH","Group5"]
[null,null,null,null,null,null,null,null,null,null,null,null,null,null,null,null,null,null,null,null,4295,"HAVELOCK NORTH","HAVELOCK NORTH","Group5"]
[null,null,null,null,null,null,null,null,null,null,null,null,null,null,null,null,null,null,null,null,4310,"NEW PLYMOUTH","BLAGDON","Group3"]
[null,null,null,null,null,null,null,null,null,null,null,null,null,null,null,null,null,null,null,null,4310,"NEW PLYMOUTH","BROOKLANDS","Group3"]
[null,null,null,null,null,null,null,null,null,null,null,null,null,null,null,null,null,null,null,null,4310,"NEW PLYMOUTH","FERNDALE","Group3"]
[null,null,null,null,null,null,null,null,null,null,null,null,null,null,null,null,null,null,null,null,4310,"NEW PLYMOUTH","FRANKLEIGH PARK","Group3"]
[null,null,null,null,null,null,null,null,null,null,null,null,null,null,null,null,null,null,null,null,4310,"NEW PLYMOUTH","HURDON","Group3"]
[null,null,null,null,null,null,null,null,null,null,null,null,null,null,null,null,null,null,null,null,4310,"NEW PLYMOUTH","LOWER VOGELTOWN","Group3"]
[null,null,null,null,null,null,null,null,null,null,null,null,null,null,null,null,null,null,null,null,4310,"NEW PLYMOUTH","LYNMOUTH","Group3"]
[null,null,null,null,null,null,null,null,null,null,null,null,null,null,null,null,null,null,null,null,4310,"NEW PLYMOUTH","MARFELL","Group3"]
[null,null,null,null,null,null,null,null,null,null,null,null,null,null,null,null,null,null,null,null,4310,"NEW PLYMOUTH","MOTUROA","Group3"]
[null,null,null,null,null,null,null,null,null,null,null,null,null,null,null,null,null,null,null,null,4310,"NEW PLYMOUTH","NEW PLYMOUTH","Group3"]
[null,null,null,null,null,null,null,null,null,null,null,null,null,null,null,null,null,null,null,null,4310,"NEW PLYMOUTH","PORT TARANAKI","Group3"]
[null,null,null,null,null,null,null,null,null,null,null,null,null,null,null,null,null,null,null,null,4310,"NEW PLYMOUTH","SPOTSWOOD","Group3"]
[null,null,null,null,null,null,null,null,null,null,null,null,null,null,null,null,null,null,null,null,4310,"NEW PLYMOUTH","UPPER VOGELTOWN","Group3"]
[null,null,null,null,null,null,null,null,null,null,null,null,null,null,null,null,null,null,null,null,4310,"NEW PLYMOUTH","VOGELTOWN","Group3"]
[null,null,null,null,null,null,null,null,null,null,null,null,null,null,null,null,null,null,null,null,4310,"NEW PLYMOUTH","WELBOURN","Group3"]
[null,null,null,null,null,null,null,null,null,null,null,null,null,null,null,null,null,null,null,null,4310,"NEW PLYMOUTH","WESTOWN","Group3"]
[null,null,null,null,null,null,null,null,null,null,null,null,null,null,null,null,null,null,null,null,4310,"NEW PLYMOUTH","WHALERS GATE","Group3"]
[null,null,null,null,null,null,null,null,null,null,null,null,null,null,null,null,null,null,null,null,4312,"NEW PLYMOUTH","BELL BLOCK","Group3"]
[null,null,null,null,null,null,null,null,null,null,null,null,null,null,null,null,null,null,null,null,4312,"NEW PLYMOUTH","FITZROY","Group3"]
[null,null,null,null,null,null,null,null,null,null,null,null,null,null,null,null,null,null,null,null,4312,"NEW PLYMOUTH","GLEN AVON","Group3"]
[null,null,null,null,null,null,null,null,null,null,null,null,null,null,null,null,null,null,null,null,4312,"NEW PLYMOUTH","HIGHLANDS PARK","Group3"]
[null,null,null,null,null,null,null,null,null,null,null,null,null,null,null,null,null,null,null,null,4312,"NEW PLYMOUTH","MERRILANDS","Group3"]
[null,null,null,null,null,null,null,null,null,null,null,null,null,null,null,null,null,null,null,null,4312,"NEW PLYMOUTH","STRANDON","Group3"]
[null,null,null,null,null,null,null,null,null,null,null,null,null,null,null,null,null,null,null,null,4312,"NEW PLYMOUTH","WAIWHAKAIHO","Group3"]
[null,null,null,null,null,null,null,null,null,null,null,null,null,null,null,null,null,null,null,null,4312,"NEW PLYMOUTH","WELBOURN","Group3"]
[null,null,null,null,null,null,null,null,null,null,null,null,null,null,null,null,null,null,null,null,4314,"OAKURA","OAKURA","Group3"]
[null,null,null,null,null,null,null,null,null,null,null,null,null,null,null,null,null,null,null,null,4320,"WAITARA","WAITARA","Group4"]
[null,null,null,null,null,null,null,null,null,null,null,null,null,null,null,null,null,null,null,null,4322,"ELTHAM","ELTHAM","Group4"]
[null,null,null,null,null,null,null,null,null,null,null,null,null,null,null,null,null,null,null,null,4330,"INGLEWOOD","INGLEWOOD","Group4"]
[null,null,null,null,null,null,null,null,null,null,null,null,null,null,null,null,null,null,null,null,4332,"STRATFORD","STRATFORD","Group4"]
[null,null,null,null,null,null,null,null,null,null,null,null,null,null,null,null,null,null,null,null,4335,"OKATO","OKATO","Group3"]
[null,null,null,null,null,null,null,null,null,null,null,null,null,null,null,null,null,null,null,null,4371,"NEW PLYMOUTH","NEW PLYMOUTH","Group4"]
[null,null,null,null,null,null,null,null,null,null,null,null,null,null,null,null,null,null,null,null,4372,"NEW PLYMOUTH","NEW PLYMOUTH","Group4"]
[null,null,null,null,null,null,null,null,null,null,null,null,null,null,null,null,null,null,null,null,4373,"NEW PLYMOUTH","NEW PLYMOUTH","Group4"]
[null,null,null,null,null,null,null,null,null,null,null,null,null,null,null,null,null,null,null,null,4374,"NEW PLYMOUTH","NEW PLYMOUTH","Group4"]
[null,null,null,null,null,null,null,null,null,null,null,null,null,null,null,null,null,null,null,null,4375,"URENUI","URENUI","Group5"]
[null,null,null,null,null,null,null,null,null,null,null,null,null,null,null,null,null,null,null,null,4376,"MOKAU","MOKAU","Group5"]
[null,null,null,null,null,null,null,null,null,null,null,null,null,null,null,null,null,null,null,null,4377,"URENUI","URENUI","Group5"]
[null,null,null,null,null,null,null,null,null,null,null,null,null,null,null,null,null,null,null,null,4378,"URENUI","URENUI","Group5"]
[null,null,null,null,null,null,null,null,null,null,null,null,null,null,null,null,null,null,null,null,4379,"URENUI","URENUI","Group5"]
[null,null,null,null,null,null,null,null,null,null,null,null,null,null,null,null,null,null,null,null,4381,"NEW PLYMOUTH","NEW PLYMOUTH","Group5"]
[null,null,null,null,null,null,null,null,null,null,null,null,null,null,null,null,null,null,null,null,4382,"WAITARA","WAITARA","Group4"]
[null,null,null,null,null,null,null,null,null,null,null,null,null,null,null,null,null,null,null,null,4383,"WAITARA","WAITARA","Group4"]
[null,null,null,null,null,null,null,null,null,null,null,null,null,null,null,null,null,null,null,null,4386,"INGLEWOOD","INGLEWOOD","Group4"]
[null,null,null,null,null,null,null,null,null,null,null,null,null,null,null,null,null,null,null,null,4387,"INGLEWOOD","INGLEWOOD","Group4"]
[null,null,null,null,null,null,null,null,null,null,null,null,null,null,null,null,null,null,null,null,4388,"INGLEWOOD","INGLEWOOD","Group4"]
[null,null,null,null,null,null,null,null,null,null,null,null,null,null,null,null,null,null,null,null,4389,"INGLEWOOD","INGLEWOOD","Group4"]
[null,null,null,null,null,null,null,null,null,null,null,null,null,null,null,null,null,null,null,null,4390,"INGLEWOOD","INGLEWOOD","Group4"]
[null,null,null,null,null,null,null,null,null,null,null,null,null,null,null,null,null,null,null,null,4391,"STRATFORD","STRATFORD","Group4"]
[null,null,null,null,null,null,null,null,null,null,null,null,null,null,null,null,null,null,null,null,4392,"STRATFORD","STRATFORD","Group4"]
[null,null,null,null,null,null,null,null,null,null,null,null,null,null,null,null,null,null,null,null,4393,"STRATFORD","HAWERA","Group4"]
[null,null,null,null,null,null,null,null,null,null,null,null,null,null,null,null,null,null,null,null,4394,"STRATFORD","MIDHIRST","Group4"]
[null,null,null,null,null,null,null,null,null,null,null,null,null,null,null,null,null,null,null,null,4395,"STRATFORD","STRATFORD","Group4"]
[null,null,null,null,null,null,null,null,null,null,null,null,null,null,null,null,null,null,null,null,4396,"STRATFORD","STRATFORD","Group4"]
[null,null,null,null,null,null,null,null,null,null,null,null,null,null,null,null,null,null,null,null,4397,"STRATFORD","STRATFORD","Group4"]
[null,null,null,null,null,null,null,null,null,null,null,null,null,null,null,null,null,null,null,null,4398,"ELTHAM","ELTHAM","Group4"]
[null,null,null,null,null,null,null,null,null,null,null,null,null,null,null,null,null,null,null,null,4399,"ELTHAM","ELTHAM","Group4"]
[null,null,null,null,null,null,null,null,null,null,null,null,null,null,null,null,null,null,null,null,4410,"PALMERSTON NORTH","FITZHERBERT","Group3"]
[null,null,null,null,null,null,null,null,null,null,null,null,null,null,null,null,null,null,null,null,4410,"PALMERSTON NORTH","HOKOWHITU","Group3"]
[null,null,null,null,null,null,null,null,null,null,null,null,null,null,null,null,null,null,null,null,4410,"PALMERSTON NORTH","KELVIN GROVE","Group3"]
[null,null,null,null,null,null,null,null,null,null,null,null,null,null,null,null,null,null,null,null,4410,"PALMERSTON NORTH","PALMERSTON NORTH","Group3"]
[null,null,null,null,null,null,null,null,null,null,null,null,null,null,null,null,null,null,null,null,4410,"PALMERSTON NORTH","ROSLYN","Group3"]
[null,null,null,null,null,null,null,null,null,null,null,null,null,null,null,null,null,null,null,null,4410,"PALMERSTON NORTH","TAKARO","Group3"]
[null,null,null,null,null,null,null,null,null,null,null,null,null,null,null,null,null,null,null,null,4410,"PALMERSTON NORTH","TERRACE END","Group3"]
[null,null,null,null,null,null,null,null,null,null,null,null,null,null,null,null,null,null,null,null,4410,"PALMERSTON NORTH","TURITEA","Group3"]
[null,null,null,null,null,null,null,null,null,null,null,null,null,null,null,null,null,null,null,null,4410,"PALMERSTON NORTH","WEST END","Group3"]
[null,null,null,null,null,null,null,null,null,null,null,null,null,null,null,null,null,null,null,null,4412,"PALMERSTON NORTH","AWAPUNI","Group3"]
[null,null,null,null,null,null,null,null,null,null,null,null,null,null,null,null,null,null,null,null,4412,"PALMERSTON NORTH","CLOVERLEA","Group3"]
[null,null,null,null,null,null,null,null,null,null,null,null,null,null,null,null,null,null,null,null,4412,"PALMERSTON NORTH","HIGHBURY","Group3"]
[null,null,null,null,null,null,null,null,null,null,null,null,null,null,null,null,null,null,null,null,4412,"PALMERSTON NORTH","LONGBURN","Group3"]
[null,null,null,null,null,null,null,null,null,null,null,null,null,null,null,null,null,null,null,null,4412,"PALMERSTON NORTH","TAKARO","Group3"]
[null,null,null,null,null,null,null,null,null,null,null,null,null,null,null,null,null,null,null,null,4412,"PALMERSTON NORTH","WEST END","Group3"]
[null,null,null,null,null,null,null,null,null,null,null,null,null,null,null,null,null,null,null,null,4412,"PALMERSTON NORTH","WESTBROOK","Group3"]
[null,null,null,null,null,null,null,null,null,null,null,null,null,null,null,null,null,null,null,null,4414,"PALMERSTON NORTH","KELVIN GROVE","Group3"]
[null,null,null,null,null,null,null,null,null,null,null,null,null,null,null,null,null,null,null,null,4414,"PALMERSTON NORTH","MILSON","Group3"]
[null,null,null,null,null,null,null,null,null,null,null,null,null,null,null,null,null,null,null,null,4414,"PALMERSTON NORTH","ROSLYN","Group3"]
[null,null,null,null,null,null,null,null,null,null,null,null,null,null,null,null,null,null,null,null,4414,"PALMERSTON NORTH","WHAKATRONGA","Group4"]
[null,null,null,null,null,null,null,null,null,null,null,null,null,null,null,null,null,null,null,null,4470,"PALMERSTON NORTH","PALMERSTON NORTH","Group4"]
[null,null,null,null,null,null,null,null,null,null,null,null,null,null,null,null,null,null,null,null,4471,"PALMERSTON NORTH","PALMERSTON NORTH","Group4"]
[null,null,null,null,null,null,null,null,null,null,null,null,null,null,null,null,null,null,null,null,4472,"PALMERSTON NORTH","PALMERSTON NORTH","Group4"]
[null,null,null,null,null,null,null,null,null,null,null,null,null,null,null,null,null,null,null,null,4473,"PALMERSTON NORTH","PALMERSTON NORTH","Group4"]
[null,null,null,null,null,null,null,null,null,null,null,null,null,null,null,null,null,null,null,null,4474,"PALMERSTON NORTH","PALMERSTON NORTH","Group4"]
[null,null,null,null,null,null,null,null,null,null,null,null,null,null,null,null,null,null,null,null,4475,"PALMERSTON NORTH","PALMERSTON NORTH","Group4"]
[null,null,null,null,null,null,null,null,null,null,null,null,null,null,null,null,null,null,null,null,4476,"PALMERSTON NORTH","PALMERSTON NORTH","Group4"]
[null,null,null,null,null,null,null,null,null,null,null,null,null,null,null,null,null,null,null,null,4477,"PALMERSTON NORTH","PALMERSTON NORTH","Group4"]
[null,null,null,null,null,null,null,null,null,null,null,null,null,null,null,null,null,null,null,null,4478,"PALMERSTON NORTH","PALMERSTON NORTH","Group4"]
[null,null,null,null,null,null,null,null,null,null,null,null,null,null,null,null,null,null,null,null,4479,"PALMERSTON NORTH","PALMERSTON NORTH","Group4"]
[null,null,null,null,null,null,null,null,null,null,null,null,null,null,null,null,null,null,null,null,4481,"PALMERSTON NORTH","PALMERSTON NORTH","Group4"]
[null,null,null,null,null,null,null,null,null,null,null,null,null,null,null,null,null,null,null,null,4500,"WANGANUI","ARAMOHO","Group4"]
[null,null,null,null,null,null,null,null,null,null,null,null,null,null,null,null,null,null,null,null,4500,"WANGANUI","BASTIA HILL","Group4"]
[null,null,null,null,null,null,null,null,null,null,null,null,null,null,null,null,null,null,null,null,4500,"WANGANUI","COLLEGE ESTATE","Group4"]
[null,null,null,null,null,null,null,null,null,null,null,null,null,null,null,null,null,null,null,null,4500,"WANGANUI","DURIE HILL","Group4"]
[null,null,null,null,null,null,null,null,null,null,null,null,null,null,null,null,null,null,null,null,4500,"WANGANUI","GONVILLE","Group4"]
[null,null,null,null,null,null,null,null,null,null,null,null,null,null,null,null,null,null,null,null,4500,"WANGANUI","OTAMATEA","Group4"]
[null,null,null,null,null,null,null,null,null,null,null,null,null,null,null,null,null,null,null,null,4500,"WANGANUI","PUTIKI","Group4"]
[null,null,null,null,null,null,null,null,null,null,null,null,null,null,null,null,null,null,null,null,4500,"WANGANUI","SAINT JOHNS HILL","Group4"]
[null,null,null,null,null,null,null,null,null,null,null,null,null,null,null,null,null,null,null,null,4500,"WANGANUI","SPRINGVALE","Group4"]
[null,null,null,null,null,null,null,null,null,null,null,null,null,null,null,null,null,null,null,null,4500,"WANGANUI","TAWHERO","Group4"]
[null,null,null,null,null,null,null,null,null,null,null,null,null,null,null,null,null,null,null,null,4500,"WANGANUI","WANGANUI","Group4"]
[null,null,null,null,null,null,null,null,null,null,null,null,null,null,null,null,null,null,null,null,4500,"WANGANUI","WANGANUI EAST","Group4"]
[null,null,null,null,null,null,null,null,null,null,null,null,null,null,null,null,null,null,null,null,4501,"WANGANUI","CASTLECLIFF","Group4"]
[null,null,null,null,null,null,null,null,null,null,null,null,null,null,null,null,null,null,null,null,4501,"WANGANUI","GONVILLE","Group4"]
[null,null,null,null,null,null,null,null,null,null,null,null,null,null,null,null,null,null,null,null,4501,"WANGANUI","OTAMATEA","Group4"]
[null,null,null,null,null,null,null,null,null,null,null,null,null,null,null,null,null,null,null,null,4501,"WANGANUI","PUTIKI","Group4"]
[null,null,null,null,null,null,null,null,null,null,null,null,null,null,null,null,null,null,null,null,4501,"WANGANUI","SAINT JOHNS HILL","Group4"]
[null,null,null,null,null,null,null,null,null,null,null,null,null,null,null,null,null,null,null,null,4501,"WANGANUI","SPRINGVALE","Group4"]
[null,null,null,null,null,null,null,null,null,null,null,null,null,null,null,null,null,null,null,null,4501,"WANGANUI","TAWHERO","Group4"]
[null,null,null,null,null,null,null,null,null,null,null,null,null,null,null,null,null,null,null,null,4501,"WANGANUI","WANGANUI AIRPORT","Group4"]
[null,null,null,null,null,null,null,null,null,null,null,null,null,null,null,null,null,null,null,null,4501,"WANGANUI","WANGANUI EAST","Group4"]
[null,null,null,null,null,null,null,null,null,null,null,null,null,null,null,null,null,null,null,null,4501,"WANGANUI","WESTMERE","Group5"]
[null,null,null,null,null,null,null,null,null,null,null,null,null,null,null,null,null,null,null,null,4510,"WAVERLEY","WAVERLEY","Group5"]
[null,null,null,null,null,null,null,null,null,null,null,null,null,null,null,null,null,null,null,null,4520,"PATEA","PATEA","Group5"]
[null,null,null,null,null,null,null,null,null,null,null,null,null,null,null,null,null,null,null,null,4571,"WANGANUI","WANGANUI","Group5"]
[null,null,null,null,null,null,null,null,null,null,null,null,null,null,null,null,null,null,null,null,4572,"WANGANUI","WANGANUI","Group5"]
[null,null,null,null,null,null,null,null,null,null,null,null,null,null,null,null,null,null,null,null,4573,"WANGANUI","WANGANUI","Group5"]
[null,null,null,null,null,null,null,null,null,null,null,null,null,null,null,null,null,null,null,null,4574,"WANGANUI","WANGANUI","Group5"]
[null,null,null,null,null,null,null,null,null,null,null,null,null,null,null,null,null,null,null,null,4575,"WANGANUI","WANGANUI","Group5"]
[null,null,null,null,null,null,null,null,null,null,null,null,null,null,null,null,null,null,null,null,4576,"WANGANUI","WANGANUI","Group5"]
[null,null,null,null,null,null,null,null,null,null,null,null,null,null,null,null,null,null,null,null,4577,"WANGANUI","WANGANUI","Group5"]
[null,null,null,null,null,null,null,null,null,null,null,null,null,null,null,null,null,null,null,null,4578,"WANGANUI","WANGANUI","Group5"]
[null,null,null,null,null,null,null,null,null,null,null,null,null,null,null,null,null,null,null,null,4581,"WANGANUI","WANGANUI","Group5"]
[null,null,null,null,null,null,null,null,null,null,null,null,null,null,null,null,null,null,null,null,4582,"WANGANUI","WANGANUI","Group5"]
[null,null,null,null,null,null,null,null,null,null,null,null,null,null,null,null,null,null,null,null,4584,"WANGANUI","WANGANUI","Group5"]
[null,null,null,null,null,null,null,null,null,null,null,null,null,null,null,null,null,null,null,null,4585,"WANGANUI","WANGANUI","Group5"]
[null,null,null,null,null,null,null,null,null,null,null,null,null,null,null,null,null,null,null,null,4586,"WANGANUI","WANGANUI","Group5"]
[null,null,null,null,null,null,null,null,null,null,null,null,null,null,null,null,null,null,null,null,4587,"WANGANUI","WANGANUI","Group5"]
[null,null,null,null,null,null,null,null,null,null,null,null,null,null,null,null,null,null,null,null,4588,"WANGANUI","WANGANUI","Group5"]
[null,null,null,null,null,null,null,null,null,null,null,null,null,null,null,null,null,null,null,null,4591,"WAVERLEY","WAVERLEY","Group5"]
[null,null,null,null,null,null,null,null,null,null,null,null,null,null,null,null,null,null,null,null,4592,"WAVERLEY","WAVERLEY","Group5"]
[null,null,null,null,null,null,null,null,null,null,null,null,null,null,null,null,null,null,null,null,4597,"PATEA","PATEA","Group5"]
[null,null,null,null,null,null,null,null,null,null,null,null,null,null,null,null,null,null,null,null,4598,"PATEA","PATEA","Group5"]
[null,null,null,null,null,null,null,null,null,null,null,null,null,null,null,null,null,null,null,null,4610,"HAWERA","HAWERA","Group4"]
[null,null,null,null,null,null,null,null,null,null,null,null,null,null,null,null,null,null,null,null,4612,"MANAIA","MANAIA","Group5"]
[null,null,null,null,null,null,null,null,null,null,null,null,null,null,null,null,null,null,null,null,4614,"HAWERA","NORMANBY","Group4"]
[null,null,null,null,null,null,null,null,null,null,null,null,null,null,null,null,null,null,null,null,4616,"OPUNAKE","OPUNAKE","Group4"]
[null,null,null,null,null,null,null,null,null,null,null,null,null,null,null,null,null,null,null,null,4625,"OHAKUNE","OHAKUNE","Group4"]
[null,null,null,null,null,null,null,null,null,null,null,null,null,null,null,null,null,null,null,null,4632,"RAETIHI","RAETIHI","Group5"]
[null,null,null,null,null,null,null,null,null,null,null,null,null,null,null,null,null,null,null,null,4671,"HAWERA","HAWERA","Group5"]
[null,null,null,null,null,null,null,null,null,null,null,null,null,null,null,null,null,null,null,null,4672,"HAWERA","HAWERA","Group5"]
[null,null,null,null,null,null,null,null,null,null,null,null,null,null,null,null,null,null,null,null,4673,"HAWERA","HAWERA","Group5"]
[null,null,null,null,null,null,null,null,null,null,null,null,null,null,null,null,null,null,null,null,4674,"HAWERA","HAWERA","Group5"]
[null,null,null,null,null,null,null,null,null,null,null,null,null,null,null,null,null,null,null,null,4675,"HAWERA","HAWERA","Group5"]
[null,null,null,null,null,null,null,null,null,null,null,null,null,null,null,null,null,null,null,null,4678,"HAWERA","HAWERA","Group5"]
[null,null,null,null,null,null,null,null,null,null,null,null,null,null,null,null,null,null,null,null,4679,"HAWERA","HAWERA","Group5"]
[null,null,null,null,null,null,null,null,null,null,null,null,null,null,null,null,null,null,null,null,4681,"OPUNAKE","OPUNAKE","Group5"]
[null,null,null,null,null,null,null,null,null,null,null,null,null,null,null,null,null,null,null,null,4682,"OPUNAKE","OPUNAKE","Group5"]
[null,null,null,null,null,null,null,null,null,null,null,null,null,null,null,null,null,null,null,null,4684,"OPUNAKE","OPUNAKE","Group5"]
[null,null,null,null,null,null,null,null,null,null,null,null,null,null,null,null,null,null,null,null,4685,"OPUNAKE","OPUNAKE","Group5"]
[null,null,null,null,null,null,null,null,null,null,null,null,null,null,null,null,null,null,null,null,4691,"OHAKUNE","RANGATAUA","Group5"]
[null,null,null,null,null,null,null,null,null,null,null,null,null,null,null,null,null,null,null,null,4694,"RAETIHI","RAETIHI","Group5"]
[null,null,null,null,null,null,null,null,null,null,null,null,null,null,null,null,null,null,null,null,4696,"RAETIHI","RAETIHI","Group5"]
[null,null,null,null,null,null,null,null,null,null,null,null,null,null,null,null,null,null,null,null,4702,"FEILDING","FEILDING","Group4"]
[null,null,null,null,null,null,null,null,null,null,null,null,null,null,null,null,null,null,null,null,4710,"MARTON","MARTON","Group4"]
[null,null,null,null,null,null,null,null,null,null,null,null,null,null,null,null,null,null,null,null,4720,"TAIHAPE","TAIHAPE","Group4"]
[null,null,null,null,null,null,null,null,null,null,null,null,null,null,null,null,null,null,null,null,4730,"HUNTERVILLE","HUNTERVILLE","Group4"]
[null,null,null,null,null,null,null,null,null,null,null,null,null,null,null,null,null,null,null,null,4771,"APITI","APITI","Group5"]
[null,null,null,null,null,null,null,null,null,null,null,null,null,null,null,null,null,null,null,null,4774,"KIMBOLTON","KIMBOLTON","Group5"]
[null,null,null,null,null,null,null,null,null,null,null,null,null,null,null,null,null,null,null,null,4775,"FEILDING","FEILDING","Group5"]
[null,null,null,null,null,null,null,null,null,null,null,null,null,null,null,null,null,null,null,null,4777,"FEILDING","FEILDING","Group5"]
[null,null,null,null,null,null,null,null,null,null,null,null,null,null,null,null,null,null,null,null,4779,"FEILDING","FEILDING","Group5"]
[null,null,null,null,null,null,null,null,null,null,null,null,null,null,null,null,null,null,null,null,4780,"REWA","REWA","Group5"]
[null,null,null,null,null,null,null,null,null,null,null,null,null,null,null,null,null,null,null,null,4781,"HUNTERVILLE","HUNTERVILLE","Group5"]
[null,null,null,null,null,null,null,null,null,null,null,null,null,null,null,null,null,null,null,null,4782,"HUNTERVILLE","HUNTERVILLE","Group5"]
[null,null,null,null,null,null,null,null,null,null,null,null,null,null,null,null,null,null,null,null,4783,"HUNTERVILLE","HUNTERVILLE","Group5"]
[null,null,null,null,null,null,null,null,null,null,null,null,null,null,null,null,null,null,null,null,4784,"HUNTERVILLE","HUNTERVILLE","Group5"]
[null,null,null,null,null,null,null,null,null,null,null,null,null,null,null,null,null,null,null,null,4785,"HUNTERVILLE","HUNTERVILLE","Group5"]
[null,null,null,null,null,null,null,null,null,null,null,null,null,null,null,null,null,null,null,null,4786,"HUNTERVILLE","HUNTERVILLE","Group5"]
[null,null,null,null,null,null,null,null,null,null,null,null,null,null,null,null,null,null,null,null,4787,"MARTON","MARTON","Group5"]
[null,null,null,null,null,null,null,null,null,null,null,null,null,null,null,null,null,null,null,null,4788,"MARTON","MARTON","Group5"]
[null,null,null,null,null,null,null,null,null,null,null,null,null,null,null,null,null,null,null,null,4789,"MARTON","MARTON","Group5"]
[null,null,null,null,null,null,null,null,null,null,null,null,null,null,null,null,null,null,null,null,4791,"TAIHAPE","TAIHAPE","Group5"]
[null,null,null,null,null,null,null,null,null,null,null,null,null,null,null,null,null,null,null,null,4793,"TAIHAPE","TAIHAPE","Group5"]
[null,null,null,null,null,null,null,null,null,null,null,null,null,null,null,null,null,null,null,null,4794,"TAIHAPE","TAIHAPE","Group5"]
[null,null,null,null,null,null,null,null,null,null,null,null,null,null,null,null,null,null,null,null,4795,"TAIHAPE","TAIHAPE","Group5"]
[null,null,null,null,null,null,null,null,null,null,null,null,null,null,null,null,null,null,null,null,4796,"TAIHAPE","TAIHAPE","Group5"]
[null,null,null,null,null,null,null,null,null,null,null,null,null,null,null,null,null,null,null,null,4797,"MANGAWEKA","MANGAWEKA","Group5"]
[null,null,null,null,null,null,null,null,null,null,null,null,null,null,null,null,null,null,null,null,4810,"ASHHURST","ASHHURST","Group4"]
[null,null,null,null,null,null,null,null,null,null,null,null,null,null,null,null,null,null,null,null,4814,"FOXTON","FOXTON","Group4"]
[null,null,null,null,null,null,null,null,null,null,null,null,null,null,null,null,null,null,null,null,4815,"FOXTON","FOXTON BEACH","Group4"]
[null,null,null,null,null,null,null,null,null,null,null,null,null,null,null,null,null,null,null,null,4816,"BULLS","OHAKEA","Group4"]
[null,null,null,null,null,null,null,null,null,null,null,null,null,null,null,null,null,null,null,null,4817,"SANSON","SANSON","Group4"]
[null,null,null,null,null,null,null,null,null,null,null,null,null,null,null,null,null,null,null,null,4818,"BULLS","BULLS","Group4"]
[null,null,null,null,null,null,null,null,null,null,null,null,null,null,null,null,null,null,null,null,4820,"PALMERSTON NORTH","LINTON","Group4"]
[null,null,null,null,null,null,null,null,null,null,null,null,null,null,null,null,null,null,null,null,4820,"PALMERSTON NORTH","LINTON CAMP","Group4"]
[null,null,null,null,null,null,null,null,null,null,null,null,null,null,null,null,null,null,null,null,4821,"SHANNON","SHANNON","Group4"]
[null,null,null,null,null,null,null,null,null,null,null,null,null,null,null,null,null,null,null,null,4822,"TANGIMOANA","TANGIMOANA","Group4"]
[null,null,null,null,null,null,null,null,null,null,null,null,null,null,null,null,null,null,null,null,4825,"WAIOURU","WAIOURU","Group4"]
[null,null,null,null,null,null,null,null,null,null,null,null,null,null,null,null,null,null,null,null,4826,"WAIOURU","WAIOURU MILITARY CAMP","Group4"]
[null,null,null,null,null,null,null,null,null,null,null,null,null,null,null,null,null,null,null,null,4884,"ASHHURST","ASHHURST","Group5"]
[null,null,null,null,null,null,null,null,null,null,null,null,null,null,null,null,null,null,null,null,4891,"FOXTON","FOXTON","Group5"]
[null,null,null,null,null,null,null,null,null,null,null,null,null,null,null,null,null,null,null,null,4893,"FOXTON","FOXTON","Group5"]
[null,null,null,null,null,null,null,null,null,null,null,null,null,null,null,null,null,null,null,null,4894,"BULLS","BULLS","Group5"]
[null,null,null,null,null,null,null,null,null,null,null,null,null,null,null,null,null,null,null,null,4900,"EKETAHUNA","EKETAHUNA","Group4"]
[null,null,null,null,null,null,null,null,null,null,null,null,null,null,null,null,null,null,null,null,4910,"PAHIATUA","PAHIATUA","Group4"]
[null,null,null,null,null,null,null,null,null,null,null,null,null,null,null,null,null,null,null,null,4920,"WOODVILLE","WOODVILLE","Group4"]
[null,null,null,null,null,null,null,null,null,null,null,null,null,null,null,null,null,null,null,null,4930,"DANNEVIRKE","DANNEVIRKE","Group4"]
[null,null,null,null,null,null,null,null,null,null,null,null,null,null,null,null,null,null,null,null,4970,"DANNEVIRKE","DANNEVIRKE","Group5"]
[null,null,null,null,null,null,null,null,null,null,null,null,null,null,null,null,null,null,null,null,4971,"DANNEVIRKE","DANNEVIRKE","Group5"]
[null,null,null,null,null,null,null,null,null,null,null,null,null,null,null,null,null,null,null,null,4972,"DANNEVIRKE","DANNEVIRKE","Group5"]
[null,null,null,null,null,null,null,null,null,null,null,null,null,null,null,null,null,null,null,null,4973,"DANNEVIRKE","DANNEVIRKE","Group5"]
[null,null,null,null,null,null,null,null,null,null,null,null,null,null,null,null,null,null,null,null,4974,"NORSEWOOD","NORSEWOOD","Group5"]
[null,null,null,null,null,null,null,null,null,null,null,null,null,null,null,null,null,null,null,null,4975,"DANNEVIRKE","DANNEVIRKE","Group5"]
[null,null,null,null,null,null,null,null,null,null,null,null,null,null,null,null,null,null,null,null,4976,"DANNEVIRKE","DANNEVIRKE","Group5"]
[null,null,null,null,null,null,null,null,null,null,null,null,null,null,null,null,null,null,null,null,4977,"DANNEVIRKE","DANNEVIRKE","Group5"]
[null,null,null,null,null,null,null,null,null,null,null,null,null,null,null,null,null,null,null,null,4978,"DANNEVIRKE","DANNEVIRKE","Group5"]
[null,null,null,null,null,null,null,null,null,null,null,null,null,null,null,null,null,null,null,null,4979,"DANNEVIRKE","DANNEVIRKE","Group5"]
[null,null,null,null,null,null,null,null,null,null,null,null,null,null,null,null,null,null,null,null,4981,"PAHIATUA","PAHIATUA","Group5"]
[null,null,null,null,null,null,null,null,null,null,null,null,null,null,null,null,null,null,null,null,4982,"PAHIATUA","PAHIATUA","Group5"]
[null,null,null,null,null,null,null,null,null,null,null,null,null,null,null,null,null,null,null,null,4983,"PAHIATUA","PAHIATUA","Group5"]
[null,null,null,null,null,null,null,null,null,null,null,null,null,null,null,null,null,null,null,null,4984,"PAHIATUA","PAHIATUA","Group5"]
[null,null,null,null,null,null,null,null,null,null,null,null,null,null,null,null,null,null,null,null,4985,"PAHIATUA","PAHIATUA","Group5"]
[null,null,null,null,null,null,null,null,null,null,null,null,null,null,null,null,null,null,null,null,4986,"PAHIATUA","PAHIATUA","Group5"]
[null,null,null,null,null,null,null,null,null,null,null,null,null,null,null,null,null,null,null,null,4987,"PAHIATUA","PAHIATUA","Group5"]
[null,null,null,null,null,null,null,null,null,null,null,null,null,null,null,null,null,null,null,null,4988,"PAHIATUA","PAHIATUA","Group5"]
[null,null,null,null,null,null,null,null,null,null,null,null,null,null,null,null,null,null,null,null,4989,"PAHIATUA","PAHIATUA","Group5"]
[null,null,null,null,null,null,null,null,null,null,null,null,null,null,null,null,null,null,null,null,4990,"PONGAROA","PONGAROA","Group5"]
[null,null,null,null,null,null,null,null,null,null,null,null,null,null,null,null,null,null,null,null,4991,"PONGAROA","PONGAROA","Group5"]
[null,null,null,null,null,null,null,null,null,null,null,null,null,null,null,null,null,null,null,null,4992,"PONGAROA","PONGAROA","Group5"]
[null,null,null,null,null,null,null,null,null,null,null,null,null,null,null,null,null,null,null,null,4993,"EKETAHUNA","EKETAHUNA","Group5"]
[null,null,null,null,null,null,null,null,null,null,null,null,null,null,null,null,null,null,null,null,4994,"EKETAHUNA","EKETAHUNA","Group5"]
[null,null,null,null,null,null,null,null,null,null,null,null,null,null,null,null,null,null,null,null,4995,"EKETAHUNA","EKETAHUNA","Group5"]
[null,null,null,null,null,null,null,null,null,null,null,null,null,null,null,null,null,null,null,null,4996,"EKETAHUNA","EKETAHUNA","Group5"]
[null,null,null,null,null,null,null,null,null,null,null,null,null,null,null,null,null,null,null,null,4997,"WOODVILLE","WOODVILLE","Group5"]
[null,null,null,null,null,null,null,null,null,null,null,null,null,null,null,null,null,null,null,null,4998,"WOODVILLE","WOODVILLE","Group5"]
[null,null,null,null,null,null,null,null,null,null,null,null,null,null,null,null,null,null,null,null,4999,"WOODVILLE","WOODVILLE","Group5"]
[null,null,null,null,null,null,null,null,null,null,null,null,null,null,null,null,null,null,null,null,5010,"LOWER HUTT","ALICETOWN","Group2"]
[null,null,null,null,null,null,null,null,null,null,null,null,null,null,null,null,null,null,null,null,5010,"LOWER HUTT","BELMONT","Group2"]
[null,null,null,null,null,null,null,null,null,null,null,null,null,null,null,null,null,null,null,null,5010,"LOWER HUTT","BOULCOTT","Group2"]
[null,null,null,null,null,null,null,null,null,null,null,null,null,null,null,null,null,null,null,null,5010,"LOWER HUTT","GRACEFIELD","Group2"]
[null,null,null,null,null,null,null,null,null,null,null,null,null,null,null,null,null,null,null,null,5010,"LOWER HUTT","HARBOUR VIEW","Group2"]
[null,null,null,null,null,null,null,null,null,null,null,null,null,null,null,null,null,null,null,null,5010,"LOWER HUTT","HUTT CENTRAL","Group2"]
[null,null,null,null,null,null,null,null,null,null,null,null,null,null,null,null,null,null,null,null,5010,"LOWER HUTT","KELSON","Group2"]
[null,null,null,null,null,null,null,null,null,null,null,null,null,null,null,null,null,null,null,null,5010,"LOWER HUTT","LOWER HUTT","Group2"]
[null,null,null,null,null,null,null,null,null,null,null,null,null,null,null,null,null,null,null,null,5010,"LOWER HUTT","MAUNGARAKI","Group2"]
[null,null,null,null,null,null,null,null,null,null,null,null,null,null,null,null,null,null,null,null,5010,"LOWER HUTT","MELLING","Group2"]
[null,null,null,null,null,null,null,null,null,null,null,null,null,null,null,null,null,null,null,null,5010,"LOWER HUTT","MOERA","Group2"]
[null,null,null,null,null,null,null,null,null,null,null,null,null,null,null,null,null,null,null,null,5010,"LOWER HUTT","NORMANDALE","Group2"]
[null,null,null,null,null,null,null,null,null,null,null,null,null,null,null,null,null,null,null,null,5010,"LOWER HUTT","SEAVIEW","Group2"]
[null,null,null,null,null,null,null,null,null,null,null,null,null,null,null,null,null,null,null,null,5010,"LOWER HUTT","TIROHANGA","Group2"]
[null,null,null,null,null,null,null,null,null,null,null,null,null,null,null,null,null,null,null,null,5010,"LOWER HUTT","WAIWHETU","Group2"]
[null,null,null,null,null,null,null,null,null,null,null,null,null,null,null,null,null,null,null,null,5010,"LOWER HUTT","WOBURN","Group2"]
[null,null,null,null,null,null,null,null,null,null,null,null,null,null,null,null,null,null,null,null,5011,"LOWER HUTT","AVALON","Group2"]
[null,null,null,null,null,null,null,null,null,null,null,null,null,null,null,null,null,null,null,null,5011,"LOWER HUTT","BOULCOTT","Group2"]
[null,null,null,null,null,null,null,null,null,null,null,null,null,null,null,null,null,null,null,null,5011,"LOWER HUTT","EPUNI","Group2"]
[null,null,null,null,null,null,null,null,null,null,null,null,null,null,null,null,null,null,null,null,5011,"LOWER HUTT","FAIRFIELD","Group2"]
[null,null,null,null,null,null,null,null,null,null,null,null,null,null,null,null,null,null,null,null,5011,"LOWER HUTT","HUTT CENTRAL","Group2"]
[null,null,null,null,null,null,null,null,null,null,null,null,null,null,null,null,null,null,null,null,5011,"LOWER HUTT","NAENAE","Group2"]
[null,null,null,null,null,null,null,null,null,null,null,null,null,null,null,null,null,null,null,null,5011,"LOWER HUTT","TAITA","Group2"]
[null,null,null,null,null,null,null,null,null,null,null,null,null,null,null,null,null,null,null,null,5011,"LOWER HUTT","WATERLOO","Group2"]
[null,null,null,null,null,null,null,null,null,null,null,null,null,null,null,null,null,null,null,null,5011,"LOWER HUTT","WOBURN","Group2"]
[null,null,null,null,null,null,null,null,null,null,null,null,null,null,null,null,null,null,null,null,5012,"LOWER HUTT","ALICETOWN","Group2"]
[null,null,null,null,null,null,null,null,null,null,null,null,null,null,null,null,null,null,null,null,5012,"LOWER HUTT","KOROKORO","Group2"]
[null,null,null,null,null,null,null,null,null,null,null,null,null,null,null,null,null,null,null,null,5012,"LOWER HUTT","PETONE","Group2"]
[null,null,null,null,null,null,null,null,null,null,null,null,null,null,null,null,null,null,null,null,5013,"LOWER HUTT","DAYS BAY","Group2"]
[null,null,null,null,null,null,null,null,null,null,null,null,null,null,null,null,null,null,null,null,5013,"LOWER HUTT","EASTBOURNE","Group2"]
[null,null,null,null,null,null,null,null,null,null,null,null,null,null,null,null,null,null,null,null,5013,"LOWER HUTT","LOWRY BAY","Group2"]
[null,null,null,null,null,null,null,null,null,null,null,null,null,null,null,null,null,null,null,null,5013,"LOWER HUTT","MAHINA BAY","Group2"]
[null,null,null,null,null,null,null,null,null,null,null,null,null,null,null,null,null,null,null,null,5013,"LOWER HUTT","MURITAI","Group2"]
[null,null,null,null,null,null,null,null,null,null,null,null,null,null,null,null,null,null,null,null,5013,"LOWER HUTT","PENCARROW HEAD","Group2"]
[null,null,null,null,null,null,null,null,null,null,null,null,null,null,null,null,null,null,null,null,5013,"LOWER HUTT","POINT HOWARD","Group2"]
[null,null,null,null,null,null,null,null,null,null,null,null,null,null,null,null,null,null,null,null,5013,"LOWER HUTT","SUNSHINE BAY","Group2"]
[null,null,null,null,null,null,null,null,null,null,null,null,null,null,null,null,null,null,null,null,5013,"LOWER HUTT","YORK BAY","Group2"]
[null,null,null,null,null,null,null,null,null,null,null,null,null,null,null,null,null,null,null,null,5014,"LOWER HUTT","WAINUIOMATA","Group2"]
[null,null,null,null,null,null,null,null,null,null,null,null,null,null,null,null,null,null,null,null,5016,"WELLINGTON","HOROKIWI","Group2"]
[null,null,null,null,null,null,null,null,null,null,null,null,null,null,null,null,null,null,null,null,5018,"LOWER HUTT","HAYWARDS","Group2"]
[null,null,null,null,null,null,null,null,null,null,null,null,null,null,null,null,null,null,null,null,5018,"UPPER HUTT","AKATARAWA","Group2"]
[null,null,null,null,null,null,null,null,null,null,null,null,null,null,null,null,null,null,null,null,5018,"UPPER HUTT","BIRCHVILLE","Group2"]
[null,null,null,null,null,null,null,null,null,null,null,null,null,null,null,null,null,null,null,null,5018,"UPPER HUTT","BROWN OWL","Group2"]
[null,null,null,null,null,null,null,null,null,null,null,null,null,null,null,null,null,null,null,null,5018,"UPPER HUTT","CLOUSTON PARK","Group2"]
[null,null,null,null,null,null,null,null,null,null,null,null,null,null,null,null,null,null,null,null,5018,"UPPER HUTT","CRAIGS FLAT","Group2"]
[null,null,null,null,null,null,null,null,null,null,null,null,null,null,null,null,null,null,null,null,5018,"UPPER HUTT","EBDENTOWN","Group2"]
[null,null,null,null,null,null,null,null,null,null,null,null,null,null,null,null,null,null,null,null,5018,"UPPER HUTT","ELDERSLEA","Group2"]
[null,null,null,null,null,null,null,null,null,null,null,null,null,null,null,null,null,null,null,null,5018,"UPPER HUTT","HERETAUNGA","Group2"]
[null,null,null,null,null,null,null,null,null,null,null,null,null,null,null,null,null,null,null,null,5018,"UPPER HUTT","KINGSLEY HEIGHTS","Group2"]
[null,null,null,null,null,null,null,null,null,null,null,null,null,null,null,null,null,null,null,null,5018,"UPPER HUTT","MAIDSTONE","Group2"]
[null,null,null,null,null,null,null,null,null,null,null,null,null,null,null,null,null,null,null,null,5018,"UPPER HUTT","MANGAROA","Group2"]
[null,null,null,null,null,null,null,null,null,null,null,null,null,null,null,null,null,null,null,null,5018,"UPPER HUTT","MAORIBANK","Group2"]
[null,null,null,null,null,null,null,null,null,null,null,null,null,null,null,null,null,null,null,null,5018,"UPPER HUTT","MAYMORN","Group2"]
[null,null,null,null,null,null,null,null,null,null,null,null,null,null,null,null,null,null,null,null,5018,"UPPER HUTT","PAKURATAHI","Group2"]
[null,null,null,null,null,null,null,null,null,null,null,null,null,null,null,null,null,null,null,null,5018,"UPPER HUTT","RIVERSTONE TERRACES","Group2"]
[null,null,null,null,null,null,null,null,null,null,null,null,null,null,null,null,null,null,null,null,5018,"UPPER HUTT","TE MARUA","Group2"]
[null,null,null,null,null,null,null,null,null,null,null,null,null,null,null,null,null,null,null,null,5018,"UPPER HUTT","TIMBERLEA","Group2"]
[null,null,null,null,null,null,null,null,null,null,null,null,null,null,null,null,null,null,null,null,5018,"UPPER HUTT","TOTARA PARK","Group2"]
[null,null,null,null,null,null,null,null,null,null,null,null,null,null,null,null,null,null,null,null,5018,"UPPER HUTT","TRENTHAM","Group2"]
[null,null,null,null,null,null,null,null,null,null,null,null,null,null,null,null,null,null,null,null,5018,"UPPER HUTT","UPPER HUTT","Group2"]
[null,null,null,null,null,null,null,null,null,null,null,null,null,null,null,null,null,null,null,null,5018,"UPPER HUTT","WALLACEVILLE","Group2"]
[null,null,null,null,null,null,null,null,null,null,null,null,null,null,null,null,null,null,null,null,5019,"LOWER HUTT","MANOR PARK","Group2"]
[null,null,null,null,null,null,null,null,null,null,null,null,null,null,null,null,null,null,null,null,5019,"LOWER HUTT","STOKES VALLEY","Group2"]
[null,null,null,null,null,null,null,null,null,null,null,null,null,null,null,null,null,null,null,null,5019,"LOWER HUTT","TAITA","Group2"]
[null,null,null,null,null,null,null,null,null,null,null,null,null,null,null,null,null,null,null,null,5019,"UPPER HUTT","PINEHAVEN","Group2"]
[null,null,null,null,null,null,null,null,null,null,null,null,null,null,null,null,null,null,null,null,5019,"UPPER HUTT","SILVERSTREAM","Group2"]
[null,null,null,null,null,null,null,null,null,null,null,null,null,null,null,null,null,null,null,null,5022,"PORIRUA","ELSDON","Group2"]
[null,null,null,null,null,null,null,null,null,null,null,null,null,null,null,null,null,null,null,null,5022,"PORIRUA","PORIRUA","Group2"]
[null,null,null,null,null,null,null,null,null,null,null,null,null,null,null,null,null,null,null,null,5022,"PORIRUA","TAKAPUWAHIA","Group2"]
[null,null,null,null,null,null,null,null,null,null,null,null,null,null,null,null,null,null,null,null,5022,"PORIRUA","TITAHI BAY","Group2"]
[null,null,null,null,null,null,null,null,null,null,null,null,null,null,null,null,null,null,null,null,5024,"PORIRUA","AOTEA","Group2"]
[null,null,null,null,null,null,null,null,null,null,null,null,null,null,null,null,null,null,null,null,5024,"PORIRUA","ASCOT PARK","Group2"]
[null,null,null,null,null,null,null,null,null,null,null,null,null,null,null,null,null,null,null,null,5024,"PORIRUA","CANNONS CREEK","Group2"]
[null,null,null,null,null,null,null,null,null,null,null,null,null,null,null,null,null,null,null,null,5024,"PORIRUA","PAPAKOWHAI","Group2"]
[null,null,null,null,null,null,null,null,null,null,null,null,null,null,null,null,null,null,null,null,5024,"PORIRUA","PAREMATA","Group2"]
[null,null,null,null,null,null,null,null,null,null,null,null,null,null,null,null,null,null,null,null,5024,"PORIRUA","PORIRUA EAST","Group2"]
[null,null,null,null,null,null,null,null,null,null,null,null,null,null,null,null,null,null,null,null,5024,"PORIRUA","RANUI HEIGHTS","Group2"]
[null,null,null,null,null,null,null,null,null,null,null,null,null,null,null,null,null,null,null,null,5024,"PORIRUA","WAITANGIRUA","Group2"]
[null,null,null,null,null,null,null,null,null,null,null,null,null,null,null,null,null,null,null,null,5024,"PORIRUA","WHITBY","Group2"]
[null,null,null,null,null,null,null,null,null,null,null,null,null,null,null,null,null,null,null,null,5026,"PORIRUA","CAMBORNE","Group2"]
[null,null,null,null,null,null,null,null,null,null,null,null,null,null,null,null,null,null,null,null,5026,"PORIRUA","MANA","Group2"]
[null,null,null,null,null,null,null,null,null,null,null,null,null,null,null,null,null,null,null,null,5026,"PORIRUA","PAREMATA","Group2"]
[null,null,null,null,null,null,null,null,null,null,null,null,null,null,null,null,null,null,null,null,5026,"PORIRUA","PLIMMERTON","Group2"]
[null,null,null,null,null,null,null,null,null,null,null,null,null,null,null,null,null,null,null,null,5026,"PUKERUA BAY","PUKERUA BAY","Group2"]
[null,null,null,null,null,null,null,null,null,null,null,null,null,null,null,null,null,null,null,null,5028,"WELLINGTON","GRENADA NORTH","Group2"]
[null,null,null,null,null,null,null,null,null,null,null,null,null,null,null,null,null,null,null,null,5028,"WELLINGTON","TAKAPU VALLEY","Group2"]
[null,null,null,null,null,null,null,null,null,null,null,null,null,null,null,null,null,null,null,null,5028,"WELLINGTON","TAWA","Group2"]
[null,null,null,null,null,null,null,null,null,null,null,null,null,null,null,null,null,null,null,null,5032,"PARAPARAUMU","MAUNGAKOTUKUTUKU","Group2"]
[null,null,null,null,null,null,null,null,null,null,null,null,null,null,null,null,null,null,null,null,5032,"PARAPARAUMU","NIKAU VALLEY","Group2"]
[null,null,null,null,null,null,null,null,null,null,null,null,null,null,null,null,null,null,null,null,5032,"PARAPARAUMU","PARAPARAUMU BEACH","Group2"]
[null,null,null,null,null,null,null,null,null,null,null,null,null,null,null,null,null,null,null,null,5032,"PARAPARAUMU","RAUMATI BEACH","Group2"]
[null,null,null,null,null,null,null,null,null,null,null,null,null,null,null,null,null,null,null,null,5032,"PARAPARAUMU","RAUMATI SOUTH","Group2"]
[null,null,null,null,null,null,null,null,null,null,null,null,null,null,null,null,null,null,null,null,5034,"PAEKAKARIKI","PAEKAKARIKI","Group2"]
[null,null,null,null,null,null,null,null,null,null,null,null,null,null,null,null,null,null,null,null,5034,"PARAPARAUMU","Paraparaumu","Group2"]
[null,null,null,null,null,null,null,null,null,null,null,null,null,null,null,null,null,null,null,null,5036,"PARAPARAUMU","OTAIHANGA","Group2"]
[null,null,null,null,null,null,null,null,null,null,null,null,null,null,null,null,null,null,null,null,5036,"WAIKANAE","WAIKANAE","Group2"]
[null,null,null,null,null,null,null,null,null,null,null,null,null,null,null,null,null,null,null,null,5036,"WAIKANAE","WAIKANAE BEACH","Group2"]
[null,null,null,null,null,null,null,null,null,null,null,null,null,null,null,null,null,null,null,null,5371,"UPPER HUTT","UPPER HUTT","Group4"]
[null,null,null,null,null,null,null,null,null,null,null,null,null,null,null,null,null,null,null,null,5372,"UPPER HUTT","UPPER HUTT","Group4"]
[null,null,null,null,null,null,null,null,null,null,null,null,null,null,null,null,null,null,null,null,5373,"WAINUIOMATA","WAINUIOMATA","Group4"]
[null,null,null,null,null,null,null,null,null,null,null,null,null,null,null,null,null,null,null,null,5381,"PORIRUA","PORIRUA","Group4"]
[null,null,null,null,null,null,null,null,null,null,null,null,null,null,null,null,null,null,null,null,5391,"WAIKANAE","WAIKANAE","Group4"]
[null,null,null,null,null,null,null,null,null,null,null,null,null,null,null,null,null,null,null,null,5510,"LEVIN","LEVIN","Group3"]
[null,null,null,null,null,null,null,null,null,null,null,null,null,null,null,null,null,null,null,null,5510,"LEVIN","WAITARERE","Group3"]
[null,null,null,null,null,null,null,null,null,null,null,null,null,null,null,null,null,null,null,null,5510,"LEVIN","WAITARERE BEACH","Group3"]
[null,null,null,null,null,null,null,null,null,null,null,null,null,null,null,null,null,null,null,null,5512,"OTAKI","OTAKI","Group3"]
[null,null,null,null,null,null,null,null,null,null,null,null,null,null,null,null,null,null,null,null,5512,"OTAKI","OTAKI BEACH","Group3"]
[null,null,null,null,null,null,null,null,null,null,null,null,null,null,null,null,null,null,null,null,5570,"LEVIN","LEVIN","Group4"]
[null,null,null,null,null,null,null,null,null,null,null,null,null,null,null,null,null,null,null,null,5570,"LEVIN","LEVIN","Group4"]
[null,null,null,null,null,null,null,null,null,null,null,null,null,null,null,null,null,null,null,null,5571,"LEVIN","LEVIN","Group4"]
[null,null,null,null,null,null,null,null,null,null,null,null,null,null,null,null,null,null,null,null,5572,"LEVIN","LEVIN","Group4"]
[null,null,null,null,null,null,null,null,null,null,null,null,null,null,null,null,null,null,null,null,5573,"LEVIN","LEVIN","Group4"]
[null,null,null,null,null,null,null,null,null,null,null,null,null,null,null,null,null,null,null,null,5574,"LEVIN","LEVIN","Group4"]
[null,null,null,null,null,null,null,null,null,null,null,null,null,null,null,null,null,null,null,null,5575,"LEVIN","LEVIN","Group4"]
[null,null,null,null,null,null,null,null,null,null,null,null,null,null,null,null,null,null,null,null,5581,"OTAKI","OTAKI","Group4"]
[null,null,null,null,null,null,null,null,null,null,null,null,null,null,null,null,null,null,null,null,5582,"OTAKI","OTAKI","Group4"]
[null,null,null,null,null,null,null,null,null,null,null,null,null,null,null,null,null,null,null,null,5583,"OTAKI","OTAKI","Group4"]
[null,null,null,null,null,null,null,null,null,null,null,null,null,null,null,null,null,null,null,null,5710,"FEATHERSTON","FEATHERSTON","Group3"]
[null,null,null,null,null,null,null,null,null,null,null,null,null,null,null,null,null,null,null,null,5711,"MARTINBOROUGH","HILLSIDE","Group3"]
[null,null,null,null,null,null,null,null,null,null,null,null,null,null,null,null,null,null,null,null,5711,"MARTINBOROUGH","MARTINBOROUGH","Group3"]
[null,null,null,null,null,null,null,null,null,null,null,null,null,null,null,null,null,null,null,null,5712,"GREYTOWN","GREYTOWN","Group3"]
[null,null,null,null,null,null,null,null,null,null,null,null,null,null,null,null,null,null,null,null,5713,"CARTERTON","CARTERTON","Group3"]
[null,null,null,null,null,null,null,null,null,null,null,null,null,null,null,null,null,null,null,null,5713,"CARTERTON","CLAREVILLE","Group3"]
[null,null,null,null,null,null,null,null,null,null,null,null,null,null,null,null,null,null,null,null,5771,"FEATHERSTON","FEATHERSTON","Group4"]
[null,null,null,null,null,null,null,null,null,null,null,null,null,null,null,null,null,null,null,null,5772,"FEATHERSTON","FEATHERSTON","Group4"]
[null,null,null,null,null,null,null,null,null,null,null,null,null,null,null,null,null,null,null,null,5773,"FEATHERSTON","FEATHERSTON","Group4"]
[null,null,null,null,null,null,null,null,null,null,null,null,null,null,null,null,null,null,null,null,5781,"MARTINBOROUGH","MARTINBOROUGH","Group2"]
[null,null,null,null,null,null,null,null,null,null,null,null,null,null,null,null,null,null,null,null,5782,"MARTINBOROUGH","MARTINBOROUGH","Group2"]
[null,null,null,null,null,null,null,null,null,null,null,null,null,null,null,null,null,null,null,null,5783,"MARTINBOROUGH","MARTINBOROUGH","Group2"]
[null,null,null,null,null,null,null,null,null,null,null,null,null,null,null,null,null,null,null,null,5784,"MARTINBOROUGH","MARTINBOROUGH","Group2"]
[null,null,null,null,null,null,null,null,null,null,null,null,null,null,null,null,null,null,null,null,5791,"CARTERTON","CARTERTON","Group4"]
[null,null,null,null,null,null,null,null,null,null,null,null,null,null,null,null,null,null,null,null,5792,"CARTERTON","CARTERTON","Group4"]
[null,null,null,null,null,null,null,null,null,null,null,null,null,null,null,null,null,null,null,null,5794,"GREYTOWN","GREYTOWN","Group4"]
[null,null,null,null,null,null,null,null,null,null,null,null,null,null,null,null,null,null,null,null,5810,"MASTERTON","HOMEBUSH","Group3"]
[null,null,null,null,null,null,null,null,null,null,null,null,null,null,null,null,null,null,null,null,5810,"MASTERTON","KURIPUNI","Group3"]
[null,null,null,null,null,null,null,null,null,null,null,null,null,null,null,null,null,null,null,null,5810,"MASTERTON","LANSDOWNE","Group3"]
[null,null,null,null,null,null,null,null,null,null,null,null,null,null,null,null,null,null,null,null,5810,"MASTERTON","MASTERTON","Group3"]
[null,null,null,null,null,null,null,null,null,null,null,null,null,null,null,null,null,null,null,null,5810,"MASTERTON","SOLWAY","Group3"]
[null,null,null,null,null,null,null,null,null,null,null,null,null,null,null,null,null,null,null,null,5810,"MASTERTON","TE ORE ORE","Group3"]
[null,null,null,null,null,null,null,null,null,null,null,null,null,null,null,null,null,null,null,null,5810,"MASTERTON","UPPER PLAIN","Group3"]
[null,null,null,null,null,null,null,null,null,null,null,null,null,null,null,null,null,null,null,null,5871,"MASTERTON","MASTERTON","Group4"]
[null,null,null,null,null,null,null,null,null,null,null,null,null,null,null,null,null,null,null,null,5872,"MASTERTON","MASTERTON","Group4"]
[null,null,null,null,null,null,null,null,null,null,null,null,null,null,null,null,null,null,null,null,5881,"MASTERTON","MASTERTON","Group4"]
[null,null,null,null,null,null,null,null,null,null,null,null,null,null,null,null,null,null,null,null,5882,"MASTERTON","MASTERTON","Group4"]
[null,null,null,null,null,null,null,null,null,null,null,null,null,null,null,null,null,null,null,null,5883,"MASTERTON","MASTERTON","Group4"]
[null,null,null,null,null,null,null,null,null,null,null,null,null,null,null,null,null,null,null,null,5884,"MASTERTON","MASTERTON","Group4"]
[null,null,null,null,null,null,null,null,null,null,null,null,null,null,null,null,null,null,null,null,5885,"MASTERTON","MASTERTON","Group4"]
[null,null,null,null,null,null,null,null,null,null,null,null,null,null,null,null,null,null,null,null,5886,"MASTERTON","MASTERTON","Group4"]
[null,null,null,null,null,null,null,null,null,null,null,null,null,null,null,null,null,null,null,null,5887,"MASTERTON","MASTERTON","Group4"]
[null,null,null,null,null,null,null,null,null,null,null,null,null,null,null,null,null,null,null,null,5888,"MASTERTON","MASTERTON","Group4"]
[null,null,null,null,null,null,null,null,null,null,null,null,null,null,null,null,null,null,null,null,5889,"MASTERTON","MASTERTON","Group4"]
[null,null,null,null,null,null,null,null,null,null,null,null,null,null,null,null,null,null,null,null,5890,"MASTERTON","MASTERTON","Group4"]
[null,null,null,null,null,null,null,null,null,null,null,null,null,null,null,null,null,null,null,null,5894,"TINUI","TINUI","Group4"]
[null,null,null,null,null,null,null,null,null,null,null,null,null,null,null,null,null,null,null,null,6011,"WELLINGTON","ARO VALLEY","Group2"]
[null,null,null,null,null,null,null,null,null,null,null,null,null,null,null,null,null,null,null,null,6011,"WELLINGTON","HATAITAI","Group2"]
[null,null,null,null,null,null,null,null,null,null,null,null,null,null,null,null,null,null,null,null,6011,"WELLINGTON","MOUNT COOK","Group2"]
[null,null,null,null,null,null,null,null,null,null,null,null,null,null,null,null,null,null,null,null,6011,"WELLINGTON","MOUNT VICTORIA","Group2"]
[null,null,null,null,null,null,null,null,null,null,null,null,null,null,null,null,null,null,null,null,6011,"WELLINGTON","ORIENTAL BAY","Group2"]
[null,null,null,null,null,null,null,null,null,null,null,null,null,null,null,null,null,null,null,null,6011,"WELLINGTON","PIPITEA","Group2"]
[null,null,null,null,null,null,null,null,null,null,null,null,null,null,null,null,null,null,null,null,6011,"WELLINGTON","ROSENEATH","Group2"]
[null,null,null,null,null,null,null,null,null,null,null,null,null,null,null,null,null,null,null,null,6011,"WELLINGTON","TE ARO","Group2"]
[null,null,null,null,null,null,null,null,null,null,null,null,null,null,null,null,null,null,null,null,6011,"WELLINGTON","THORNDON","Group2"]
[null,null,null,null,null,null,null,null,null,null,null,null,null,null,null,null,null,null,null,null,6011,"WELLINGTON","WELLINGTON CENTRAL","Group2"]
[null,null,null,null,null,null,null,null,null,null,null,null,null,null,null,null,null,null,null,null,6012,"WELLINGTON","ARO VALLEY","Group2"]
[null,null,null,null,null,null,null,null,null,null,null,null,null,null,null,null,null,null,null,null,6012,"WELLINGTON","BROOKLYN","Group2"]
[null,null,null,null,null,null,null,null,null,null,null,null,null,null,null,null,null,null,null,null,6012,"WELLINGTON","HIGHBURY","Group2"]
[null,null,null,null,null,null,null,null,null,null,null,null,null,null,null,null,null,null,null,null,6012,"WELLINGTON","KARORI","Group2"]
[null,null,null,null,null,null,null,null,null,null,null,null,null,null,null,null,null,null,null,null,6012,"WELLINGTON","KELBURN","Group2"]
[null,null,null,null,null,null,null,null,null,null,null,null,null,null,null,null,null,null,null,null,6012,"WELLINGTON","NORTHLAND","Group2"]
[null,null,null,null,null,null,null,null,null,null,null,null,null,null,null,null,null,null,null,null,6012,"WELLINGTON","TE ARO","Group2"]
[null,null,null,null,null,null,null,null,null,null,null,null,null,null,null,null,null,null,null,null,6012,"WELLINGTON","THORNDON","Group2"]
[null,null,null,null,null,null,null,null,null,null,null,null,null,null,null,null,null,null,null,null,6012,"WELLINGTON","WADESTOWN","Group2"]
[null,null,null,null,null,null,null,null,null,null,null,null,null,null,null,null,null,null,null,null,6012,"WELLINGTON","WELLINGTON CENTRAL","Group2"]
[null,null,null,null,null,null,null,null,null,null,null,null,null,null,null,null,null,null,null,null,6012,"WELLINGTON","WILTON","Group2"]
[null,null,null,null,null,null,null,null,null,null,null,null,null,null,null,null,null,null,null,null,6021,"WELLINGTON","ARO VALLEY","Group2"]
[null,null,null,null,null,null,null,null,null,null,null,null,null,null,null,null,null,null,null,null,6021,"WELLINGTON","BERHAMPORE","Group2"]
[null,null,null,null,null,null,null,null,null,null,null,null,null,null,null,null,null,null,null,null,6021,"WELLINGTON","BROOKLYN","Group2"]
[null,null,null,null,null,null,null,null,null,null,null,null,null,null,null,null,null,null,null,null,6021,"WELLINGTON","HATAITAI","Group2"]
[null,null,null,null,null,null,null,null,null,null,null,null,null,null,null,null,null,null,null,null,6021,"WELLINGTON","KELBURN","Group2"]
[null,null,null,null,null,null,null,null,null,null,null,null,null,null,null,null,null,null,null,null,6021,"WELLINGTON","KINGSTON","Group2"]
[null,null,null,null,null,null,null,null,null,null,null,null,null,null,null,null,null,null,null,null,6021,"WELLINGTON","MORNINGTON","Group2"]
[null,null,null,null,null,null,null,null,null,null,null,null,null,null,null,null,null,null,null,null,6021,"WELLINGTON","MOUNT COOK","Group2"]
[null,null,null,null,null,null,null,null,null,null,null,null,null,null,null,null,null,null,null,null,6021,"WELLINGTON","MOUNT VICTORIA","Group2"]
[null,null,null,null,null,null,null,null,null,null,null,null,null,null,null,null,null,null,null,null,6021,"WELLINGTON","NEWTOWN","Group2"]
[null,null,null,null,null,null,null,null,null,null,null,null,null,null,null,null,null,null,null,null,6021,"WELLINGTON","ROSENEATH","Group2"]
[null,null,null,null,null,null,null,null,null,null,null,null,null,null,null,null,null,null,null,null,6021,"WELLINGTON","VOGELTOWN","Group2"]
[null,null,null,null,null,null,null,null,null,null,null,null,null,null,null,null,null,null,null,null,6022,"WELLINGTON","BREAKER BAY","Group2"]
[null,null,null,null,null,null,null,null,null,null,null,null,null,null,null,null,null,null,null,null,6022,"WELLINGTON","HOUGHTON BAY","Group2"]
[null,null,null,null,null,null,null,null,null,null,null,null,null,null,null,null,null,null,null,null,6022,"WELLINGTON","KARAKA BAYS","Group2"]
[null,null,null,null,null,null,null,null,null,null,null,null,null,null,null,null,null,null,null,null,6022,"WELLINGTON","KILBIRNIE","Group2"]
[null,null,null,null,null,null,null,null,null,null,null,null,null,null,null,null,null,null,null,null,6022,"WELLINGTON","LYALL BAY","Group2"]
[null,null,null,null,null,null,null,null,null,null,null,null,null,null,null,null,null,null,null,null,6022,"WELLINGTON","MAUPUIA","Group2"]
[null,null,null,null,null,null,null,null,null,null,null,null,null,null,null,null,null,null,null,null,6022,"WELLINGTON","MELROSE","Group2"]
[null,null,null,null,null,null,null,null,null,null,null,null,null,null,null,null,null,null,null,null,6022,"WELLINGTON","MIRAMAR","Group2"]
[null,null,null,null,null,null,null,null,null,null,null,null,null,null,null,null,null,null,null,null,6022,"WELLINGTON","MOA POINT","Group2"]
[null,null,null,null,null,null,null,null,null,null,null,null,null,null,null,null,null,null,null,null,6022,"WELLINGTON","RONGOTAI","Group2"]
[null,null,null,null,null,null,null,null,null,null,null,null,null,null,null,null,null,null,null,null,6022,"WELLINGTON","SEATOUN","Group2"]
[null,null,null,null,null,null,null,null,null,null,null,null,null,null,null,null,null,null,null,null,6022,"WELLINGTON","STRATHMORE PARK","Group2"]
[null,null,null,null,null,null,null,null,null,null,null,null,null,null,null,null,null,null,null,null,6022,"WELLINGTON","VOGELTOWN","Group2"]
[null,null,null,null,null,null,null,null,null,null,null,null,null,null,null,null,null,null,null,null,6023,"WELLINGTON","BERHAMPORE","Group2"]
[null,null,null,null,null,null,null,null,null,null,null,null,null,null,null,null,null,null,null,null,6023,"WELLINGTON","HOUGHTON BAY","Group2"]
[null,null,null,null,null,null,null,null,null,null,null,null,null,null,null,null,null,null,null,null,6023,"WELLINGTON","ISLAND BAY","Group2"]
[null,null,null,null,null,null,null,null,null,null,null,null,null,null,null,null,null,null,null,null,6023,"WELLINGTON","MELROSE","Group2"]
[null,null,null,null,null,null,null,null,null,null,null,null,null,null,null,null,null,null,null,null,6023,"WELLINGTON","OWHIRO BAY","Group2"]
[null,null,null,null,null,null,null,null,null,null,null,null,null,null,null,null,null,null,null,null,6023,"WELLINGTON","SOUTHGATE","Group2"]
[null,null,null,null,null,null,null,null,null,null,null,null,null,null,null,null,null,null,null,null,6035,"WELLINGTON","BROADMEADOWS","Group2"]
[null,null,null,null,null,null,null,null,null,null,null,null,null,null,null,null,null,null,null,null,6035,"WELLINGTON","CROFTON DOWNS","Group2"]
[null,null,null,null,null,null,null,null,null,null,null,null,null,null,null,null,null,null,null,null,6035,"WELLINGTON","KAIWHARAWHARA","Group2"]
[null,null,null,null,null,null,null,null,null,null,null,null,null,null,null,null,null,null,null,null,6035,"WELLINGTON","KHANDALLAH","Group2"]
[null,null,null,null,null,null,null,null,null,null,null,null,null,null,null,null,null,null,null,null,6035,"WELLINGTON","NGAIO","Group2"]
[null,null,null,null,null,null,null,null,null,null,null,null,null,null,null,null,null,null,null,null,6035,"WELLINGTON","NGAURANGA","Group2"]
[null,null,null,null,null,null,null,null,null,null,null,null,null,null,null,null,null,null,null,null,6035,"WELLINGTON","PIPITEA","Group2"]
[null,null,null,null,null,null,null,null,null,null,null,null,null,null,null,null,null,null,null,null,6035,"WELLINGTON","SOUTHGATE","Group2"]
[null,null,null,null,null,null,null,null,null,null,null,null,null,null,null,null,null,null,null,null,6035,"WELLINGTON","WILTON","Group2"]
[null,null,null,null,null,null,null,null,null,null,null,null,null,null,null,null,null,null,null,null,6037,"WELLINGTON","CHURTON PARK","Group2"]
[null,null,null,null,null,null,null,null,null,null,null,null,null,null,null,null,null,null,null,null,6037,"WELLINGTON","GLENSIDE","Group2"]
[null,null,null,null,null,null,null,null,null,null,null,null,null,null,null,null,null,null,null,null,6037,"WELLINGTON","GRENADA VILLAGE","Group2"]
[null,null,null,null,null,null,null,null,null,null,null,null,null,null,null,null,null,null,null,null,6037,"WELLINGTON","JOHNSONVILLE","Group2"]
[null,null,null,null,null,null,null,null,null,null,null,null,null,null,null,null,null,null,null,null,6037,"WELLINGTON","NEWLANDS","Group2"]
[null,null,null,null,null,null,null,null,null,null,null,null,null,null,null,null,null,null,null,null,6037,"WELLINGTON","OHARIU","Group2"]
[null,null,null,null,null,null,null,null,null,null,null,null,null,null,null,null,null,null,null,null,6037,"WELLINGTON","PAPARANGI","Group2"]
[null,null,null,null,null,null,null,null,null,null,null,null,null,null,null,null,null,null,null,null,6037,"WELLINGTON","WOODRIDGE","Group2"]
[null,null,null,null,null,null,null,null,null,null,null,null,null,null,null,null,null,null,null,null,6972,"KARORI","KARORI","Group4"]
[null,null,null,null,null,null,null,null,null,null,null,null,null,null,null,null,null,null,null,null,7005,"MAPUA","MAPUA","Group4"]
[null,null,null,null,null,null,null,null,null,null,null,null,null,null,null,null,null,null,null,null,7005,"MAPUA","RUBY BAY","Group4"]
[null,null,null,null,null,null,null,null,null,null,null,null,null,null,null,null,null,null,null,null,7005,"MAPUA","UPPER MOUTERE","Group4"]
[null,null,null,null,null,null,null,null,null,null,null,null,null,null,null,null,null,null,null,null,7007,"MURCHISON","MURCHISON","Group4"]
[null,null,null,null,null,null,null,null,null,null,null,null,null,null,null,null,null,null,null,null,7010,"NELSON","ATAWHAI","Group2"]
[null,null,null,null,null,null,null,null,null,null,null,null,null,null,null,null,null,null,null,null,7010,"NELSON","BEACHVILLE","Group2"]
[null,null,null,null,null,null,null,null,null,null,null,null,null,null,null,null,null,null,null,null,7010,"NELSON","BISHOPDALE","Group2"]
[null,null,null,null,null,null,null,null,null,null,null,null,null,null,null,null,null,null,null,null,7010,"NELSON","BRITANNIA HEIGHTS","Group2"]
[null,null,null,null,null,null,null,null,null,null,null,null,null,null,null,null,null,null,null,null,7010,"NELSON","MAITAI","Group2"]
[null,null,null,null,null,null,null,null,null,null,null,null,null,null,null,null,null,null,null,null,7010,"NELSON","MARYBANK","Group2"]
[null,null,null,null,null,null,null,null,null,null,null,null,null,null,null,null,null,null,null,null,7010,"NELSON","NELSON","Group2"]
[null,null,null,null,null,null,null,null,null,null,null,null,null,null,null,null,null,null,null,null,7010,"NELSON","NELSON SOUTH","Group2"]
[null,null,null,null,null,null,null,null,null,null,null,null,null,null,null,null,null,null,null,null,7010,"NELSON","PORT NELSON","Group2"]
[null,null,null,null,null,null,null,null,null,null,null,null,null,null,null,null,null,null,null,null,7010,"NELSON","STEPNEYVILLE","Group2"]
[null,null,null,null,null,null,null,null,null,null,null,null,null,null,null,null,null,null,null,null,7010,"NELSON","THE BROOK","Group2"]
[null,null,null,null,null,null,null,null,null,null,null,null,null,null,null,null,null,null,null,null,7010,"NELSON","THE WOOD","Group2"]
[null,null,null,null,null,null,null,null,null,null,null,null,null,null,null,null,null,null,null,null,7010,"NELSON","TOI TOI","Group2"]
[null,null,null,null,null,null,null,null,null,null,null,null,null,null,null,null,null,null,null,null,7010,"NELSON","WASHINGTON VALLEY","Group2"]
[null,null,null,null,null,null,null,null,null,null,null,null,null,null,null,null,null,null,null,null,7011,"NELSON","ANNESBROOK","Group2"]
[null,null,null,null,null,null,null,null,null,null,null,null,null,null,null,null,null,null,null,null,7011,"NELSON","BISHOPDALE","Group2"]
[null,null,null,null,null,null,null,null,null,null,null,null,null,null,null,null,null,null,null,null,7011,"NELSON","BRITANNIA HEIGHTS","Group2"]
[null,null,null,null,null,null,null,null,null,null,null,null,null,null,null,null,null,null,null,null,7011,"NELSON","ENNER GLYNN","Group2"]
[null,null,null,null,null,null,null,null,null,null,null,null,null,null,null,null,null,null,null,null,7011,"NELSON","MOANA","Group2"]
[null,null,null,null,null,null,null,null,null,null,null,null,null,null,null,null,null,null,null,null,7011,"NELSON","MONACO","Group2"]
[null,null,null,null,null,null,null,null,null,null,null,null,null,null,null,null,null,null,null,null,7011,"NELSON","NELSON AIRPORT","Group2"]
[null,null,null,null,null,null,null,null,null,null,null,null,null,null,null,null,null,null,null,null,7011,"NELSON","STOKE","Group2"]
[null,null,null,null,null,null,null,null,null,null,null,null,null,null,null,null,null,null,null,null,7011,"NELSON","TAHUNANUI","Group2"]
[null,null,null,null,null,null,null,null,null,null,null,null,null,null,null,null,null,null,null,null,7011,"NELSON","WAKATU","Group2"]
[null,null,null,null,null,null,null,null,null,null,null,null,null,null,null,null,null,null,null,null,7020,"RICHMOND","HOPE","Group2"]
[null,null,null,null,null,null,null,null,null,null,null,null,null,null,null,null,null,null,null,null,7020,"RICHMOND","RICHMOND","Group2"]
[null,null,null,null,null,null,null,null,null,null,null,null,null,null,null,null,null,null,null,null,7022,"BRIGHTWATER","BRIGHTWATER","Group2"]
[null,null,null,null,null,null,null,null,null,null,null,null,null,null,null,null,null,null,null,null,7025,"WAKEFIELD","WAKEFIELD","Group2"]
[null,null,null,null,null,null,null,null,null,null,null,null,null,null,null,null,null,null,null,null,7071,"NELSON","NELSON","Group4"]
[null,null,null,null,null,null,null,null,null,null,null,null,null,null,null,null,null,null,null,null,7072,"NELSON","NELSON","Group4"]
[null,null,null,null,null,null,null,null,null,null,null,null,null,null,null,null,null,null,null,null,7073,"COLLINGWOOD","COLLINGWOOD","Group4"]
[null,null,null,null,null,null,null,null,null,null,null,null,null,null,null,null,null,null,null,null,7077,"MURCHISON","MURCHISON","Group4"]
[null,null,null,null,null,null,null,null,null,null,null,null,null,null,null,null,null,null,null,null,7081,"RICHMOND","RICHMOND","Group4"]
[null,null,null,null,null,null,null,null,null,null,null,null,null,null,null,null,null,null,null,null,7091,"BRIGHTWATER","BRIGHTWATER","Group3"]
[null,null,null,null,null,null,null,null,null,null,null,null,null,null,null,null,null,null,null,null,7095,"WAKEFIELD","WAKEFIELD","Group3"]
[null,null,null,null,null,null,null,null,null,null,null,null,null,null,null,null,null,null,null,null,7096,"WAKEFIELD","WAKEFIELD","Group3"]
[null,null,null,null,null,null,null,null,null,null,null,null,null,null,null,null,null,null,null,null,7100,"HAVELOCK","HAVELOCK","Group4"]
[null,null,null,null,null,null,null,null,null,null,null,null,null,null,null,null,null,null,null,null,7110,"TAKAKA","TAKAKA","Group4"]
[null,null,null,null,null,null,null,null,null,null,null,null,null,null,null,null,null,null,null,null,7120,"MOTUEKA","MOTUEKA","Group3"]
[null,null,null,null,null,null,null,null,null,null,null,null,null,null,null,null,null,null,null,null,7173,"UPPER MOUTERE","UPPER MOUTERE","Group4"]
[null,null,null,null,null,null,null,null,null,null,null,null,null,null,null,null,null,null,null,null,7175,"UPPER MOUTERE","UPPER MOUTERE","Group4"]
[null,null,null,null,null,null,null,null,null,null,null,null,null,null,null,null,null,null,null,null,7178,"HAVELOCK","HAVELOCK","Group4"]
[null,null,null,null,null,null,null,null,null,null,null,null,null,null,null,null,null,null,null,null,7182,"TAKAKA","TAKAKA","Group4"]
[null,null,null,null,null,null,null,null,null,null,null,null,null,null,null,null,null,null,null,null,7183,"TAKAKA","TAKAKA","Group4"]
[null,null,null,null,null,null,null,null,null,null,null,null,null,null,null,null,null,null,null,null,7192,"RAI VALLEY","RAI VALLEY","Group4"]
[null,null,null,null,null,null,null,null,null,null,null,null,null,null,null,null,null,null,null,null,7193,"FRENCH PASS","FRENCH PASS","Group4"]
[null,null,null,null,null,null,null,null,null,null,null,null,null,null,null,null,null,null,null,null,7194,"RAI VALLEY","RAI VALLEY","Group4"]
[null,null,null,null,null,null,null,null,null,null,null,null,null,null,null,null,null,null,null,null,7195,"RAI VALLEY","RAI VALLEY","Group4"]
[null,null,null,null,null,null,null,null,null,null,null,null,null,null,null,null,null,null,null,null,7196,"MOTUEKA","MOTUEKA","Group3"]
[null,null,null,null,null,null,null,null,null,null,null,null,null,null,null,null,null,null,null,null,7197,"MOTUEKA","MOTUEKA","Group3"]
[null,null,null,null,null,null,null,null,null,null,null,null,null,null,null,null,null,null,null,null,7198,"MOTUEKA","MOTUEKA","Group3"]
[null,null,null,null,null,null,null,null,null,null,null,null,null,null,null,null,null,null,null,null,7201,"BLENHEIM","BLENHEIM","Group3"]
[null,null,null,null,null,null,null,null,null,null,null,null,null,null,null,null,null,null,null,null,7201,"BLENHEIM","BURLEIGH","Group3"]
[null,null,null,null,null,null,null,null,null,null,null,null,null,null,null,null,null,null,null,null,7201,"BLENHEIM","ISLINGTON","Group3"]
[null,null,null,null,null,null,null,null,null,null,null,null,null,null,null,null,null,null,null,null,7201,"BLENHEIM","MAYFIELD","Group3"]
[null,null,null,null,null,null,null,null,null,null,null,null,null,null,null,null,null,null,null,null,7201,"BLENHEIM","REDWOODTOWN","Group3"]
[null,null,null,null,null,null,null,null,null,null,null,null,null,null,null,null,null,null,null,null,7201,"BLENHEIM","RIVERLANDS","Group3"]
[null,null,null,null,null,null,null,null,null,null,null,null,null,null,null,null,null,null,null,null,7201,"BLENHEIM","RIVERSDALE","Group3"]
[null,null,null,null,null,null,null,null,null,null,null,null,null,null,null,null,null,null,null,null,7201,"BLENHEIM","SPRINGLANDS","Group3"]
[null,null,null,null,null,null,null,null,null,null,null,null,null,null,null,null,null,null,null,null,7201,"BLENHEIM","WITHER HILLS","Group3"]
[null,null,null,null,null,null,null,null,null,null,null,null,null,null,null,null,null,null,null,null,7201,"BLENHEIM","WITHERLEA","Group3"]
[null,null,null,null,null,null,null,null,null,null,null,null,null,null,null,null,null,null,null,null,7201,"BLENHEIM","YELVERTON","Group3"]
[null,null,null,null,null,null,null,null,null,null,null,null,null,null,null,null,null,null,null,null,7202,"BLENHEIM","GROVETOWN","Group4"]
[null,null,null,null,null,null,null,null,null,null,null,null,null,null,null,null,null,null,null,null,7202,"SPRING CREEK","SPRING CREEK","Group4"]
[null,null,null,null,null,null,null,null,null,null,null,null,null,null,null,null,null,null,null,null,7204,"RENWICK","RENWICK","Group3"]
[null,null,null,null,null,null,null,null,null,null,null,null,null,null,null,null,null,null,null,null,7206,"BLENHEIM","WOODBOURNE","Group4"]
[null,null,null,null,null,null,null,null,null,null,null,null,null,null,null,null,null,null,null,null,7210,"SEDDON","SEDDON","Group4"]
[null,null,null,null,null,null,null,null,null,null,null,null,null,null,null,null,null,null,null,null,7220,"PICTON","PICTON","Group3"]
[null,null,null,null,null,null,null,null,null,null,null,null,null,null,null,null,null,null,null,null,7220,"PICTON","WAIKAWA","Group3"]
[null,null,null,null,null,null,null,null,null,null,null,null,null,null,null,null,null,null,null,null,7271,"BLENHEIM","BLENHEIM","Group4"]
[null,null,null,null,null,null,null,null,null,null,null,null,null,null,null,null,null,null,null,null,7272,"BLENHEIM","BLENHEIM","Group4"]
[null,null,null,null,null,null,null,null,null,null,null,null,null,null,null,null,null,null,null,null,7273,"BLENHEIM","BLENHEIM","Group4"]
[null,null,null,null,null,null,null,null,null,null,null,null,null,null,null,null,null,null,null,null,7274,"BLENHEIM","BLENHEIM","Group4"]
[null,null,null,null,null,null,null,null,null,null,null,null,null,null,null,null,null,null,null,null,7275,"BLENHEIM","BLENHEIM","Group4"]
[null,null,null,null,null,null,null,null,null,null,null,null,null,null,null,null,null,null,null,null,7276,"BLENHEIM","BLENHEIM","Group4"]
[null,null,null,null,null,null,null,null,null,null,null,null,null,null,null,null,null,null,null,null,7281,"PICTON","HAVELOCK","Group4"]
[null,null,null,null,null,null,null,null,null,null,null,null,null,null,null,null,null,null,null,null,7281,"PICTON","HAVELOCK","Group4"]
[null,null,null,null,null,null,null,null,null,null,null,null,null,null,null,null,null,null,null,null,7281,"PICTON","PICTON","Group4"]
[null,null,null,null,null,null,null,null,null,null,null,null,null,null,null,null,null,null,null,null,7282,"PICTON","PICTON","Group4"]
[null,null,null,null,null,null,null,null,null,null,null,null,null,null,null,null,null,null,null,null,7284,"PICTON","PICTON","Group4"]
[null,null,null,null,null,null,null,null,null,null,null,null,null,null,null,null,null,null,null,null,7285,"SEDDON","SEDDON","Group4"]
[null,null,null,null,null,null,null,null,null,null,null,null,null,null,null,null,null,null,null,null,7300,"KAIKOURA","KAIKOURA","Group4"]
[null,null,null,null,null,null,null,null,null,null,null,null,null,null,null,null,null,null,null,null,7300,"KAIKOURA","KAIKOURA FLAT","Group4"]
[null,null,null,null,null,null,null,null,null,null,null,null,null,null,null,null,null,null,null,null,7300,"KAIKOURA","SOUTH BAY","Group4"]
[null,null,null,null,null,null,null,null,null,null,null,null,null,null,null,null,null,null,null,null,7310,"CHEVIOT","CHEVIOT","Group4"]
[null,null,null,null,null,null,null,null,null,null,null,null,null,null,null,null,null,null,null,null,7332,"WAIAU","WAIAU","Group4"]
[null,null,null,null,null,null,null,null,null,null,null,null,null,null,null,null,null,null,null,null,7334,"HANMER SPRINGS","HANMER SPRINGS","Group3"]
[null,null,null,null,null,null,null,null,null,null,null,null,null,null,null,null,null,null,null,null,7371,"KAIKOURA","KAIKOURA","Group5"]
[null,null,null,null,null,null,null,null,null,null,null,null,null,null,null,null,null,null,null,null,7373,"KAIKOURA","KAIKOURA","Group5"]
[null,null,null,null,null,null,null,null,null,null,null,null,null,null,null,null,null,null,null,null,7374,"KAIKOURA","KAIKOURA","Group5"]
[null,null,null,null,null,null,null,null,null,null,null,null,null,null,null,null,null,null,null,null,7379,"ROTHERHAM","ROTHERHAM","Group5"]
[null,null,null,null,null,null,null,null,null,null,null,null,null,null,null,null,null,null,null,null,7381,"CHEVIOT","CHEVIOT","Group4"]
[null,null,null,null,null,null,null,null,null,null,null,null,null,null,null,null,null,null,null,null,7382,"CHEVIOT","CHEVIOT","Group5"]
[null,null,null,null,null,null,null,null,null,null,null,null,null,null,null,null,null,null,null,null,7382,"CHEVIOT","CHEVIOT","Group5"]
[null,null,null,null,null,null,null,null,null,null,null,null,null,null,null,null,null,null,null,null,7383,"CHEVIOT","CHEVIOT","Group5"]
[null,null,null,null,null,null,null,null,null,null,null,null,null,null,null,null,null,null,null,null,7384,"CHEVIOT","CHEVIOT","Group5"]
[null,null,null,null,null,null,null,null,null,null,null,null,null,null,null,null,null,null,null,null,7385,"HAWARDEN","HAWARDEN","Group5"]
[null,null,null,null,null,null,null,null,null,null,null,null,null,null,null,null,null,null,null,null,7387,"GRETA VALLEY","AMBERLEY","Group5"]
[null,null,null,null,null,null,null,null,null,null,null,null,null,null,null,null,null,null,null,null,7387,"GRETA VALLEY","GRETA VALLEY","Group5"]
[null,null,null,null,null,null,null,null,null,null,null,null,null,null,null,null,null,null,null,null,7391,"CULVERDEN","CULVERDEN","Group5"]
[null,null,null,null,null,null,null,null,null,null,null,null,null,null,null,null,null,null,null,null,7392,"CULVERDEN","CULVERDEN","Group5"]
[null,null,null,null,null,null,null,null,null,null,null,null,null,null,null,null,null,null,null,null,7395,"WAIAU","WAIAU","Group5"]
[null,null,null,null,null,null,null,null,null,null,null,null,null,null,null,null,null,null,null,null,7400,"RANGIORA","RANGIORA","Group3"]
[null,null,null,null,null,null,null,null,null,null,null,null,null,null,null,null,null,null,null,null,7402,"WAIKUKU BEACH","WAIKUKU BEACH","Group4"]
[null,null,null,null,null,null,null,null,null,null,null,null,null,null,null,null,null,null,null,null,7410,"AMBERLEY","AMBERLEY","Group4"]
[null,null,null,null,null,null,null,null,null,null,null,null,null,null,null,null,null,null,null,null,7420,"WAIKARI","WAIKARI","Group4"]
[null,null,null,null,null,null,null,null,null,null,null,null,null,null,null,null,null,null,null,null,7430,"OXFORD","OXFORD","Group4"]
[null,null,null,null,null,null,null,null,null,null,null,null,null,null,null,null,null,null,null,null,7471,"RANGIORA","RANGIORA","Group3"]
[null,null,null,null,null,null,null,null,null,null,null,null,null,null,null,null,null,null,null,null,7472,"RANGIORA","RANGIORA","Group4"]
[null,null,null,null,null,null,null,null,null,null,null,null,null,null,null,null,null,null,null,null,7473,"RANGIORA","RANGIORA","Group4"]
[null,null,null,null,null,null,null,null,null,null,null,null,null,null,null,null,null,null,null,null,7475,"RANGIORA","RANGIORA","Group4"]
[null,null,null,null,null,null,null,null,null,null,null,null,null,null,null,null,null,null,null,null,7476,"RANGIORA","RANGIORA","Group4"]
[null,null,null,null,null,null,null,null,null,null,null,null,null,null,null,null,null,null,null,null,7477,"RANGIORA","RANGIORA","Group4"]
[null,null,null,null,null,null,null,null,null,null,null,null,null,null,null,null,null,null,null,null,7481,"AMBERLEY","AMBERLEY","Group4"]
[null,null,null,null,null,null,null,null,null,null,null,null,null,null,null,null,null,null,null,null,7482,"AMBERLEY","AMBERLEY","Group4"]
[null,null,null,null,null,null,null,null,null,null,null,null,null,null,null,null,null,null,null,null,7483,"AMBERLEY","WAIPARA","Group4"]
[null,null,null,null,null,null,null,null,null,null,null,null,null,null,null,null,null,null,null,null,7483,"AMBERLEY","WAIPARA","Group4"]
[null,null,null,null,null,null,null,null,null,null,null,null,null,null,null,null,null,null,null,null,7483,"AMBERLEY","AMBERLEY","Group4"]
[null,null,null,null,null,null,null,null,null,null,null,null,null,null,null,null,null,null,null,null,7491,"WAIKARI","WAIKARI","Group4"]
[null,null,null,null,null,null,null,null,null,null,null,null,null,null,null,null,null,null,null,null,7495,"OXFORD","OXFORD","Group4"]
[null,null,null,null,null,null,null,null,null,null,null,null,null,null,null,null,null,null,null,null,7500,"SHEFFIELD","SHEFFIELD","Group4"]
[null,null,null,null,null,null,null,null,null,null,null,null,null,null,null,null,null,null,null,null,7500,"WADDINGTON","WADDINGTON","Group4"]
[null,null,null,null,null,null,null,null,null,null,null,null,null,null,null,null,null,null,null,null,7510,"DARFIELD","DARFIELD","Group4"]
[null,null,null,null,null,null,null,null,null,null,null,null,null,null,null,null,null,null,null,null,7520,"AKAROA","AKAROA","Group4"]
[null,null,null,null,null,null,null,null,null,null,null,null,null,null,null,null,null,null,null,null,7571,"DARFIELD","Darfield","Group3"]
[null,null,null,null,null,null,null,null,null,null,null,null,null,null,null,null,null,null,null,null,7580,"SHEFFIELD","SHEFFIELD","Group4"]
[null,null,null,null,null,null,null,null,null,null,null,null,null,null,null,null,null,null,null,null,7581,"AKAROA","AKAROA","Group4"]
[null,null,null,null,null,null,null,null,null,null,null,null,null,null,null,null,null,null,null,null,7582,"AKAROA","AKAROA","Group4"]
[null,null,null,null,null,null,null,null,null,null,null,null,null,null,null,null,null,null,null,null,7583,"AKAROA","OKAINS BAY","Group4"]
[null,null,null,null,null,null,null,null,null,null,null,null,null,null,null,null,null,null,null,null,7591,"LITTLE RIVER","LITTLE RIVER","Group4"]
[null,null,null,null,null,null,null,null,null,null,null,null,null,null,null,null,null,null,null,null,7600,"BURNHAM","BURNHAM CAMP","Group4"]
[null,null,null,null,null,null,null,null,null,null,null,null,null,null,null,null,null,null,null,null,7602,"SOUTHBRIDGE","SOUTHBRIDGE","Group4"]
[null,null,null,null,null,null,null,null,null,null,null,null,null,null,null,null,null,null,null,null,7604,"PREBBLETON","PREBBLETON","Group4"]
[null,null,null,null,null,null,null,null,null,null,null,null,null,null,null,null,null,null,null,null,7608,"LINCOLN","LINCOLN","Group3"]
[null,null,null,null,null,null,null,null,null,null,null,null,null,null,null,null,null,null,null,null,7610,"WOODEND","WOODEND","Group3"]
[null,null,null,null,null,null,null,null,null,null,null,null,null,null,null,null,null,null,null,null,7614,"ROLLESTON","ROLLESTON","Group3"]
[null,null,null,null,null,null,null,null,null,null,null,null,null,null,null,null,null,null,null,null,7615,"ROLLESTON","ROLLESTON","Group3"]
[null,null,null,null,null,null,null,null,null,null,null,null,null,null,null,null,null,null,null,null,7616,"SPRINGSTON","SPRINGSTON","Group3"]
[null,null,null,null,null,null,null,null,null,null,null,null,null,null,null,null,null,null,null,null,7630,"KAIAPOI","KAIRAKI BEACH","Group3"]
[null,null,null,null,null,null,null,null,null,null,null,null,null,null,null,null,null,null,null,null,7630,"KAIRAKI","PINES BEACH","Group3"]
[null,null,null,null,null,null,null,null,null,null,null,null,null,null,null,null,null,null,null,null,7630,"THE PINES BEACH","KAIAPOI","Group3"]
[null,null,null,null,null,null,null,null,null,null,null,null,null,null,null,null,null,null,null,null,7632,"LEESTON","LEESTON","Group3"]
[null,null,null,null,null,null,null,null,null,null,null,null,null,null,null,null,null,null,null,null,7670,"BELFAST","BELFAST","Group3"]
[null,null,null,null,null,null,null,null,null,null,null,null,null,null,null,null,null,null,null,null,7671,"CHRISTCHURCH","CHRISTCHURCH","Group4"]
[null,null,null,null,null,null,null,null,null,null,null,null,null,null,null,null,null,null,null,null,7672,"CHRISTCHURCH","CHRISTCHURCH","Group4"]
[null,null,null,null,null,null,null,null,null,null,null,null,null,null,null,null,null,null,null,null,7673,"COALGATE","COALGATE","Group4"]
[null,null,null,null,null,null,null,null,null,null,null,null,null,null,null,null,null,null,null,null,7674,"CHRISTCHURCH","CHRISTCHURCH","Group4"]
[null,null,null,null,null,null,null,null,null,null,null,null,null,null,null,null,null,null,null,null,7675,"CHRISTCHURCH","CHRISTCHURCH","Group4"]
[null,null,null,null,null,null,null,null,null,null,null,null,null,null,null,null,null,null,null,null,7676,"CHRISTCHURCH","YALDHURST","Group4"]
[null,null,null,null,null,null,null,null,null,null,null,null,null,null,null,null,null,null,null,null,7677,"CHRISTCHURCH","CHRISTCHURCH","Group4"]
[null,null,null,null,null,null,null,null,null,null,null,null,null,null,null,null,null,null,null,null,7678,"CHRISTCHURCH","CHRISTCHURCH","Group4"]
[null,null,null,null,null,null,null,null,null,null,null,null,null,null,null,null,null,null,null,null,7681,"SPRINGFIELD","SPRINGFIELD","Group4"]
[null,null,null,null,null,null,null,null,null,null,null,null,null,null,null,null,null,null,null,null,7682,"LEESTON","LEESTON","Group4"]
[null,null,null,null,null,null,null,null,null,null,null,null,null,null,null,null,null,null,null,null,7683,"LEESTON","LEESTON","Group4"]
[null,null,null,null,null,null,null,null,null,null,null,null,null,null,null,null,null,null,null,null,7691,"KAIAPOI","KAIAPOI","Group3"]
[null,null,null,null,null,null,null,null,null,null,null,null,null,null,null,null,null,null,null,null,7692,"KAIAPOI","KAIAPOI","Group3"]
[null,null,null,null,null,null,null,null,null,null,null,null,null,null,null,null,null,null,null,null,7700,"ASHBURTON","ALLENTON","Group3"]
[null,null,null,null,null,null,null,null,null,null,null,null,null,null,null,null,null,null,null,null,7700,"ASHBURTON","ASHBURTON","Group3"]
[null,null,null,null,null,null,null,null,null,null,null,null,null,null,null,null,null,null,null,null,7700,"ASHBURTON","ELGIN","Group3"]
[null,null,null,null,null,null,null,null,null,null,null,null,null,null,null,null,null,null,null,null,7700,"ASHBURTON","HAMPSTEAD","Group3"]
[null,null,null,null,null,null,null,null,null,null,null,null,null,null,null,null,null,null,null,null,7700,"ASHBURTON","NETHERBY","Group3"]
[null,null,null,null,null,null,null,null,null,null,null,null,null,null,null,null,null,null,null,null,7700,"ASHBURTON","TINWALD","Group3"]
[null,null,null,null,null,null,null,null,null,null,null,null,null,null,null,null,null,null,null,null,7710,"RAKAIA","RAKAIA","Group4"]
[null,null,null,null,null,null,null,null,null,null,null,null,null,null,null,null,null,null,null,null,7730,"METHVEN","METHVEN","Group4"]
[null,null,null,null,null,null,null,null,null,null,null,null,null,null,null,null,null,null,null,null,7771,"ASHBURTON","ASHBURTON","Group5"]
[null,null,null,null,null,null,null,null,null,null,null,null,null,null,null,null,null,null,null,null,7772,"ASHBURTON","ASHBURTON","Group5"]
[null,null,null,null,null,null,null,null,null,null,null,null,null,null,null,null,null,null,null,null,7773,"ASHBURTON","ASHBURTON","Group5"]
[null,null,null,null,null,null,null,null,null,null,null,null,null,null,null,null,null,null,null,null,7774,"ASHBURTON","ASHBURTON","Group5"]
[null,null,null,null,null,null,null,null,null,null,null,null,null,null,null,null,null,null,null,null,7775,"ASHBURTON","ASHBURTON","Group5"]
[null,null,null,null,null,null,null,null,null,null,null,null,null,null,null,null,null,null,null,null,7776,"ASHBURTON","ASHBURTON","Group5"]
[null,null,null,null,null,null,null,null,null,null,null,null,null,null,null,null,null,null,null,null,7777,"ASHBURTON","ASHBURTON","Group5"]
[null,null,null,null,null,null,null,null,null,null,null,null,null,null,null,null,null,null,null,null,7778,"ASHBURTON","ASHBURTON","Group5"]
[null,null,null,null,null,null,null,null,null,null,null,null,null,null,null,null,null,null,null,null,7781,"RAKAIA","RAKAIA","Group5"]
[null,null,null,null,null,null,null,null,null,null,null,null,null,null,null,null,null,null,null,null,7782,"RAKAIA","RAKAIA","Group5"]
[null,null,null,null,null,null,null,null,null,null,null,null,null,null,null,null,null,null,null,null,7783,"RAKAIA","RAKAIA","Group5"]
[null,null,null,null,null,null,null,null,null,null,null,null,null,null,null,null,null,null,null,null,7784,"RAKAIA","RAKAIA","Group5"]
[null,null,null,null,null,null,null,null,null,null,null,null,null,null,null,null,null,null,null,null,7791,"METHVEN","METHVEN","Group5"]
[null,null,null,null,null,null,null,null,null,null,null,null,null,null,null,null,null,null,null,null,7802,"GREYMOUTH","COAL CREEK","Group5"]
[null,null,null,null,null,null,null,null,null,null,null,null,null,null,null,null,null,null,null,null,7802,"GREYMOUTH","COBDEN","Group5"]
[null,null,null,null,null,null,null,null,null,null,null,null,null,null,null,null,null,null,null,null,7802,"GREYMOUTH","POINT ELIZABETH","Group5"]
[null,null,null,null,null,null,null,null,null,null,null,null,null,null,null,null,null,null,null,null,7803,"RUNANGA","RUNANGA","Group5"]
[null,null,null,null,null,null,null,null,null,null,null,null,null,null,null,null,null,null,null,null,7803,"GREYMOUTH","RAPAHOE","Group5"]
[null,null,null,null,null,null,null,null,null,null,null,null,null,null,null,null,null,null,null,null,7803,"GREYMOUTH","RUNANGA","Group5"]
[null,null,null,null,null,null,null,null,null,null,null,null,null,null,null,null,null,null,null,null,7803,"RUNANGA","DUNOLLIE","Group5"]
[null,null,null,null,null,null,null,null,null,null,null,null,null,null,null,null,null,null,null,null,7803,"RUNANGA","RUNANGA","Group5"]
[null,null,null,null,null,null,null,null,null,null,null,null,null,null,null,null,null,null,null,null,7804,"BLACKBALL","BLACKBALL","Group5"]
[null,null,null,null,null,null,null,null,null,null,null,null,null,null,null,null,null,null,null,null,7804,"GREYMOUTH","COAL CREEK","Group5"]
[null,null,null,null,null,null,null,null,null,null,null,null,null,null,null,null,null,null,null,null,7805,"ARNOLD VALLEY","DUNGANVILLE","Group5"]
[null,null,null,null,null,null,null,null,null,null,null,null,null,null,null,null,null,null,null,null,7805,"GREYMOUTH","BLAKETOWN","Group5"]
[null,null,null,null,null,null,null,null,null,null,null,null,null,null,null,null,null,null,null,null,7805,"GREYMOUTH","CAMERONS","Group5"]
[null,null,null,null,null,null,null,null,null,null,null,null,null,null,null,null,null,null,null,null,7805,"GREYMOUTH","DOBSON","Group5"]
[null,null,null,null,null,null,null,null,null,null,null,null,null,null,null,null,null,null,null,null,7805,"GREYMOUTH","GLADSTONE","Group5"]
[null,null,null,null,null,null,null,null,null,null,null,null,null,null,null,null,null,null,null,null,7805,"GREYMOUTH","GREYMOUTH","Group5"]
[null,null,null,null,null,null,null,null,null,null,null,null,null,null,null,null,null,null,null,null,7805,"GREYMOUTH","KAIATA","Group5"]
[null,null,null,null,null,null,null,null,null,null,null,null,null,null,null,null,null,null,null,null,7805,"GREYMOUTH","KARORO","Group5"]
[null,null,null,null,null,null,null,null,null,null,null,null,null,null,null,null,null,null,null,null,7805,"GREYMOUTH","KUMARA","Group5"]
[null,null,null,null,null,null,null,null,null,null,null,null,null,null,null,null,null,null,null,null,7805,"GREYMOUTH","MARSDEN","Group5"]
[null,null,null,null,null,null,null,null,null,null,null,null,null,null,null,null,null,null,null,null,7805,"GREYMOUTH","PAROA","Group5"]
[null,null,null,null,null,null,null,null,null,null,null,null,null,null,null,null,null,null,null,null,7805,"GREYMOUTH","RUTHERGLEN","Group5"]
[null,null,null,null,null,null,null,null,null,null,null,null,null,null,null,null,null,null,null,null,7805,"GREYMOUTH","STILLWATER","Group5"]
[null,null,null,null,null,null,null,null,null,null,null,null,null,null,null,null,null,null,null,null,7805,"GREYMOUTH","TAYLORVILLE","Group5"]
[null,null,null,null,null,null,null,null,null,null,null,null,null,null,null,null,null,null,null,null,7810,"HOKITIKA","HOKITIKA","Group5"]
[null,null,null,null,null,null,null,null,null,null,null,null,null,null,null,null,null,null,null,null,7810,"HOKITIKA","SEAVIEW","Group5"]
[null,null,null,null,null,null,null,null,null,null,null,null,null,null,null,null,null,null,null,null,7811,"HOKITIKA","BLUE SPUR","Group5"]
[null,null,null,null,null,null,null,null,null,null,null,null,null,null,null,null,null,null,null,null,7811,"HOKITIKA","KANIERE","Group5"]
[null,null,null,null,null,null,null,null,null,null,null,null,null,null,null,null,null,null,null,null,7812,"ROSS","ROSS","Group5"]
[null,null,null,null,null,null,null,null,null,null,null,null,null,null,null,null,null,null,null,null,7822,"HECTOR","HECTOR","Group5"]
[null,null,null,null,null,null,null,null,null,null,null,null,null,null,null,null,null,null,null,null,7822,"HECTOR","NGAKAWAU","Group5"]
[null,null,null,null,null,null,null,null,null,null,null,null,null,null,null,null,null,null,null,null,7823,"GRANITY","GRANITY","Group5"]
[null,null,null,null,null,null,null,null,null,null,null,null,null,null,null,null,null,null,null,null,7825,"WESTPORT","CARTERS BEACH","Group5"]
[null,null,null,null,null,null,null,null,null,null,null,null,null,null,null,null,null,null,null,null,7825,"WESTPORT","WESTPORT","Group5"]
[null,null,null,null,null,null,null,null,null,null,null,null,null,null,null,null,null,null,null,null,7830,"REEFTON","RAHU SADDLE","Group5"]
[null,null,null,null,null,null,null,null,null,null,null,null,null,null,null,null,null,null,null,null,7830,"REEFTON","REEFTON","Group5"]
[null,null,null,null,null,null,null,null,null,null,null,null,null,null,null,null,null,null,null,null,7832,"KUMARA","DILLMANSTOWN","Group5"]
[null,null,null,null,null,null,null,null,null,null,null,null,null,null,null,null,null,null,null,null,7832,"KUMARA","KUMARA JUNCTION","Group5"]
[null,null,null,null,null,null,null,null,null,null,null,null,null,null,null,null,null,null,null,null,7871,"BLACKBALL","IKAMATUA","Group5"]
[null,null,null,null,null,null,null,null,null,null,null,null,null,null,null,null,null,null,null,null,7871,"BLACKBALL","IKAMATUA","Group5"]
[null,null,null,null,null,null,null,null,null,null,null,null,null,null,null,null,null,null,null,null,7871,"BLACKBALL","BLACKBALL","Group5"]
[null,null,null,null,null,null,null,null,null,null,null,null,null,null,null,null,null,null,null,null,7872,"DOBSON","DOBSON","Group5"]
[null,null,null,null,null,null,null,null,null,null,null,null,null,null,null,null,null,null,null,null,7873,"RUNANGA","RUNANGA","Group5"]
[null,null,null,null,null,null,null,null,null,null,null,null,null,null,null,null,null,null,null,null,7875,"KUMARA","KUMARA","Group5"]
[null,null,null,null,null,null,null,null,null,null,null,null,null,null,null,null,null,null,null,null,7881,"HOKITIKA","HOKITIKA","Group5"]
[null,null,null,null,null,null,null,null,null,null,null,null,null,null,null,null,null,null,null,null,7882,"HOKITIKA","HOKITIKA","Group5"]
[null,null,null,null,null,null,null,null,null,null,null,null,null,null,null,null,null,null,null,null,7883,"HOKITIKA","HOKITIKA","Group5"]
[null,null,null,null,null,null,null,null,null,null,null,null,null,null,null,null,null,null,null,null,7884,"HARIHARI","HARIHARI","Group5"]
[null,null,null,null,null,null,null,null,null,null,null,null,null,null,null,null,null,null,null,null,7885,"ROSS","ROSS","Group5"]
[null,null,null,null,null,null,null,null,null,null,null,null,null,null,null,null,null,null,null,null,7886,"WHATAROA","WHATAROA","Group5"]
[null,null,null,null,null,null,null,null,null,null,null,null,null,null,null,null,null,null,null,null,7891,"WESTPORT","WESTPORT","Group5"]
[null,null,null,null,null,null,null,null,null,null,null,null,null,null,null,null,null,null,null,null,7892,"WESTPORT","WESTPORT","Group5"]
[null,null,null,null,null,null,null,null,null,null,null,null,null,null,null,null,null,null,null,null,7893,"KARAMEA","KARAMEA","Group5"]
[null,null,null,null,null,null,null,null,null,null,null,null,null,null,null,null,null,null,null,null,7895,"REEFTON","REEFTON","Group5"]
[null,null,null,null,null,null,null,null,null,null,null,null,null,null,null,null,null,null,null,null,7901,"TWIZEL","TWIZEL","Group4"]
[null,null,null,null,null,null,null,null,null,null,null,null,null,null,null,null,null,null,null,null,7903,"PLEASANT POINT","PLEASANT POINT","Group4"]
[null,null,null,null,null,null,null,null,null,null,null,null,null,null,null,null,null,null,null,null,7910,"TIMARU","GLENITI","Group4"]
[null,null,null,null,null,null,null,null,null,null,null,null,null,null,null,null,null,null,null,null,7910,"TIMARU","GLENWOOD","Group4"]
[null,null,null,null,null,null,null,null,null,null,null,null,null,null,null,null,null,null,null,null,7910,"TIMARU","HIGHFIELD","Group4"]
[null,null,null,null,null,null,null,null,null,null,null,null,null,null,null,null,null,null,null,null,7910,"TIMARU","KENSINGTON","Group4"]
[null,null,null,null,null,null,null,null,null,null,null,null,null,null,null,null,null,null,null,null,7910,"TIMARU","MAORI HILL","Group4"]
[null,null,null,null,null,null,null,null,null,null,null,null,null,null,null,null,null,null,null,null,7910,"TIMARU","MARCHWIEL","Group4"]
[null,null,null,null,null,null,null,null,null,null,null,null,null,null,null,null,null,null,null,null,7910,"TIMARU","OCEANVIEW","Group4"]
[null,null,null,null,null,null,null,null,null,null,null,null,null,null,null,null,null,null,null,null,7910,"TIMARU","PARKSIDE","Group4"]
[null,null,null,null,null,null,null,null,null,null,null,null,null,null,null,null,null,null,null,null,7910,"TIMARU","REDRUTH","Group4"]
[null,null,null,null,null,null,null,null,null,null,null,null,null,null,null,null,null,null,null,null,7910,"TIMARU","SEAVIEW","Group4"]
[null,null,null,null,null,null,null,null,null,null,null,null,null,null,null,null,null,null,null,null,7910,"TIMARU","SMITHFIELD","Group4"]
[null,null,null,null,null,null,null,null,null,null,null,null,null,null,null,null,null,null,null,null,7910,"TIMARU","ST ANDREWS","Group4"]
[null,null,null,null,null,null,null,null,null,null,null,null,null,null,null,null,null,null,null,null,7910,"TIMARU","TIMARU","Group4"]
[null,null,null,null,null,null,null,null,null,null,null,null,null,null,null,null,null,null,null,null,7910,"TIMARU","TIMARU PORT","Group4"]
[null,null,null,null,null,null,null,null,null,null,null,null,null,null,null,null,null,null,null,null,7910,"TIMARU","WAIMATAITAI","Group4"]
[null,null,null,null,null,null,null,null,null,null,null,null,null,null,null,null,null,null,null,null,7910,"TIMARU","WASHDYKE","Group4"]
[null,null,null,null,null,null,null,null,null,null,null,null,null,null,null,null,null,null,null,null,7910,"TIMARU","WATLINGTON","Group4"]
[null,null,null,null,null,null,null,null,null,null,null,null,null,null,null,null,null,null,null,null,7910,"TIMARU","WEST END","Group4"]
[null,null,null,null,null,null,null,null,null,null,null,null,null,null,null,null,null,null,null,null,7912,"PAREORA","PAREORA","Group5"]
[null,null,null,null,null,null,null,null,null,null,null,null,null,null,null,null,null,null,null,null,7920,"TEMUKA","TEMUKA","Group5"]
[null,null,null,null,null,null,null,null,null,null,null,null,null,null,null,null,null,null,null,null,7924,"WAIMATE","WAIMATE","Group5"]
[null,null,null,null,null,null,null,null,null,null,null,null,null,null,null,null,null,null,null,null,7925,"FAIRLIE","FAIRLIE","Group5"]
[null,null,null,null,null,null,null,null,null,null,null,null,null,null,null,null,null,null,null,null,7930,"GERALDINE","GERALDINE","Group5"]
[null,null,null,null,null,null,null,null,null,null,null,null,null,null,null,null,null,null,null,null,7971,"TIMARU","TIMARU","Group5"]
[null,null,null,null,null,null,null,null,null,null,null,null,null,null,null,null,null,null,null,null,7972,"TIMARU","TIMARU","Group5"]
[null,null,null,null,null,null,null,null,null,null,null,null,null,null,null,null,null,null,null,null,7973,"TIMARU","TIMARU","Group5"]
[null,null,null,null,null,null,null,null,null,null,null,null,null,null,null,null,null,null,null,null,7974,"TIMARU","TIMARU","Group5"]
[null,null,null,null,null,null,null,null,null,null,null,null,null,null,null,null,null,null,null,null,7975,"TIMARU","TIMARU","Group5"]
[null,null,null,null,null,null,null,null,null,null,null,null,null,null,null,null,null,null,null,null,7977,"WAIMATE","WAIMATE","Group5"]
[null,null,null,null,null,null,null,null,null,null,null,null,null,null,null,null,null,null,null,null,7978,"WAIMATE","WAIMATE","Group5"]
[null,null,null,null,null,null,null,null,null,null,null,null,null,null,null,null,null,null,null,null,7979,"WAIMATE","WAIMATE","Group5"]
[null,null,null,null,null,null,null,null,null,null,null,null,null,null,null,null,null,null,null,null,7980,"WAIMATE","WAIMATE","Group5"]
[null,null,null,null,null,null,null,null,null,null,null,null,null,null,null,null,null,null,null,null,7982,"PLEASANT POINT","PLEASANT POINT","Group5"]
[null,null,null,null,null,null,null,null,null,null,null,null,null,null,null,null,null,null,null,null,7983,"PLEASANT POINT","PLEASANT POINT","Group5"]
[null,null,null,null,null,null,null,null,null,null,null,null,null,null,null,null,null,null,null,null,7984,"CAVE","CAVE","Group5"]
[null,null,null,null,null,null,null,null,null,null,null,null,null,null,null,null,null,null,null,null,7985,"TEMUKA","TEMUKA","Group5"]
[null,null,null,null,null,null,null,null,null,null,null,null,null,null,null,null,null,null,null,null,7986,"TEMUKA","TEMUKA","Group5"]
[null,null,null,null,null,null,null,null,null,null,null,null,null,null,null,null,null,null,null,null,7987,"FAIRLIE","FAIRLIE","Group5"]
[null,null,null,null,null,null,null,null,null,null,null,null,null,null,null,null,null,null,null,null,7988,"ST ANDREWS","ST ANDREWS","Group5"]
[null,null,null,null,null,null,null,null,null,null,null,null,null,null,null,null,null,null,null,null,7990,"PEEL FOREST","PEEL FOREST","Group5"]
[null,null,null,null,null,null,null,null,null,null,null,null,null,null,null,null,null,null,null,null,7991,"GERALDINE","GERALDINE","Group5"]
[null,null,null,null,null,null,null,null,null,null,null,null,null,null,null,null,null,null,null,null,7992,"GERALDINE","GERALDINE","Group5"]
[null,null,null,null,null,null,null,null,null,null,null,null,null,null,null,null,null,null,null,null,7999,"TWIZEL","TWIZEL","Group5"]
[null,null,null,null,null,null,null,null,null,null,null,null,null,null,null,null,null,null,null,null,8011,"CHRISTCHURCH","ADDINGTON","Group3"]
[null,null,null,null,null,null,null,null,null,null,null,null,null,null,null,null,null,null,null,null,8011,"CHRISTCHURCH","CHRISTCHURCH","Group3"]
[null,null,null,null,null,null,null,null,null,null,null,null,null,null,null,null,null,null,null,null,8011,"CHRISTCHURCH","CHRISTCHURCH CENTRAL","Group3"]
[null,null,null,null,null,null,null,null,null,null,null,null,null,null,null,null,null,null,null,null,8011,"CHRISTCHURCH","FENDALTON","Group3"]
[null,null,null,null,null,null,null,null,null,null,null,null,null,null,null,null,null,null,null,null,8011,"CHRISTCHURCH","LINWOOD","Group3"]
[null,null,null,null,null,null,null,null,null,null,null,null,null,null,null,null,null,null,null,null,8011,"CHRISTCHURCH","PHILLIPSTOWN","Group3"]
[null,null,null,null,null,null,null,null,null,null,null,null,null,null,null,null,null,null,null,null,8011,"CHRISTCHURCH","RICCARTON","Group3"]
[null,null,null,null,null,null,null,null,null,null,null,null,null,null,null,null,null,null,null,null,8011,"CHRISTCHURCH","SYDENHAM","Group3"]
[null,null,null,null,null,null,null,null,null,null,null,null,null,null,null,null,null,null,null,null,8011,"CHRISTCHURCH","WALTHAM","Group3"]
[null,null,null,null,null,null,null,null,null,null,null,null,null,null,null,null,null,null,null,null,8013,"CHRISTCHURCH","CHRISTCHURCH CENTRAL","Group3"]
[null,null,null,null,null,null,null,null,null,null,null,null,null,null,null,null,null,null,null,null,8013,"CHRISTCHURCH","EDGEWARE","Group3"]
[null,null,null,null,null,null,null,null,null,null,null,null,null,null,null,null,null,null,null,null,8013,"CHRISTCHURCH","MAIREHAU","Group3"]
[null,null,null,null,null,null,null,null,null,null,null,null,null,null,null,null,null,null,null,null,8013,"CHRISTCHURCH","RICHMOND","Group3"]
[null,null,null,null,null,null,null,null,null,null,null,null,null,null,null,null,null,null,null,null,8013,"CHRISTCHURCH","SHIRLEY","Group3"]
[null,null,null,null,null,null,null,null,null,null,null,null,null,null,null,null,null,null,null,null,8014,"CHRISTCHURCH","FENDALTON","Group3"]
[null,null,null,null,null,null,null,null,null,null,null,null,null,null,null,null,null,null,null,null,8014,"CHRISTCHURCH","MERIVALE","Group3"]
[null,null,null,null,null,null,null,null,null,null,null,null,null,null,null,null,null,null,null,null,8014,"CHRISTCHURCH","SAINT ALBANS","Group3"]
[null,null,null,null,null,null,null,null,null,null,null,null,null,null,null,null,null,null,null,null,8014,"CHRISTCHURCH","STROWAN","Group3"]
[null,null,null,null,null,null,null,null,null,null,null,null,null,null,null,null,null,null,null,null,8022,"CHRISTCHURCH","CASHMERE","Group3"]
[null,null,null,null,null,null,null,null,null,null,null,null,null,null,null,null,null,null,null,null,8022,"CHRISTCHURCH","CRACROFT","Group3"]
[null,null,null,null,null,null,null,null,null,null,null,null,null,null,null,null,null,null,null,null,8022,"CHRISTCHURCH","FERRYMEAD","Group3"]
[null,null,null,null,null,null,null,null,null,null,null,null,null,null,null,null,null,null,null,null,8022,"CHRISTCHURCH","HEATHCOTE VALLEY","Group3"]
[null,null,null,null,null,null,null,null,null,null,null,null,null,null,null,null,null,null,null,null,8022,"CHRISTCHURCH","HILLSBOROUGH","Group3"]
[null,null,null,null,null,null,null,null,null,null,null,null,null,null,null,null,null,null,null,null,8022,"CHRISTCHURCH","HUNTSBURY","Group3"]
[null,null,null,null,null,null,null,null,null,null,null,null,null,null,null,null,null,null,null,null,8022,"CHRISTCHURCH","SAINT MARTINS","Group3"]
[null,null,null,null,null,null,null,null,null,null,null,null,null,null,null,null,null,null,null,null,8022,"CHRISTCHURCH","WOOLSTON","Group3"]
[null,null,null,null,null,null,null,null,null,null,null,null,null,null,null,null,null,null,null,null,8023,"CHRISTCHURCH","BECKENHAM","Group3"]
[null,null,null,null,null,null,null,null,null,null,null,null,null,null,null,null,null,null,null,null,8023,"CHRISTCHURCH","CRACROFT","Group3"]
[null,null,null,null,null,null,null,null,null,null,null,null,null,null,null,null,null,null,null,null,8023,"CHRISTCHURCH","FERRYMED","Group3"]
[null,null,null,null,null,null,null,null,null,null,null,null,null,null,null,null,null,null,null,null,8023,"CHRISTCHURCH","OPAWA","Group3"]
[null,null,null,null,null,null,null,null,null,null,null,null,null,null,null,null,null,null,null,null,8023,"CHRISTCHURCH","SPREYDON","Group3"]
[null,null,null,null,null,null,null,null,null,null,null,null,null,null,null,null,null,null,null,null,8023,"CHRISTCHURCH","SYDENHAM","Group3"]
[null,null,null,null,null,null,null,null,null,null,null,null,null,null,null,null,null,null,null,null,8023,"CHRISTCHURCH","WALTHAM","Group3"]
[null,null,null,null,null,null,null,null,null,null,null,null,null,null,null,null,null,null,null,null,8023,"CHRISTCHURCH","WOOLSTON","Group3"]
[null,null,null,null,null,null,null,null,null,null,null,null,null,null,null,null,null,null,null,null,8024,"CHRISTCHURCH","ADDINGTON","Group3"]
[null,null,null,null,null,null,null,null,null,null,null,null,null,null,null,null,null,null,null,null,8024,"CHRISTCHURCH","BECKENHAM","Group3"]
[null,null,null,null,null,null,null,null,null,null,null,null,null,null,null,null,null,null,null,null,8024,"CHRISTCHURCH","MIDDLETON","Group3"]
[null,null,null,null,null,null,null,null,null,null,null,null,null,null,null,null,null,null,null,null,8024,"CHRISTCHURCH","SOMERFIELD","Group3"]
[null,null,null,null,null,null,null,null,null,null,null,null,null,null,null,null,null,null,null,null,8024,"CHRISTCHURCH","SPREYDON","Group3"]
[null,null,null,null,null,null,null,null,null,null,null,null,null,null,null,null,null,null,null,null,8024,"CHRISTCHURCH","UPPER RICCARTON","Group3"]
[null,null,null,null,null,null,null,null,null,null,null,null,null,null,null,null,null,null,null,null,8025,"CHRISTCHURCH","CRACROFT","Group3"]
[null,null,null,null,null,null,null,null,null,null,null,null,null,null,null,null,null,null,null,null,8025,"CHRISTCHURCH","HALSWELL","Group3"]
[null,null,null,null,null,null,null,null,null,null,null,null,null,null,null,null,null,null,null,null,8025,"CHRISTCHURCH","HILLMORTON","Group3"]
[null,null,null,null,null,null,null,null,null,null,null,null,null,null,null,null,null,null,null,null,8025,"CHRISTCHURCH","HOON HAY","Group3"]
[null,null,null,null,null,null,null,null,null,null,null,null,null,null,null,null,null,null,null,null,8025,"CHRISTCHURCH","HORNBY","Group3"]
[null,null,null,null,null,null,null,null,null,null,null,null,null,null,null,null,null,null,null,null,8025,"CHRISTCHURCH","KENNEDYS BUSH","Group3"]
[null,null,null,null,null,null,null,null,null,null,null,null,null,null,null,null,null,null,null,null,8025,"CHRISTCHURCH","LANSDOWNE","Group3"]
[null,null,null,null,null,null,null,null,null,null,null,null,null,null,null,null,null,null,null,null,8025,"CHRISTCHURCH","WESTMORLAND","Group3"]
[null,null,null,null,null,null,null,null,null,null,null,null,null,null,null,null,null,null,null,null,8025,"CHRISTCHURCH","WIGRAM","Group3"]
[null,null,null,null,null,null,null,null,null,null,null,null,null,null,null,null,null,null,null,null,8041,"CHRISTCHURCH","ADDINGTON","Group3"]
[null,null,null,null,null,null,null,null,null,null,null,null,null,null,null,null,null,null,null,null,8041,"CHRISTCHURCH","AVONHEAD","Group3"]
[null,null,null,null,null,null,null,null,null,null,null,null,null,null,null,null,null,null,null,null,8041,"CHRISTCHURCH","BURNSIDE","Group3"]
[null,null,null,null,null,null,null,null,null,null,null,null,null,null,null,null,null,null,null,null,8041,"CHRISTCHURCH","FENDALTON","Group3"]
[null,null,null,null,null,null,null,null,null,null,null,null,null,null,null,null,null,null,null,null,8041,"CHRISTCHURCH","ILAM","Group3"]
[null,null,null,null,null,null,null,null,null,null,null,null,null,null,null,null,null,null,null,null,8041,"CHRISTCHURCH","RICCARTON","Group3"]
[null,null,null,null,null,null,null,null,null,null,null,null,null,null,null,null,null,null,null,null,8041,"CHRISTCHURCH","SOCKBURN","Group3"]
[null,null,null,null,null,null,null,null,null,null,null,null,null,null,null,null,null,null,null,null,8041,"CHRISTCHURCH","UPPER RICCARTON","Group3"]
[null,null,null,null,null,null,null,null,null,null,null,null,null,null,null,null,null,null,null,null,8042,"CHRISTCHURCH","AVONHEAD","Group3"]
[null,null,null,null,null,null,null,null,null,null,null,null,null,null,null,null,null,null,null,null,8042,"CHRISTCHURCH","BROOMFIELD","Group3"]
[null,null,null,null,null,null,null,null,null,null,null,null,null,null,null,null,null,null,null,null,8042,"CHRISTCHURCH","BURNSIDE","Group3"]
[null,null,null,null,null,null,null,null,null,null,null,null,null,null,null,null,null,null,null,null,8042,"CHRISTCHURCH","HEI HEI","Group3"]
[null,null,null,null,null,null,null,null,null,null,null,null,null,null,null,null,null,null,null,null,8042,"CHRISTCHURCH","HORNBY","Group3"]
[null,null,null,null,null,null,null,null,null,null,null,null,null,null,null,null,null,null,null,null,8042,"CHRISTCHURCH","HORNBY SOUTH","Group3"]
[null,null,null,null,null,null,null,null,null,null,null,null,null,null,null,null,null,null,null,null,8042,"CHRISTCHURCH","ISLINGTON","Group3"]
[null,null,null,null,null,null,null,null,null,null,null,null,null,null,null,null,null,null,null,null,8042,"CHRISTCHURCH","RUSSLEY","Group3"]
[null,null,null,null,null,null,null,null,null,null,null,null,null,null,null,null,null,null,null,null,8042,"CHRISTCHURCH","SOCKBURN","Group3"]
[null,null,null,null,null,null,null,null,null,null,null,null,null,null,null,null,null,null,null,null,8042,"CHRISTCHURCH","TEMPLETON","Group3"]
[null,null,null,null,null,null,null,null,null,null,null,null,null,null,null,null,null,null,null,null,8042,"CHRISTCHURCH","WIGRAM","Group3"]
[null,null,null,null,null,null,null,null,null,null,null,null,null,null,null,null,null,null,null,null,8042,"CHRISTCHURCH","YALDHURST","Group3"]
[null,null,null,null,null,null,null,null,null,null,null,null,null,null,null,null,null,null,null,null,8051,"CHRISTCHURCH","BELFAST","Group3"]
[null,null,null,null,null,null,null,null,null,null,null,null,null,null,null,null,null,null,null,null,8051,"CHRISTCHURCH","BISHOPDALE","Group3"]
[null,null,null,null,null,null,null,null,null,null,null,null,null,null,null,null,null,null,null,null,8051,"CHRISTCHURCH","CASEBROOK","Group3"]
[null,null,null,null,null,null,null,null,null,null,null,null,null,null,null,null,null,null,null,null,8051,"CHRISTCHURCH","HAREWOOD","Group3"]
[null,null,null,null,null,null,null,null,null,null,null,null,null,null,null,null,null,null,null,null,8051,"CHRISTCHURCH","MARSHLAND","Group3"]
[null,null,null,null,null,null,null,null,null,null,null,null,null,null,null,null,null,null,null,null,8051,"CHRISTCHURCH","MCLEANS ISLAND","Group3"]
[null,null,null,null,null,null,null,null,null,null,null,null,null,null,null,null,null,null,null,null,8051,"CHRISTCHURCH","NORTHWOOD","Group3"]
[null,null,null,null,null,null,null,null,null,null,null,null,null,null,null,null,null,null,null,null,8051,"CHRISTCHURCH","REDWOOD","Group3"]
[null,null,null,null,null,null,null,null,null,null,null,null,null,null,null,null,null,null,null,null,8052,"CHRISTCHURCH","BRYNDWR","Group3"]
[null,null,null,null,null,null,null,null,null,null,null,null,null,null,null,null,null,null,null,null,8052,"CHRISTCHURCH","BURNSIDE","Group3"]
[null,null,null,null,null,null,null,null,null,null,null,null,null,null,null,null,null,null,null,null,8052,"CHRISTCHURCH","FENDALTON","Group3"]
[null,null,null,null,null,null,null,null,null,null,null,null,null,null,null,null,null,null,null,null,8052,"CHRISTCHURCH","MAIREHAU","Group3"]
[null,null,null,null,null,null,null,null,null,null,null,null,null,null,null,null,null,null,null,null,8052,"CHRISTCHURCH","NORTHCOTE","Group3"]
[null,null,null,null,null,null,null,null,null,null,null,null,null,null,null,null,null,null,null,null,8052,"CHRISTCHURCH","PAPANUI","Group3"]
[null,null,null,null,null,null,null,null,null,null,null,null,null,null,null,null,null,null,null,null,8052,"CHRISTCHURCH","SAINT ALBANS","Group3"]
[null,null,null,null,null,null,null,null,null,null,null,null,null,null,null,null,null,null,null,null,8052,"CHRISTCHURCH","SHIRLEY","Group3"]
[null,null,null,null,null,null,null,null,null,null,null,null,null,null,null,null,null,null,null,null,8052,"CHRISTCHURCH","STROWAN","Group3"]
[null,null,null,null,null,null,null,null,null,null,null,null,null,null,null,null,null,null,null,null,8053,"CHRISTCHURCH","BISHOPDALE","Group3"]
[null,null,null,null,null,null,null,null,null,null,null,null,null,null,null,null,null,null,null,null,8053,"CHRISTCHURCH","BRYNDWR","Group3"]
[null,null,null,null,null,null,null,null,null,null,null,null,null,null,null,null,null,null,null,null,8053,"CHRISTCHURCH","BURNSIDE","Group3"]
[null,null,null,null,null,null,null,null,null,null,null,null,null,null,null,null,null,null,null,null,8053,"CHRISTCHURCH","CHRISTCHURCH AIRPORT","Group3"]
[null,null,null,null,null,null,null,null,null,null,null,null,null,null,null,null,null,null,null,null,8053,"CHRISTCHURCH","ILAM","Group3"]
[null,null,null,null,null,null,null,null,null,null,null,null,null,null,null,null,null,null,null,null,8053,"CHRISTCHURCH","PAPANUI","Group3"]
[null,null,null,null,null,null,null,null,null,null,null,null,null,null,null,null,null,null,null,null,8061,"CHRISTCHURCH","ARANUI","Group3"]
[null,null,null,null,null,null,null,null,null,null,null,null,null,null,null,null,null,null,null,null,8061,"CHRISTCHURCH","AVONDALE","Group3"]
[null,null,null,null,null,null,null,null,null,null,null,null,null,null,null,null,null,null,null,null,8061,"CHRISTCHURCH","AVONSIDE","Group3"]
[null,null,null,null,null,null,null,null,null,null,null,null,null,null,null,null,null,null,null,null,8061,"CHRISTCHURCH","BEXLEY","Group3"]
[null,null,null,null,null,null,null,null,null,null,null,null,null,null,null,null,null,null,null,null,8061,"CHRISTCHURCH","BURWOOD","Group3"]
[null,null,null,null,null,null,null,null,null,null,null,null,null,null,null,null,null,null,null,null,8061,"CHRISTCHURCH","DALLINGTON","Group3"]
[null,null,null,null,null,null,null,null,null,null,null,null,null,null,null,null,null,null,null,null,8061,"CHRISTCHURCH","NEW BRIGHTON","Group3"]
[null,null,null,null,null,null,null,null,null,null,null,null,null,null,null,null,null,null,null,null,8061,"CHRISTCHURCH","SHIRLEY","Group3"]
[null,null,null,null,null,null,null,null,null,null,null,null,null,null,null,null,null,null,null,null,8061,"CHRISTCHURCH","WAINONI","Group3"]
[null,null,null,null,null,null,null,null,null,null,null,null,null,null,null,null,null,null,null,null,8062,"CHRISTCHURCH","BROMLEY","Group3"]
[null,null,null,null,null,null,null,null,null,null,null,null,null,null,null,null,null,null,null,null,8062,"CHRISTCHURCH","LINWOOD","Group3"]
[null,null,null,null,null,null,null,null,null,null,null,null,null,null,null,null,null,null,null,null,8062,"CHRISTCHURCH","NEW BRIGHTON","Group3"]
[null,null,null,null,null,null,null,null,null,null,null,null,null,null,null,null,null,null,null,null,8062,"CHRISTCHURCH","PHILLIPSTOWN","Group3"]
[null,null,null,null,null,null,null,null,null,null,null,null,null,null,null,null,null,null,null,null,8062,"CHRISTCHURCH","SOUTH NEW BRIGHTON","Group3"]
[null,null,null,null,null,null,null,null,null,null,null,null,null,null,null,null,null,null,null,null,8062,"CHRISTCHURCH","SOUTHSHORE","Group3"]
[null,null,null,null,null,null,null,null,null,null,null,null,null,null,null,null,null,null,null,null,8062,"CHRISTCHURCH","WOOLSTON","Group3"]
[null,null,null,null,null,null,null,null,null,null,null,null,null,null,null,null,null,null,null,null,8081,"CHRISTCHURCH","CLIFTON","Group3"]
[null,null,null,null,null,null,null,null,null,null,null,null,null,null,null,null,null,null,null,null,8081,"CHRISTCHURCH","FERRYMEAD","Group3"]
[null,null,null,null,null,null,null,null,null,null,null,null,null,null,null,null,null,null,null,null,8081,"CHRISTCHURCH","HEATHCOTE VALLEY","Group3"]
[null,null,null,null,null,null,null,null,null,null,null,null,null,null,null,null,null,null,null,null,8081,"CHRISTCHURCH","MONCKS BAY","Group3"]
[null,null,null,null,null,null,null,null,null,null,null,null,null,null,null,null,null,null,null,null,8081,"CHRISTCHURCH","MOUNT PLEASANT","Group3"]
[null,null,null,null,null,null,null,null,null,null,null,null,null,null,null,null,null,null,null,null,8081,"CHRISTCHURCH","REDCLIFFS","Group3"]
[null,null,null,null,null,null,null,null,null,null,null,null,null,null,null,null,null,null,null,null,8081,"CHRISTCHURCH","RICHMOND HILL","Group3"]
[null,null,null,null,null,null,null,null,null,null,null,null,null,null,null,null,null,null,null,null,8081,"CHRISTCHURCH","SUMNER","Group3"]
[null,null,null,null,null,null,null,null,null,null,null,null,null,null,null,null,null,null,null,null,8082,"LYTTELTON","SUMNER","Group3"]
[null,null,null,null,null,null,null,null,null,null,null,null,null,null,null,null,null,null,null,null,8082,"LYTTELTON","CASS BAY","Group3"]
[null,null,null,null,null,null,null,null,null,null,null,null,null,null,null,null,null,null,null,null,8082,"LYTTELTON","CORSAIR BAY","Group3"]
[null,null,null,null,null,null,null,null,null,null,null,null,null,null,null,null,null,null,null,null,8082,"LYTTELTON","LYTTELTON","Group3"]
[null,null,null,null,null,null,null,null,null,null,null,null,null,null,null,null,null,null,null,null,8082,"LYTTELTON","REDCLIFFS","Group3"]
[null,null,null,null,null,null,null,null,null,null,null,null,null,null,null,null,null,null,null,null,8082,"LYTTELTON","RICHMOND HILL","Group3"]
[null,null,null,null,null,null,null,null,null,null,null,null,null,null,null,null,null,null,null,null,8082,"LYTTELTON","SUMNER","Group3"]
[null,null,null,null,null,null,null,null,null,null,null,null,null,null,null,null,null,null,null,null,8083,"CHRISTCHURCH","BOTTLE LAKE","Group3"]
[null,null,null,null,null,null,null,null,null,null,null,null,null,null,null,null,null,null,null,null,8083,"CHRISTCHURCH","BROOKLANDS","Group3"]
[null,null,null,null,null,null,null,null,null,null,null,null,null,null,null,null,null,null,null,null,8083,"CHRISTCHURCH","BURWOOD","Group3"]
[null,null,null,null,null,null,null,null,null,null,null,null,null,null,null,null,null,null,null,null,8083,"CHRISTCHURCH","KAINGA","Group3"]
[null,null,null,null,null,null,null,null,null,null,null,null,null,null,null,null,null,null,null,null,8083,"CHRISTCHURCH","MARSHLAND","Group3"]
[null,null,null,null,null,null,null,null,null,null,null,null,null,null,null,null,null,null,null,null,8083,"CHRISTCHURCH","NEW BRIGHTON","Group3"]
[null,null,null,null,null,null,null,null,null,null,null,null,null,null,null,null,null,null,null,null,8083,"CHRISTCHURCH","NORTH NEW BRIGHTON","Group3"]
[null,null,null,null,null,null,null,null,null,null,null,null,null,null,null,null,null,null,null,null,8083,"CHRISTCHURCH","PARKLANDS","Group3"]
[null,null,null,null,null,null,null,null,null,null,null,null,null,null,null,null,null,null,null,null,8083,"CHRISTCHURCH","STYX","Group3"]
[null,null,null,null,null,null,null,null,null,null,null,null,null,null,null,null,null,null,null,null,8083,"CHRISTCHURCH","WAIMAIRI BEACH","Group3"]
[null,null,null,null,null,null,null,null,null,null,null,null,null,null,null,null,null,null,null,null,8971,"LYTTELTON","LYTTELTON","Group3"]
[null,null,null,null,null,null,null,null,null,null,null,null,null,null,null,null,null,null,null,null,8972,"DIAMOND HARBOUR","DIAMOND HARBOUR","Group3"]
[null,null,null,null,null,null,null,null,null,null,null,null,null,null,null,null,null,null,null,null,9010,"DUNEDIN","BELLEKNOWES","Group3"]
[null,null,null,null,null,null,null,null,null,null,null,null,null,null,null,null,null,null,null,null,9010,"DUNEDIN","DALMORE","Group3"]
[null,null,null,null,null,null,null,null,null,null,null,null,null,null,null,null,null,null,null,null,9010,"DUNEDIN","GLENLEITH","Group3"]
[null,null,null,null,null,null,null,null,null,null,null,null,null,null,null,null,null,null,null,null,9010,"DUNEDIN","GLENROS","Group3"]
[null,null,null,null,null,null,null,null,null,null,null,null,null,null,null,null,null,null,null,null,9010,"DUNEDIN","HALFWAY BUSH","Group3"]
[null,null,null,null,null,null,null,null,null,null,null,null,null,null,null,null,null,null,null,null,9010,"DUNEDIN","HELENSBURGH","Group3"]
[null,null,null,null,null,null,null,null,null,null,null,null,null,null,null,null,null,null,null,null,9010,"DUNEDIN","KAIKORAI","Group3"]
[null,null,null,null,null,null,null,null,null,null,null,null,null,null,null,null,null,null,null,null,9010,"DUNEDIN","LEITH VALLEY","Group3"]
[null,null,null,null,null,null,null,null,null,null,null,null,null,null,null,null,null,null,null,null,9010,"DUNEDIN","LIBERTON","Group3"]
[null,null,null,null,null,null,null,null,null,null,null,null,null,null,null,null,null,null,null,null,9010,"DUNEDIN","MAORI HILL","Group3"]
[null,null,null,null,null,null,null,null,null,null,null,null,null,null,null,null,null,null,null,null,9010,"DUNEDIN","NORMANBY","Group3"]
[null,null,null,null,null,null,null,null,null,null,null,null,null,null,null,null,null,null,null,null,9010,"DUNEDIN","NORTH DUNEDIN","Group3"]
[null,null,null,null,null,null,null,null,null,null,null,null,null,null,null,null,null,null,null,null,9010,"DUNEDIN","NORTH EAST VALLEY","Group3"]
[null,null,null,null,null,null,null,null,null,null,null,null,null,null,null,null,null,null,null,null,9010,"DUNEDIN","OPOHO","Group3"]
[null,null,null,null,null,null,null,null,null,null,null,null,null,null,null,null,null,null,null,null,9010,"DUNEDIN","PINE HILL","Group3"]
[null,null,null,null,null,null,null,null,null,null,null,null,null,null,null,null,null,null,null,null,9010,"DUNEDIN","ROSLYN","Group3"]
[null,null,null,null,null,null,null,null,null,null,null,null,null,null,null,null,null,null,null,null,9010,"DUNEDIN","UPPER JUNCTION","Group3"]
[null,null,null,null,null,null,null,null,null,null,null,null,null,null,null,null,null,null,null,null,9010,"DUNEDIN","WAKARI","Group3"]
[null,null,null,null,null,null,null,null,null,null,null,null,null,null,null,null,null,null,null,null,9010,"DUNEDIN","WOODHAUGH","Group3"]
[null,null,null,null,null,null,null,null,null,null,null,null,null,null,null,null,null,null,null,null,9011,"DUNEDIN","BALACLAVA","Group3"]
[null,null,null,null,null,null,null,null,null,null,null,null,null,null,null,null,null,null,null,null,9011,"DUNEDIN","BELLEKNOWES","Group3"]
[null,null,null,null,null,null,null,null,null,null,null,null,null,null,null,null,null,null,null,null,9011,"DUNEDIN","BRADFORD","Group3"]
[null,null,null,null,null,null,null,null,null,null,null,null,null,null,null,null,null,null,null,null,9011,"DUNEDIN","BROCKVILLE","Group3"]
[null,null,null,null,null,null,null,null,null,null,null,null,null,null,null,null,null,null,null,null,9011,"DUNEDIN","BURNSIDE","Group3"]
[null,null,null,null,null,null,null,null,null,null,null,null,null,null,null,null,null,null,null,null,9011,"DUNEDIN","CALTON HILL","Group3"]
[null,null,null,null,null,null,null,null,null,null,null,null,null,null,null,null,null,null,null,null,9011,"DUNEDIN","CAVERSHAM","Group3"]
[null,null,null,null,null,null,null,null,null,null,null,null,null,null,null,null,null,null,null,null,9011,"DUNEDIN","CLYDE HILL","Group3"]
[null,null,null,null,null,null,null,null,null,null,null,null,null,null,null,null,null,null,null,null,9011,"DUNEDIN","GLENROSS","Group3"]
[null,null,null,null,null,null,null,null,null,null,null,null,null,null,null,null,null,null,null,null,9011,"DUNEDIN","KENMURE","Group3"]
[null,null,null,null,null,null,null,null,null,null,null,null,null,null,null,null,null,null,null,null,9011,"DUNEDIN","KENSINGTON","Group3"]
[null,null,null,null,null,null,null,null,null,null,null,null,null,null,null,null,null,null,null,null,9011,"DUNEDIN","LOOKOUT POINT","Group3"]
[null,null,null,null,null,null,null,null,null,null,null,null,null,null,null,null,null,null,null,null,9011,"DUNEDIN","MARYHILL","Group3"]
[null,null,null,null,null,null,null,null,null,null,null,null,null,null,null,null,null,null,null,null,9011,"DUNEDIN","MORNINGTON","Group3"]
[null,null,null,null,null,null,null,null,null,null,null,null,null,null,null,null,null,null,null,null,9011,"DUNEDIN","ROSLYN","Group3"]
[null,null,null,null,null,null,null,null,null,null,null,null,null,null,null,null,null,null,null,null,9011,"DUNEDIN","THE GLEN","Group3"]
[null,null,null,null,null,null,null,null,null,null,null,null,null,null,null,null,null,null,null,null,9012,"DUNEDIN","CALTON HILL","Group3"]
[null,null,null,null,null,null,null,null,null,null,null,null,null,null,null,null,null,null,null,null,9012,"DUNEDIN","CAVERSHAM","Group3"]
[null,null,null,null,null,null,null,null,null,null,null,null,null,null,null,null,null,null,null,null,9012,"DUNEDIN","CONCORD","Group3"]
[null,null,null,null,null,null,null,null,null,null,null,null,null,null,null,null,null,null,null,null,9012,"DUNEDIN","CORSTORPHINE","Group3"]
[null,null,null,null,null,null,null,null,null,null,null,null,null,null,null,null,null,null,null,null,9012,"DUNEDIN","DUNEDIN CENTRAL","Group3"]
[null,null,null,null,null,null,null,null,null,null,null,null,null,null,null,null,null,null,null,null,9012,"DUNEDIN","FORBURY","Group3"]
[null,null,null,null,null,null,null,null,null,null,null,null,null,null,null,null,null,null,null,null,9012,"DUNEDIN","KENSINGTON","Group3"]
[null,null,null,null,null,null,null,null,null,null,null,null,null,null,null,null,null,null,null,null,9012,"DUNEDIN","KEW","Group3"]
[null,null,null,null,null,null,null,null,null,null,null,null,null,null,null,null,null,null,null,null,9012,"DUNEDIN","MUSSELBURGH","Group3"]
[null,null,null,null,null,null,null,null,null,null,null,null,null,null,null,null,null,null,null,null,9012,"DUNEDIN","SAINT CLAIR","Group3"]
[null,null,null,null,null,null,null,null,null,null,null,null,null,null,null,null,null,null,null,null,9012,"DUNEDIN","SAINT KILDA","Group3"]
[null,null,null,null,null,null,null,null,null,null,null,null,null,null,null,null,null,null,null,null,9012,"DUNEDIN","SOUTH DUNEDIN","Group3"]
[null,null,null,null,null,null,null,null,null,null,null,null,null,null,null,null,null,null,null,null,9013,"DUNEDIN","ANDERSONS BAY","Group3"]
[null,null,null,null,null,null,null,null,null,null,null,null,null,null,null,null,null,null,null,null,9013,"DUNEDIN","BROAD BAY","Group3"]
[null,null,null,null,null,null,null,null,null,null,null,null,null,null,null,null,null,null,null,null,9013,"DUNEDIN","HIGHCLIFF","Group3"]
[null,null,null,null,null,null,null,null,null,null,null,null,null,null,null,null,null,null,null,null,9013,"DUNEDIN","LAWYERS HEAD","Group3"]
[null,null,null,null,null,null,null,null,null,null,null,null,null,null,null,null,null,null,null,null,9013,"DUNEDIN","MUSSELBURGH","Group3"]
[null,null,null,null,null,null,null,null,null,null,null,null,null,null,null,null,null,null,null,null,9013,"DUNEDIN","OCEAN GROVE","Group3"]
[null,null,null,null,null,null,null,null,null,null,null,null,null,null,null,null,null,null,null,null,9013,"DUNEDIN","SHIEL HILL","Group3"]
[null,null,null,null,null,null,null,null,null,null,null,null,null,null,null,null,null,null,null,null,9013,"DUNEDIN","TAINUI","Group3"]
[null,null,null,null,null,null,null,null,null,null,null,null,null,null,null,null,null,null,null,null,9013,"DUNEDIN","VAUXHALL","Group3"]
[null,null,null,null,null,null,null,null,null,null,null,null,null,null,null,null,null,null,null,null,9013,"DUNEDIN","WAVERLEY","Group3"]
[null,null,null,null,null,null,null,null,null,null,null,null,null,null,null,null,null,null,null,null,9014,"DUNEDIN","BROAD BAY","Group3"]
[null,null,null,null,null,null,null,null,null,null,null,null,null,null,null,null,null,null,null,null,9014,"DUNEDIN","COMPANY BAY","Group3"]
[null,null,null,null,null,null,null,null,null,null,null,null,null,null,null,null,null,null,null,null,9014,"DUNEDIN","MACANDREW BAY","Group3"]
[null,null,null,null,null,null,null,null,null,null,null,null,null,null,null,null,null,null,null,null,9014,"DUNEDIN","PORTOBELLO","Group3"]
[null,null,null,null,null,null,null,null,null,null,null,null,null,null,null,null,null,null,null,null,9016,"DUNEDIN","DUNEDIN CENTRAL","Group3"]
[null,null,null,null,null,null,null,null,null,null,null,null,null,null,null,null,null,null,null,null,9016,"DUNEDIN","NORTH DUNEDIN","Group3"]
[null,null,null,null,null,null,null,null,null,null,null,null,null,null,null,null,null,null,null,null,9016,"DUNEDIN","ROSLYN","Group3"]
[null,null,null,null,null,null,null,null,null,null,null,null,null,null,null,null,null,null,null,null,9016,"DUNEDIN","SOUTH DUNEDIN","Group3"]
[null,null,null,null,null,null,null,null,null,null,null,null,null,null,null,null,null,null,null,null,9018,"DUNEDIN","ABBOTSFORD","Group3"]
[null,null,null,null,null,null,null,null,null,null,null,null,null,null,null,null,null,null,null,null,9018,"DUNEDIN","BLACKHEAD","Group3"]
[null,null,null,null,null,null,null,null,null,null,null,null,null,null,null,null,null,null,null,null,9018,"DUNEDIN","BURNSIDE","Group3"]
[null,null,null,null,null,null,null,null,null,null,null,null,null,null,null,null,null,null,null,null,9018,"DUNEDIN","CHAIN HILLS","Group3"]
[null,null,null,null,null,null,null,null,null,null,null,null,null,null,null,null,null,null,null,null,9018,"DUNEDIN","CONCORD","Group3"]
[null,null,null,null,null,null,null,null,null,null,null,null,null,null,null,null,null,null,null,null,9018,"DUNEDIN","CORSTORPHINE","Group3"]
[null,null,null,null,null,null,null,null,null,null,null,null,null,null,null,null,null,null,null,null,9018,"DUNEDIN","FAIRFIELD","Group3"]
[null,null,null,null,null,null,null,null,null,null,null,null,null,null,null,null,null,null,null,null,9018,"DUNEDIN","GREEN ISLAND","Group3"]
[null,null,null,null,null,null,null,null,null,null,null,null,null,null,null,null,null,null,null,null,9018,"DUNEDIN","KENMURE","Group3"]
[null,null,null,null,null,null,null,null,null,null,null,null,null,null,null,null,null,null,null,null,9018,"DUNEDIN","WALDRONVILLE","Group3"]
[null,null,null,null,null,null,null,null,null,null,null,null,null,null,null,null,null,null,null,null,9019,"OUTRAM","OUTRAM","Group4"]
[null,null,null,null,null,null,null,null,null,null,null,null,null,null,null,null,null,null,null,null,9022,"DUNEDIN","MAIA","Group3"]
[null,null,null,null,null,null,null,null,null,null,null,null,null,null,null,null,null,null,null,null,9022,"DUNEDIN","RAVENSBOURNE","Group3"]
[null,null,null,null,null,null,null,null,null,null,null,null,null,null,null,null,null,null,null,null,9022,"DUNEDIN","SAINT LEONARDS","Group3"]
[null,null,null,null,null,null,null,null,null,null,null,null,null,null,null,null,null,null,null,null,9023,"PORT CHALMERS","CAREYS BAY","Group3"]
[null,null,null,null,null,null,null,null,null,null,null,null,null,null,null,null,null,null,null,null,9023,"PORT CHALMERS","PORT CHALMERS","Group3"]
[null,null,null,null,null,null,null,null,null,null,null,null,null,null,null,null,null,null,null,null,9023,"PORT CHALMERS","ROSENEATH","Group3"]
[null,null,null,null,null,null,null,null,null,null,null,null,null,null,null,null,null,null,null,null,9023,"PORT CHALMERS","SAWYERS BAY","Group3"]
[null,null,null,null,null,null,null,null,null,null,null,null,null,null,null,null,null,null,null,null,9024,"MOSGIEL","EAST TAIERI","Group3"]
[null,null,null,null,null,null,null,null,null,null,null,null,null,null,null,null,null,null,null,null,9024,"MOSGIEL","KINMONT PARK","Group3"]
[null,null,null,null,null,null,null,null,null,null,null,null,null,null,null,null,null,null,null,null,9024,"MOSGIEL","MOSGIEL","Group3"]
[null,null,null,null,null,null,null,null,null,null,null,null,null,null,null,null,null,null,null,null,9035,"DUNEDIN","ALLANTON","Group4"]
[null,null,null,null,null,null,null,null,null,null,null,null,null,null,null,null,null,null,null,null,9035,"DUNEDIN","BRIGHTON","Group4"]
[null,null,null,null,null,null,null,null,null,null,null,null,null,null,null,null,null,null,null,null,9035,"DUNEDIN","OCEAN VIEW","Group4"]
[null,null,null,null,null,null,null,null,null,null,null,null,null,null,null,null,null,null,null,null,9035,"DUNEDIN","SCROGGS HILL","Group4"]
[null,null,null,null,null,null,null,null,null,null,null,null,null,null,null,null,null,null,null,null,9035,"DUNEDIN","WESTWOOD","Group4"]
[null,null,null,null,null,null,null,null,null,null,null,null,null,null,null,null,null,null,null,null,9074,"OUTRAM","OUTRAM","Group4"]
[null,null,null,null,null,null,null,null,null,null,null,null,null,null,null,null,null,null,null,null,9076,"DUNEDIN","DUNEDIN","Group4"]
[null,null,null,null,null,null,null,null,null,null,null,null,null,null,null,null,null,null,null,null,9073,"OUTRAM","OUTRAM","Group4"]
[null,null,null,null,null,null,null,null,null,null,null,null,null,null,null,null,null,null,null,null,9077,"DUNEDIN","DUNEDIN","Group4"]
[null,null,null,null,null,null,null,null,null,null,null,null,null,null,null,null,null,null,null,null,9081,"PORT CHALMERS","PORT CHALMERS","Group4"]
[null,null,null,null,null,null,null,null,null,null,null,null,null,null,null,null,null,null,null,null,9082,"PORT CHALMERS","PORT CHALMERS","Group4"]
[null,null,null,null,null,null,null,null,null,null,null,null,null,null,null,null,null,null,null,null,9085,"WAITATI","WAITATI","Group4"]
[null,null,null,null,null,null,null,null,null,null,null,null,null,null,null,null,null,null,null,null,9091,"BRIGHTON","BRIGHTON","Group4"]
[null,null,null,null,null,null,null,null,null,null,null,null,null,null,null,null,null,null,null,null,9092,"MOSGIEL","MOSGIEL","Group4"]
[null,null,null,null,null,null,null,null,null,null,null,null,null,null,null,null,null,null,null,null,9210,"KAITANGATA","KAITANGATA","Group4"]
[null,null,null,null,null,null,null,null,null,null,null,null,null,null,null,null,null,null,null,null,9220,"MILTON","MILTON","Group4"]
[null,null,null,null,null,null,null,null,null,null,null,null,null,null,null,null,null,null,null,null,9230,"BALCLUTHA","BALCLUTHA","Group4"]
[null,null,null,null,null,null,null,null,null,null,null,null,null,null,null,null,null,null,null,null,9231,"STIRLING","STIRLING","Group4"]
[null,null,null,null,null,null,null,null,null,null,null,null,null,null,null,null,null,null,null,null,9271,"BALCLUTHA","BALCLUTHA","Group4"]
[null,null,null,null,null,null,null,null,null,null,null,null,null,null,null,null,null,null,null,null,9272,"BALCLUTHA","BALCLUTHA","Group5"]
[null,null,null,null,null,null,null,null,null,null,null,null,null,null,null,null,null,null,null,null,9273,"BALCLUTHA","BALCLUTHA","Group5"]
[null,null,null,null,null,null,null,null,null,null,null,null,null,null,null,null,null,null,null,null,9274,"BALCLUTHA","BALCLUTHA","Group5"]
[null,null,null,null,null,null,null,null,null,null,null,null,null,null,null,null,null,null,null,null,9281,"KAITANGATA","KAITANGATA","Group5"]
[null,null,null,null,null,null,null,null,null,null,null,null,null,null,null,null,null,null,null,null,9282,"KAITANGATA","KAITANGATA","Group5"]
[null,null,null,null,null,null,null,null,null,null,null,null,null,null,null,null,null,null,null,null,9291,"MILTON","MILTON","Group5"]
[null,null,null,null,null,null,null,null,null,null,null,null,null,null,null,null,null,null,null,null,9292,"MILTON","MILTON","Group5"]
[null,null,null,null,null,null,null,null,null,null,null,null,null,null,null,null,null,null,null,null,9300,"QUEENSTOWN","FERNHILL","Group1"]
[null,null,null,null,null,null,null,null,null,null,null,null,null,null,null,null,null,null,null,null,9300,"QUEENSTOWN","FRANKTON","Group1"]
[null,null,null,null,null,null,null,null,null,null,null,null,null,null,null,null,null,null,null,null,9300,"QUEENSTOWN","KAWARAU FALLS","Group1"]
[null,null,null,null,null,null,null,null,null,null,null,null,null,null,null,null,null,null,null,null,9300,"QUEENSTOWN","KELVIN HEIGHTS","Group1"]
[null,null,null,null,null,null,null,null,null,null,null,null,null,null,null,null,null,null,null,null,9300,"QUEENSTOWN","QUEENSTOWN","Group1"]
[null,null,null,null,null,null,null,null,null,null,null,null,null,null,null,null,null,null,null,null,9300,"QUEENSTOWN","SUNSHINE BAY","Group1"]
[null,null,null,null,null,null,null,null,null,null,null,null,null,null,null,null,null,null,null,null,9302,"ARROWTOWN","ARROWTOWN","Group1"]
[null,null,null,null,null,null,null,null,null,null,null,null,null,null,null,null,null,null,null,null,9304,"QUEENSTOWN","LAKE HAYES ESTATE","Group1"]
[null,null,null,null,null,null,null,null,null,null,null,null,null,null,null,null,null,null,null,null,9305,"WANAKA","ALBERT TOWN","Group2"]
[null,null,null,null,null,null,null,null,null,null,null,null,null,null,null,null,null,null,null,null,9305,"WANAKA","WANAKA","Group2"]
[null,null,null,null,null,null,null,null,null,null,null,null,null,null,null,null,null,null,null,null,9310,"CROMWELL","CROMWELL","Group4"]
[null,null,null,null,null,null,null,null,null,null,null,null,null,null,null,null,null,null,null,null,9320,"ALEXANDRA","ALEXANDRA","Group4"]
[null,null,null,null,null,null,null,null,null,null,null,null,null,null,null,null,null,null,null,null,9320,"ALEXANDRA","BRIDGE HILL","Group4"]
[null,null,null,null,null,null,null,null,null,null,null,null,null,null,null,null,null,null,null,null,9320,"ALEXANDRA","LITTLE VALLEY","Group4"]
[null,null,null,null,null,null,null,null,null,null,null,null,null,null,null,null,null,null,null,null,9330,"CLYDE","CLYDEVALE","Group4"]
[null,null,null,null,null,null,null,null,null,null,null,null,null,null,null,null,null,null,null,null,9332,"RANFURLY","RANFURLY","Group4"]
[null,null,null,null,null,null,null,null,null,null,null,null,null,null,null,null,null,null,null,null,9371,"QUEENSTOWN","QUEENSTOWN","Group5"]
[null,null,null,null,null,null,null,null,null,null,null,null,null,null,null,null,null,null,null,null,9372,"GLENORCHY","GLENORCHY","Group5"]
[null,null,null,null,null,null,null,null,null,null,null,null,null,null,null,null,null,null,null,null,9376,"OMAKAU","OMAKAU","Group5"]
[null,null,null,null,null,null,null,null,null,null,null,null,null,null,null,null,null,null,null,null,9377,"OMAKAU","OMAKAU","Group5"]
[null,null,null,null,null,null,null,null,null,null,null,null,null,null,null,null,null,null,null,null,9382,"WANAKA","WANAKA","Group5"]
[null,null,null,null,null,null,null,null,null,null,null,null,null,null,null,null,null,null,null,null,9383,"CROMWELL","CROMWELL","Group5"]
[null,null,null,null,null,null,null,null,null,null,null,null,null,null,null,null,null,null,null,null,9384,"CROMWELL","CROMWELL","Group5"]
[null,null,null,null,null,null,null,null,null,null,null,null,null,null,null,null,null,null,null,null,9386,"OTUREHUA","OTUREHUA","Group5"]
[null,null,null,null,null,null,null,null,null,null,null,null,null,null,null,null,null,null,null,null,9387,"OTUREHUA","OTUREHUA","Group5"]
[null,null,null,null,null,null,null,null,null,null,null,null,null,null,null,null,null,null,null,null,9391,"ALEXANDRA","ALEXANDRA","Group5"]
[null,null,null,null,null,null,null,null,null,null,null,null,null,null,null,null,null,null,null,null,9392,"ALEXANDRA","ALEXANDRA","Group5"]
[null,null,null,null,null,null,null,null,null,null,null,null,null,null,null,null,null,null,null,null,9393,"ALEXANDRA","ALEXANDRA","Group5"]
[null,null,null,null,null,null,null,null,null,null,null,null,null,null,null,null,null,null,null,null,9395,"RANFURLY","RANFURLY","Group5"]
[null,null,null,null,null,null,null,null,null,null,null,null,null,null,null,null,null,null,null,null,9396,"RANFURLY","RANFURLY","Group5"]
[null,null,null,null,null,null,null,null,null,null,null,null,null,null,null,null,null,null,null,null,9397,"RANFURLY","RANFURLY","Group5"]
[null,null,null,null,null,null,null,null,null,null,null,null,null,null,null,null,null,null,null,null,9398,"RANFURLY","RANFURLY","Group5"]
[null,null,null,null,null,null,null,null,null,null,null,null,null,null,null,null,null,null,null,null,9400,"OAMARU","ARDGOWAN","Group5"]
[null,null,null,null,null,null,null,null,null,null,null,null,null,null,null,null,null,null,null,null,9400,"OAMARU","HOLMES HILL","Group4"]
[null,null,null,null,null,null,null,null,null,null,null,null,null,null,null,null,null,null,null,null,9400,"OAMARU","OAMARU","Group5"]
[null,null,null,null,null,null,null,null,null,null,null,null,null,null,null,null,null,null,null,null,9400,"OAMARU","OAMARU NORTH","Group5"]
[null,null,null,null,null,null,null,null,null,null,null,null,null,null,null,null,null,null,null,null,9400,"OAMARU","SOUTH HILL","Group5"]
[null,null,null,null,null,null,null,null,null,null,null,null,null,null,null,null,null,null,null,null,9401,"OAMARU","HOLMES HILL","Group5"]
[null,null,null,null,null,null,null,null,null,null,null,null,null,null,null,null,null,null,null,null,9401,"OAMARU","WAIAREKA JUNCTION","Group5"]
[null,null,null,null,null,null,null,null,null,null,null,null,null,null,null,null,null,null,null,null,9401,"OAMARU","WESTON","Group5"]
[null,null,null,null,null,null,null,null,null,null,null,null,null,null,null,null,null,null,null,null,9410,"HAMPDEN","HAMPDEN","Group5"]
[null,null,null,null,null,null,null,null,null,null,null,null,null,null,null,null,null,null,null,null,9412,"OMARAMA","OTEMATATA","Group5"]
[null,null,null,null,null,null,null,null,null,null,null,null,null,null,null,null,null,null,null,null,9412,"OTEMATATA","OTEMATATA","Group5"]
[null,null,null,null,null,null,null,null,null,null,null,null,null,null,null,null,null,null,null,null,9430,"PALMERSTON","PALMERSTON","Group5"]
[null,null,null,null,null,null,null,null,null,null,null,null,null,null,null,null,null,null,null,null,9435,"KUROW","KUROW","Group5"]
[null,null,null,null,null,null,null,null,null,null,null,null,null,null,null,null,null,null,null,null,9471,"WAIKOUAITI","WAIKOUAITI","Group5"]
[null,null,null,null,null,null,null,null,null,null,null,null,null,null,null,null,null,null,null,null,9472,"WAIKOUAITI","WAIKOUAITI","Group5"]
[null,null,null,null,null,null,null,null,null,null,null,null,null,null,null,null,null,null,null,null,9481,"PALMERSTON","PALMERSTON","Group5"]
[null,null,null,null,null,null,null,null,null,null,null,null,null,null,null,null,null,null,null,null,9482,"PALMERSTON","PALMERSTON","Group5"]
[null,null,null,null,null,null,null,null,null,null,null,null,null,null,null,null,null,null,null,null,9483,"PALMERSTON","PALMERSTON","Group5"]
[null,null,null,null,null,null,null,null,null,null,null,null,null,null,null,null,null,null,null,null,9491,"OAMARU","OAMARU","Group5"]
[null,null,null,null,null,null,null,null,null,null,null,null,null,null,null,null,null,null,null,null,9492,"OAMARU","OAMARU","Group5"]
[null,null,null,null,null,null,null,null,null,null,null,null,null,null,null,null,null,null,null,null,9493,"OAMARU","OAMARU","Group5"]
[null,null,null,null,null,null,null,null,null,null,null,null,null,null,null,null,null,null,null,null,9494,"OAMARU","OTIAKE","Group5"]
[null,null,null,null,null,null,null,null,null,null,null,null,null,null,null,null,null,null,null,null,9495,"OAMARU","OAMARU","Group5"]
[null,null,null,null,null,null,null,null,null,null,null,null,null,null,null,null,null,null,null,null,9498,"KUROW","KUROW","Group5"]
[null,null,null,null,null,null,null,null,null,null,null,null,null,null,null,null,null,null,null,null,9500,"ROXBURGH","ROXBURGH","Group5"]
[null,null,null,null,null,null,null,null,null,null,null,null,null,null,null,null,null,null,null,null,9510,"WAIKOUAITI","WAIKOUAITI","Group5"]
[null,null,null,null,null,null,null,null,null,null,null,null,null,null,null,null,null,null,null,null,9522,"TAPANUI","TAPANUI","Group5"]
[null,null,null,null,null,null,null,null,null,null,null,null,null,null,null,null,null,null,null,null,9532,"LAWRENCE","LAWRENCE","Group5"]
[null,null,null,null,null,null,null,null,null,null,null,null,null,null,null,null,null,null,null,null,9534,"CLINTON","CLINTON","Group5"]
[null,null,null,null,null,null,null,null,null,null,null,null,null,null,null,null,null,null,null,null,9535,"OWAKA","OWAKA","Group5"]
[null,null,null,null,null,null,null,null,null,null,null,null,null,null,null,null,null,null,null,null,9571,"ROXBURGH","ROXBURGH","Group5"]
[null,null,null,null,null,null,null,null,null,null,null,null,null,null,null,null,null,null,null,null,9572,"ROXBURGH","ROXBURGH","Group5"]
[null,null,null,null,null,null,null,null,null,null,null,null,null,null,null,null,null,null,null,null,9583,"CLINTON","CLINTON","Group5"]
[null,null,null,null,null,null,null,null,null,null,null,null,null,null,null,null,null,null,null,null,9584,"CLINTON","CLINTON","Group5"]
[null,null,null,null,null,null,null,null,null,null,null,null,null,null,null,null,null,null,null,null,9585,"OWAKA","OWAKA","Group5"]
[null,null,null,null,null,null,null,null,null,null,null,null,null,null,null,null,null,null,null,null,9586,"OWAKA","OWAKA","Group5"]
[null,null,null,null,null,null,null,null,null,null,null,null,null,null,null,null,null,null,null,null,9587,"TAPANUI","TAPANUI","Group5"]
[null,null,null,null,null,null,null,null,null,null,null,null,null,null,null,null,null,null,null,null,9591,"LAWRENCE","LAWRENCE","Group5"]
[null,null,null,null,null,null,null,null,null,null,null,null,null,null,null,null,null,null,null,null,9593,"LAWRENCE","LAWRENCE","Group5"]
[null,null,null,null,null,null,null,null,null,null,null,null,null,null,null,null,null,null,null,null,9596,"MIDDLEMARCH","MIDDLEMARCH","Group5"]
[null,null,null,null,null,null,null,null,null,null,null,null,null,null,null,null,null,null,null,null,9597,"MIDDLEMARCH","MIDDLEMARCH","Group5"]
[null,null,null,null,null,null,null,null,null,null,null,null,null,null,null,null,null,null,null,null,9598,"MIDDLEMARCH","MIDDLEMARCH","Group5"]
[null,null,null,null,null,null,null,null,null,null,null,null,null,null,null,null,null,null,null,null,9600,"TE ANAU","TE ANAU","Group5"]
[null,null,null,null,null,null,null,null,null,null,null,null,null,null,null,null,null,null,null,null,9610,"OTAUTAU","OTAUTAU","Group5"]
[null,null,null,null,null,null,null,null,null,null,null,null,null,null,null,null,null,null,null,null,9620,"TUATAPERE","TUATAPERE","Group5"]
[null,null,null,null,null,null,null,null,null,null,null,null,null,null,null,null,null,null,null,null,9630,"NIGHTCAPS","NIGHTCAPS","Group5"]
[null,null,null,null,null,null,null,null,null,null,null,null,null,null,null,null,null,null,null,null,9635,"OHAI","OHAI","Group5"]
[null,null,null,null,null,null,null,null,null,null,null,null,null,null,null,null,null,null,null,null,9672,"TE ANAU","TE ANAU","Group5"]
[null,null,null,null,null,null,null,null,null,null,null,null,null,null,null,null,null,null,null,null,9679,"TE ANAU","TE ANAU","Group5"]
[null,null,null,null,null,null,null,null,null,null,null,null,null,null,null,null,null,null,null,null,9682,"OTAUTAU","OTAUTAU","Group5"]
[null,null,null,null,null,null,null,null,null,null,null,null,null,null,null,null,null,null,null,null,9683,"OTAUTAU","OTAUTAU","Group5"]
[null,null,null,null,null,null,null,null,null,null,null,null,null,null,null,null,null,null,null,null,9689,"OTAUTAU","OTAUTAU","Group5"]
[null,null,null,null,null,null,null,null,null,null,null,null,null,null,null,null,null,null,null,null,9691,"TUATAPERE","TUATAPERE","Group5"]
[null,null,null,null,null,null,null,null,null,null,null,null,null,null,null,null,null,null,null,null,9710,"GORE","EAST GORE","Group5"]
[null,null,null,null,null,null,null,null,null,null,null,null,null,null,null,null,null,null,null,null,9710,"GORE","GORE","Group5"]
[null,null,null,null,null,null,null,null,null,null,null,null,null,null,null,null,null,null,null,null,9710,"GORE","UPPER CHARLTON","Group5"]
[null,null,null,null,null,null,null,null,null,null,null,null,null,null,null,null,null,null,null,null,9712,"MATAURA","MATAURA","Group5"]
[null,null,null,null,null,null,null,null,null,null,null,null,null,null,null,null,null,null,null,null,9720,"WINTON","WINTON","Group5"]
[null,null,null,null,null,null,null,null,null,null,null,null,null,null,null,null,null,null,null,null,9730,"LUMSDEN","LUMSDEN","Group5"]
[null,null,null,null,null,null,null,null,null,null,null,null,null,null,null,null,null,null,null,null,9771,"GORE","GORE","Group5"]
[null,null,null,null,null,null,null,null,null,null,null,null,null,null,null,null,null,null,null,null,9772,"GORE","GORE","Group5"]
[null,null,null,null,null,null,null,null,null,null,null,null,null,null,null,null,null,null,null,null,9773,"GORE","GORE","Group5"]
[null,null,null,null,null,null,null,null,null,null,null,null,null,null,null,null,null,null,null,null,9774,"GORE","GORE","Group5"]
[null,null,null,null,null,null,null,null,null,null,null,null,null,null,null,null,null,null,null,null,9775,"GORE","GORE","Group5"]
[null,null,null,null,null,null,null,null,null,null,null,null,null,null,null,null,null,null,null,null,9776,"GORE","GORE","Group5"]
[null,null,null,null,null,null,null,null,null,null,null,null,null,null,null,null,null,null,null,null,9777,"GORE","GORE","Group5"]
[null,null,null,null,null,null,null,null,null,null,null,null,null,null,null,null,null,null,null,null,9778,"WAIKAIA","WAIKAIA","Group5"]
[null,null,null,null,null,null,null,null,null,null,null,null,null,null,null,null,null,null,null,null,9779,"BALFOUR","BALFOUR","Group5"]
[null,null,null,null,null,null,null,null,null,null,null,null,null,null,null,null,null,null,null,null,9781,"WINTON","WINTON","Group5"]
[null,null,null,null,null,null,null,null,null,null,null,null,null,null,null,null,null,null,null,null,9782,"WINTON","WINTON","Group5"]
[null,null,null,null,null,null,null,null,null,null,null,null,null,null,null,null,null,null,null,null,9783,"WINTON","WINTON","Group5"]
[null,null,null,null,null,null,null,null,null,null,null,null,null,null,null,null,null,null,null,null,9791,"DIPTON","DIPTON","Group5"]
[null,null,null,null,null,null,null,null,null,null,null,null,null,null,null,null,null,null,null,null,9792,"LUMSDEN","LUMSDEN","Group5"]
[null,null,null,null,null,null,null,null,null,null,null,null,null,null,null,null,null,null,null,null,9793,"LUMSDEN","LUMSDEN","Group5"]
[null,null,null,null,null,null,null,null,null,null,null,null,null,null,null,null,null,null,null,null,9794,"LUMSDEN","LUMSDEN","Group5"]
[null,null,null,null,null,null,null,null,null,null,null,null,null,null,null,null,null,null,null,null,9810,"INVERCARGILL","ASCOT","Group4"]
[null,null,null,null,null,null,null,null,null,null,null,null,null,null,null,null,null,null,null,null,9810,"INVERCARGILL","AVENAL","Group4"]
[null,null,null,null,null,null,null,null,null,null,null,null,null,null,null,null,null,null,null,null,9810,"INVERCARGILL","GLADSTONE","Group4"]
[null,null,null,null,null,null,null,null,null,null,null,null,null,null,null,null,null,null,null,null,9810,"INVERCARGILL","GLENGARRY","Group4"]
[null,null,null,null,null,null,null,null,null,null,null,null,null,null,null,null,null,null,null,null,9810,"INVERCARGILL","GRASMERE","Group4"]
[null,null,null,null,null,null,null,null,null,null,null,null,null,null,null,null,null,null,null,null,9810,"INVERCARGILL","HARGEST","Group4"]
[null,null,null,null,null,null,null,null,null,null,null,null,null,null,null,null,null,null,null,null,9810,"INVERCARGILL","HAWTHORNDALE","Group4"]
[null,null,null,null,null,null,null,null,null,null,null,null,null,null,null,null,null,null,null,null,9810,"INVERCARGILL","INVERCARGILL","Group4"]
[null,null,null,null,null,null,null,null,null,null,null,null,null,null,null,null,null,null,null,null,9810,"INVERCARGILL","LORNEVILLE","Group4"]
[null,null,null,null,null,null,null,null,null,null,null,null,null,null,null,null,null,null,null,null,9810,"INVERCARGILL","PRESTONVILLE","Group4"]
[null,null,null,null,null,null,null,null,null,null,null,null,null,null,null,null,null,null,null,null,9810,"INVERCARGILL","QUEENS PARK","Group4"]
[null,null,null,null,null,null,null,null,null,null,null,null,null,null,null,null,null,null,null,null,9810,"INVERCARGILL","RICHMOND","Group4"]
[null,null,null,null,null,null,null,null,null,null,null,null,null,null,null,null,null,null,null,null,9810,"INVERCARGILL","ROSEDALE","Group4"]
[null,null,null,null,null,null,null,null,null,null,null,null,null,null,null,null,null,null,null,null,9810,"INVERCARGILL","TURNBULL THOMSON PARK","Group4"]
[null,null,null,null,null,null,null,null,null,null,null,null,null,null,null,null,null,null,null,null,9810,"INVERCARGILL","WAIHOPAI","Group4"]
[null,null,null,null,null,null,null,null,null,null,null,null,null,null,null,null,null,null,null,null,9810,"INVERCARGILL","WAIKIWI","Group4"]
[null,null,null,null,null,null,null,null,null,null,null,null,null,null,null,null,null,null,null,null,9810,"INVERCARGILL","WAVERLEY","Group4"]
[null,null,null,null,null,null,null,null,null,null,null,null,null,null,null,null,null,null,null,null,9810,"INVERCARGILL","WEST INVERCARGILL","Group4"]
[null,null,null,null,null,null,null,null,null,null,null,null,null,null,null,null,null,null,null,null,9810,"INVERCARGILL","WINDSOR","Group4"]
[null,null,null,null,null,null,null,null,null,null,null,null,null,null,null,null,null,null,null,null,9812,"INVERCARGILL","APPLEBY","Group4"]
[null,null,null,null,null,null,null,null,null,null,null,null,null,null,null,null,null,null,null,null,9812,"INVERCARGILL","CLIFTON","Group4"]
[null,null,null,null,null,null,null,null,null,null,null,null,null,null,null,null,null,null,null,null,9812,"INVERCARGILL","GEORGETOWN","Group4"]
[null,null,null,null,null,null,null,null,null,null,null,null,null,null,null,null,null,null,null,null,9812,"INVERCARGILL","HEIDELBERG","Group4"]
[null,null,null,null,null,null,null,null,null,null,null,null,null,null,null,null,null,null,null,null,9812,"INVERCARGILL","KEW","Group4"]
[null,null,null,null,null,null,null,null,null,null,null,null,null,null,null,null,null,null,null,null,9812,"INVERCARGILL","KINGSWELL","Group4"]
[null,null,null,null,null,null,null,null,null,null,null,null,null,null,null,null,null,null,null,null,9812,"INVERCARGILL","MOTU RIMU","Group4"]
[null,null,null,null,null,null,null,null,null,null,null,null,null,null,null,null,null,null,null,null,9812,"INVERCARGILL","NEWFIELD","Group4"]
[null,null,null,null,null,null,null,null,null,null,null,null,null,null,null,null,null,null,null,null,9812,"INVERCARGILL","ROCKDALE","Group4"]
[null,null,null,null,null,null,null,null,null,null,null,null,null,null,null,null,null,null,null,null,9812,"INVERCARGILL","SEAWARD BUSH","Group4"]
[null,null,null,null,null,null,null,null,null,null,null,null,null,null,null,null,null,null,null,null,9812,"INVERCARGILL","STRATHERN","Group4"]
[null,null,null,null,null,null,null,null,null,null,null,null,null,null,null,null,null,null,null,null,9812,"INVERCARGILL","TISBURY","Group4"]
[null,null,null,null,null,null,null,null,null,null,null,null,null,null,null,null,null,null,null,null,9812,"INVERCARGILL","WOODEND","Group4"]
[null,null,null,null,null,null,null,null,null,null,null,null,null,null,null,null,null,null,null,null,9814,"BLUFF","BLUFF","Group5"]
[null,null,null,null,null,null,null,null,null,null,null,null,null,null,null,null,null,null,null,null,9814,"BLUFF","OCEAN BEACH","Group5"]
[null,null,null,null,null,null,null,null,null,null,null,null,null,null,null,null,null,null,null,null,9816,"WALLACETOWN","WALLACETOWN","Group5"]
[null,null,null,null,null,null,null,null,null,null,null,null,null,null,null,null,null,null,null,null,9818,"STEWART ISLAND","STEWART ISLAND","Group6"]
[null,null,null,null,null,null,null,null,null,null,null,null,null,null,null,null,null,null,null,null,9822,"RIVERTON","RIVERTON","Group5"]
[null,null,null,null,null,null,null,null,null,null,null,null,null,null,null,null,null,null,null,null,9825,"EDENDALE","EDENDALE","Group5"]
[null,null,null,null,null,null,null,null,null,null,null,null,null,null,null,null,null,null,null,null,9831,"WYNDHAM","WYNDHAM","Group5"]
[null,null,null,null,null,null,null,null,null,null,null,null,null,null,null,null,null,null,null,null,9871,"INVERCARGILL","INVERCARGILL","Group5"]
[null,null,null,null,null,null,null,null,null,null,null,null,null,null,null,null,null,null,null,null,9872,"INVERCARGILL","INVERCARGILL","Group5"]
[null,null,null,null,null,null,null,null,null,null,null,null,null,null,null,null,null,null,null,null,9874,"INVERCARGILL","INVERCARGILL","Group5"]
[null,null,null,null,null,null,null,null,null,null,null,null,null,null,null,null,null,null,null,null,9875,"INVERCARGILL","INVERCARGILL","Group5"]
[null,null,null,null,null,null,null,null,null,null,null,null,null,null,null,null,null,null,null,null,9876,"INVERCARGILL","INVERCARGILL","Group5"]
[null,null,null,null,null,null,null,null,null,null,null,null,null,null,null,null,null,null,null,null,9877,"INVERCARGILL","INVERCARGILL","Group5"]
[null,null,null,null,null,null,null,null,null,null,null,null,null,null,null,null,null,null,null,null,9879,"INVERCARGILL","INVERCARGILL","Group5"]
[null,null,null,null,null,null,null,null,null,null,null,null,null,null,null,null,null,null,null,null,9881,"RIVERTON","RIVERTON","Group5"]
[null,null,null,null,null,null,null,null,null,null,null,null,null,null,null,null,null,null,null,null,9883,"RIVERTON","RIVERTON","Group5"]
[null,null,null,null,null,null,null,null,null,null,null,null,null,null,null,null,null,null,null,null,9884,"TOKANUI","WAIKAWA","Group5"]
[null,null,null,null,null,null,null,null,null,null,null,null,null,null,null,null,null,null,null,null,9891,"WYNDHAM","WYNDHAM","Group5"]
[null,null,null,null,null,null,null,null,null,null,null,null,null,null,null,null,null,null,null,null,9892,"WYNDHAM","WYNDHAM","Group5"]
[null,null,null,null,null,null,null,null,null,null,null,null,null,null,null,null,null,null,null,null,9893,"RIVERTON","GROPERS BUSH","Group5"]
[null,null,null,null,null,null,null,null,null,null,null,null,null,null,null,null,null,null,null,null,9893,"RIVERTON","GROPERS BUSH","Group5"]
[null,null,null,null,null,null,null,null,null,null,null,null,null,null,null,null,null,null,null,null,9893,"WYNDHAM","WYNDHAM","Group5"]
[]
[]
[]
[null,null,null,null,null,null,null,null,null,null,null,null,null,null,null,null,null,null,null,null,null,null,null,{"$f":"COUNTIF(X2:X2070, \"group5\")","v":461}]
[null,null,null,null,null,null,null,null,null,null,null,null,null,null,null,null,null,null,null,null,null,null,null,{"$f":"COUNTIF(X2:X2070, \"Group4\")","v":463}]

{"sheet":"Postcodes","index":4,"n_rows":0,"n_cols":0,"rows_kept":0,"cut":false,"hidden":true,"merged":[]}